Workbook

Sheet INDICE
A1: CRUSCOTTO DELTA: ANALISI DEGLI ACQUISTI
A4: SINTESI ECONOMICA
A5: FATT. PROGR. 2022 | D5: =ACQUISTI!D5 -> 3972007.63
A6: BUDGET PROGR. | D6: =SUM(BUDGET!B4:K62) -> 3537503.612
A7: Δ € BDG | D7: =D5-D6 -> 434504.018
A8: BUDGET PROGR. 4° TRIM | D8: =IF(MONTH(TODAY())<=3,BUDGET!$U$5,IF(MONTH(TODAY())<=6,BUDGET!$V$5,IF(MONTH(TODAY())<=9,BUDGET!$W$5,BUDGET!$X$5))) -> 4213000
A9: STIMA PREMI MATURATI | D9: =SUM(PREMI!F6:F102) -> 118461.6905
A10: % SU FATTURATO | D10: =IFERROR(D9/D5,0) -> 0.02982413467
A13: INDICE
A15: CAPITOLO | C15: DESCRIZIONE
A17: ACQUISTI | C17: Analisi mensile degli acquisti in accordo
A18: STAGIONALITA' | C18: Analisi della stagionalità mensile degli acquisti propri e del gruppo
A19: BUDGET | C19: Verifica dei dati di budget e degli scostamenti degli acquisti rispetto agli obiettivi
A20: PREMI | C20: Stima dei premi maturati secondo gli accordi commerciali vigenti

Sheet ACQUISTI
B1: ANALISI FATT. PROGRESSIVO OTTOBRE 2022 | H1: ANDAMENTO MENSILE 2022 | Y1: ANDAMENTO MENSILE 2022
A4: SOCIO | B4: FORNITORE | C4: Fatt. Progr.2021 | D4: Fatt. Progr.2022 | E4: Δ € Fatt. Progr | F4: Δ % Fatt. Progr | H4: GRAFICO | I4: SOCIO | J4: FORNITORE | K4: Fatt. Progr.2022 | L4: GEN 22 | M4: FEB 22 | N4: MAR 22 | O4: APR 22 | P4: MAG 22 | Q4: GIU 22 | R4: LUG 22 | S4: AGO 22 | T4: SET 22 | U4: OTT 22 | V4: NOV 22 | Y4: SOCIO | Z4: FORNITORE | AA4: Fatt. Progr.2022 | AB4: Somma di GEN 21 | AC4: Somma di FEB 21 | AD4: Somma di MAR 21 | AE4: Somma di APR 21 | AF4: Somma di MAG 21 | AG4: Somma di GIU 21 | AH4: Somma di LUG 21 | AI4: Somma di AGO 21 | AJ4: Somma di SET 21 | AK4: Somma di OTT 21 | AL4: Somma di NOV 21 | AM4: Somma di DIC 21 | AN4: Somma di GEN 22 | AO4: Somma di FEB 22 | AP4: Somma di MAR 22 | AQ4: Somma di APR 22 | AR4: Somma di MAG 22 | AS4: Somma di GIU 22 | AT4: Somma di LUG 22 | AU4: Somma di AGO 22 | AV4: Somma di SET 22 | AW4: Somma di OTT 22 | AX4: Somma di NOV 22 | BB4: GEN | BC4: FEB | BD4: MAR | BE4: APR | BF4: MAG | BG4: GIU | BH4: LUG | BI4: AGO | BJ4: SET | BK4: OTT | BL4: NOV | BM4: DIC
A5: VIRLINZI SPA | C5: 4014734 | D5: 3972007.63 | E5: -42726.37 | F5: -0.01064239125 | I5: VIRLINZI SPA | K5: 3972007.63 | L5: 270036.53 | M5: 344920.56 | N5: 605316.84 | O5: 414517.82 | P5: 562372 | Q5: 504231.24 | R5: 351612.01 | S5: 201941.75 | T5: 395003.05 | U5: 322055.83 | Y5: VIRLINZI SPA | AA5: 3972007.63 | AB5: 245671.85 | AC5: 382083.98 | AD5: 522373.08 | AE5: 620434.2 | AF5: 487423.44 | AG5: 459431.51 | AH5: 405442.6 | AI5: 157389.13 | AJ5: 405196.032 | AK5: 329288.178 | AN5: 270036.53 | AO5: 344920.56 | AP5: 605316.84 | AQ5: 414517.82 | AR5: 562372 | AS5: 504231.24 | AT5: 351612.01 | AU5: 201941.75 | AV5: 395003.05 | AW5: 322055.83 | BA5: 2021 | BB5: =AB5 -> 245671.85 | BC5: =AC5 -> 382083.98 | BD5: 522373.08 | BE5: 620434.2 | BF5: 487423.44 | BG5: 459431.51 | BH5: 405442.6 | BI5: 157389.13 | BJ5: 405196.032 | BK5: 329288.178 | BL5: 0 | BM5: 0
B6: Tenaris Dalmine | C6: 583236.96 | D6: 701116.29 | E6: 117879.33 | F6: 0.2021122427 | J6: Tenaris Dalmine | K6: 701116.29 | L6: 38203.94 | M6: 70115.46 | N6: 86473.46 | O6: 32895.75 | P6: 116573.51 | Q6: 62997.12 | R6: 72468.66 | S6: 19094.84 | T6: 155865.37 | U6: 46428.18 | Z6: Albatros | AA6: 2640 | AB6: 1145 | AC6: 38 | AD6: 1055 | AE6: 0 | AF6: 931 | AG6: 2034 | AH6: 1117 | AI6: 0 | AJ6: 0 | AK6: 2319 | AN6: 0 | AO6: 0 | AP6: 1208 | AQ6: 0 | AR6: 1168 | AS6: 0 | AT6: 0 | AU6: 0 | AV6: 264 | AW6: 0 | BA6: 2022 | BB6: =AN5 -> 270036.53 | BC6: =AO5 -> 344920.56 | BD6: 605316.84 | BE6: 414517.82 | BF6: 562372 | BG6: 504231.24 | BH6: 351612.01 | BI6: 201941.75 | BJ6: 395003.05 | BK6: 322055.83 | BL6: 0 | BM6: 0
B7: Unidelta | C7: 702792.73 | D7: 513325.87 | E7: -189466.86 | F7: -0.2695913772 | J7: Unidelta | K7: 513325.87 | L7: 33528.5 | M7: 41154.23 | N7: 81001.86 | O7: 108171.52 | P7: 65408.63 | Q7: 58973.71 | R7: 3560.91 | S7: 25250.44 | T7: 32291.4 | U7: 63984.67 | Z7: Arbi arredobagno | AA7: 0 | AC7: 0 | AD7: 0 | AE7: 0 | AF7: 0 | AG7: 0 | AH7: 0 | AI7: 0 | AJ7: 0 | AK7: 0 | AO7: 0 | AP7: 0 | AQ7: 0 | AR7: 0 | AS7: 0 | AT7: 0 | AU7: 0 | AV7: 0 | AW7: 0
B8: Polieco | C8: 346399.12 | D8: 404686.45 | E8: 58287.33 | F8: 0.1682663917 | J8: Polieco | K8: 404686.45 | L8: 20578.4 | M8: 52701.49 | N8: 44386.71 | O8: 19484.91 | P8: 37970.25 | Q8: 44612.61 | R8: 63393.67 | S8: 43998.16 | T8: 30403.66 | U8: 47156.59 | Z8: Arblu | AA8: 0 | AC8: 0 | AD8: 0 | AE8: 0 | AF8: 0 | AG8: 0 | AH8: 0 | AI8: 0 | AJ8: 0 | AK8: 0 | AO8: 0 | AP8: 0 | AQ8: 0 | AR8: 0 | AS8: 0 | AT8: 0 | AU8: 0 | AV8: 0 | AW8: 0
B9: Isoclima | C9: 225391.01 | D9: 277736.08 | E9: 52345.07 | F9: 0.2322411617 | J9: Isoclima | K9: 277736.08 | L9: 15333.07 | M9: 6958.7 | N9: 77432.65 | O9: 58444.84 | P9: 32734.49 | Q9: 21172.1 | R9: 11770.52 | S9: 27133.24 | T9: 23656.79 | U9: 3099.68 | Z9: Ariston | AA9: 204698.19 | AB9: 9405.51 | AC9: 17528.77 | AD9: 27469.66 | AE9: 32388.36 | AF9: 33123.22 | AG9: 34219.91 | AH9: 29736.29 | AI9: 3514.39 | AJ9: 40963.06 | AK9: 22546.14 | AN9: 10927.03 | AO9: 19120.16 | AP9: 28651.83 | AQ9: 17453.2 | AR9: 51916.39 | AS9: 22480.56 | AT9: 3847.57 | AU9: 32519.79 | AV9: 13893.54 | AW9: 3888.12
B10: Wavin | C10: 228191.2 | D10: 266250.22 | E10: 38059.02 | F10: 0.1667856604 | J10: Wavin | K10: 266250.22 | L10: 26864.41 | M10: 20025.89 | N10: 35379.86 | O10: 37992.1 | P10: 44508.4 | Q10: 20783.84 | R10: 21839.31 | S10: 4740.69 | T10: 26235.67 | U10: 27880.05 | Z10: Arredamenti Montegrappa | AA10: 0 | AC10: 0 | AD10: 1399.29 | AE10: 0 | AF10: 0 | AG10: 0 | AH10: 0 | AI10: 0 | AJ10: 0 | AK10: 0 | AO10: 0 | AP10: 0 | AQ10: 0 | AR10: 0 | AS10: 0 | AT10: 0 | AU10: 0 | AV10: 0 | AW10: 0
B11: Ariston | C11: 250895.31 | D11: 204698.19 | E11: -46197.12 | F11: -0.1841290696 | J11: Ariston | K11: 204698.19 | L11: 10927.03 | M11: 19120.16 | N11: 28651.83 | O11: 17453.2 | P11: 51916.39 | Q11: 22480.56 | R11: 3847.57 | S11: 32519.79 | T11: 13893.54 | U11: 3888.12 | Z11: Atusa | AA11: 1378.04 | AB11: 545.96 | AC11: 0 | AD11: 212.84 | AE11: 0 | AF11: 184.73 | AG11: -8.6 | AH11: 0 | AI11: 473.19 | AJ11: 0 | AK11: 0 | AN11: -7.38 | AO11: 0 | AP11: 0 | AQ11: 0 | AR11: 0 | AS11: 1385.42 | AT11: 0 | AU11: 0 | AV11: 0 | AW11: 0
B12: Raccorderie Metalliche | C12: 228317.95 | D12: 199251.82 | E12: -29066.13 | F12: -0.1273054966 | J12: Raccorderie Metalliche | K12: 199251.82 | L12: 11660.48 | M12: 22275.24 | N12: 35169.68 | O12: 7660.42 | P12: 30670.67 | Q12: 29106.81 | R12: 9936.33 | S12: 11952.42 | T12: 14570.46 | U12: 26249.31 | Z12: Bernasconi | AA12: 0 | AC12: 0 | AD12: 0 | AE12: 0 | AF12: 0 | AG12: 0 | AH12: 0 | AI12: 0 | AJ12: 0 | AK12: 0 | AO12: 0 | AP12: 0 | AQ12: 0 | AR12: 0 | AS12: 0 | AT12: 0 | AU12: 0 | AV12: 0 | AW12: 0
B13: System Group Sicilia | C13: 89985.83 | D13: 180542 | E13: 90556.17 | F13: 1.006338109 | J13: System Group Sicilia | K13: 180542 | M13: 0 | N13: 43993.78 | O13: 18087.09 | P13: 53418.25 | Q13: 17989.44 | R13: 10458.07 | S13: 0 | T13: 23102.09 | U13: 13493.28 | Z13: Beza | AA13: 0 | AC13: 0 | AD13: 0 | AE13: 0 | AF13: 0 | AG13: 0 | AH13: 0 | AI13: 0 | AJ13: 0 | AK13: 0 | AO13: 0 | AP13: 0 | AQ13: 0 | AR13: 0 | AS13: 0 | AT13: 0 | AU13: 0 | AV13: 0 | AW13: 0
B14: Haier | C14: 160772.98 | D14: 145178.23 | E14: -15594.75 | F14: -0.09699857526 | J14: Haier | K14: 145178.23 | M14: 0 | N14: 0 | O14: 0 | P14: 0 | Q14: 77832.73 | R14: 69409 | S14: 0 | T14: -2132.56 | U14: 69.06 | Z14: Bmeters | AA14: 9983.87 | AB14: 739 | AC14: 795.77 | AD14: 2487.24 | AE14: -85.69 | AF14: 1802.95 | AG14: 0 | AH14: 995.19 | AI14: 174.44 | AJ14: 2314.86 | AK14: 0 | AN14: 848.78 | AO14: 1003.42 | AP14: 2101.02 | AQ14: 0 | AR14: 443.35 | AS14: 997.05 | AT14: 0 | AU14: 907.87 | AV14: 1057.2 | AW14: 2625.18
B15: Bosch | C15: 180290.39 | D15: 142477.16 | E15: -37813.23 | F15: -0.209735139 | J15: Bosch | K15: 142477.16 | L15: 19577.27 | M15: 29991.45 | N15: 5644.08 | O15: 9764.13 | P15: 0 | Q15: 58702.11 | R15: 11380.62 | S15: 0 | T15: 2085.19 | U15: 5332.31 | Z15: Bosch | AA15: 142477.16 | AB15: 14930.62 | AC15: 11541.29 | AD15: 9653.54 | AE15: 53403.88 | AF15: 8942.25 | AG15: 10415.44 | AH15: 22794.12 | AI15: 9135 | AJ15: 22244.1 | AK15: 17230.15 | AN15: 19577.27 | AO15: 29991.45 | AP15: 5644.08 | AQ15: 9764.13 | AR15: 0 | AS15: 58702.11 | AT15: 11380.62 | AU15: 0 | AV15: 2085.19 | AW15: 5332.31
B16: Cordivari | C16: 31170.59 | D16: 98239.24 | E16: 67068.65 | F16: 2.151664438 | J16: Cordivari | K16: 98239.24 | L16: 3588.62 | M16: 4968.47 | N16: 4330.28 | O16: 1912.24 | P16: 17922.38 | Q16: 16096.55 | R16: 17432.35 | S16: 0 | T16: 2945.14 | U16: 29043.21 | Z16: Bossini | AA16: 0 | AC16: 0 | AD16: 0 | AE16: 0 | AF16: 0 | AG16: 0 | AH16: 0 | AI16: 0 | AJ16: 0 | AK16: 0 | AO16: 0 | AP16: 0 | AQ16: 0 | AR16: 0 | AS16: 0 | AT16: 0 | AU16: 0 | AV16: 0 | AW16: 0
B17: Samsung | C17: 12198.61 | D17: 93774.49 | E17: 81575.88 | F17: 6.687309456 | J17: Samsung | K17: 93774.49 | M17: 0 | N17: 71474.98 | O17: 17171.72 | P17: 4341.74 | Q17: 0 | R17: 0 | S17: 0 | T17: 0 | U17: 786.05 | Z17: BT-Flex | AA17: 0 | AC17: 0 | AD17: 0 | AE17: 0 | AF17: 0 | AG17: 0 | AH17: 0 | AI17: 0 | AJ17: 0 | AK17: 0 | AO17: 0 | AP17: 0 | AQ17: 0 | AR17: 0 | AS17: 0 | AT17: 0 | AU17: 0 | AV17: 0 | AW17: 0
B18: Xylem | C18: 106296.44 | D18: 66146.82 | E18: -40149.62 | F18: -0.3777136845 | J18: Xylem | K18: 66146.82 | L18: 1915.6 | M18: 276 | N18: 9529.45 | O18: 10212 | P18: 13999.52 | Q18: 13622.5 | R18: 0 | S18: 2201.96 | T18: 4853.09 | U18: 9536.7 | Z18: Bwt/Cillichemie | AA18: 0 | AC18: 0 | AD18: 0 | AE18: 0 | AF18: 0 | AG18: 0 | AH18: 0 | AI18: 0 | AJ18: 0 | AK18: 0 | AO18: 0 | AP18: 0 | AQ18: 0 | AR18: 0 | AS18: 0 | AT18: 0 | AU18: 0 | AV18: 0 | AW18: 0
B19: Tiemme Raccorderie | C19: 92521.54 | D19: 64212.22 | E19: -28309.32 | F19: -0.3059754518 | J19: Tiemme Raccorderie | K19: 64212.22 | L19: 6068.13 | M19: 10774.26 | N19: 3966.58 | O19: 8987.88 | P19: 6948.37 | Q19: 6400.74 | R19: 8279.53 | S19: 1931.62 | T19: 6664.23 | U19: 4190.88 | Z19: Caleffi | AA19: 29491.72 | AB19: 2458.84 | AC19: 2051.86 | AD19: 2603.94 | AE19: 5894.45 | AF19: 1427.39 | AG19: 605.04 | AH19: 2478.11 | AI19: 793.32 | AJ19: 6940.58 | AK19: 5848.64 | AN19: 1646.16 | AO19: 7831.26 | AP19: 2057.21 | AQ19: 1034.26 | AR19: 4776.09 | AS19: 6282.03 | AT19: 199 | AU19: 605.64 | AV19: 4312.16 | AW19: 747.91
B20: Global | C20: 27623 | D20: 62829 | E20: 35206 | F20: 1.274517612 | J20: Global | K20: 62829 | L20: 12892.99 | M20: 0 | N20: 9019.83 | O20: 0 | P20: 12239.76 | Q20: 9023.68 | R20: 0 | S20: 0 | T20: 9239.74 | U20: 10413 | Z20: Carlo Nobili | AA20: 0 | AC20: 0 | AD20: 0 | AE20: 0 | AF20: 0 | AG20: 0 | AH20: 0 | AI20: 0 | AJ20: 0 | AK20: 0 | AO20: 0 | AP20: 0 | AQ20: 0 | AR20: 0 | AS20: 0 | AT20: 0 | AU20: 0 | AV20: 0 | AW20: 0
B21: Ibp Banninger | C21: 58854 | D21: 46597 | E21: -12257 | F21: -0.2082611207 | J21: Ibp Banninger | K21: 46597 | L21: 7568 | M21: 7776 | N21: 4143 | O21: 6110 | P21: 5921 | Q21: 2304 | R21: 6842 | S21: 0 | T21: 4423 | U21: 1510 | Z21: Carrier | AA21: 15347 | AB21: -197 | AC21: 0 | AD21: 197 | AE21: 1549 | AF21: 1870 | AG21: 116 | AH21: 0 | AI21: 623 | AJ21: 418 | AK21: 0 | AN21: 4783 | AO21: 0 | AP21: 2246 | AQ21: 0 | AR21: 6275 | AS21: -814 | AT21: 724 | AU21: 0 | AV21: 1318 | AW21: 815
B22: L'isolante K-Flex | C22: 66440.21 | D22: 41762.04 | E22: -24678.17 | F22: -0.3714342565 | J22: L'isolante K-Flex | K22: 41762.04 | L22: 4696.19 | M22: 5532.68 | N22: 5439.5 | O22: 3119.02 | P22: 4390.82 | Q22: 2870.81 | R22: 4382.25 | S22: 2021.44 | T22: 7321.97 | U22: 1987.36 | Z22: Cordivari | AA22: 98239.24 | AB22: 2129.29 | AC22: 1476.66 | AD22: 4042.04 | AE22: 3752.3 | AF22: 5204.31 | AG22: 3017.92 | AH22: 4198.71 | AI22: 0 | AJ22: 1387.23 | AK22: 5962.13 | AN22: 3588.62 | AO22: 4968.47 | AP22: 4330.28 | AQ22: 1912.24 | AR22: 17922.38 | AS22: 16096.55 | AT22: 17432.35 | AU22: 0 | AV22: 2945.14 | AW22: 29043.21
B23: System Group (Sa.Mi. Plastic) | C23: 70610.32 | D23: 40533.87 | E23: -30076.45 | F23: -0.4259497762 | J23: System Group (Sa.Mi. Plastic) | K23: 40533.87 | M23: 0 | N23: 6034.2 | O23: 5643 | P23: 8306.7 | Q23: 8984.31 | R23: 3094.61 | S23: 0 | T23: 2021.38 | U23: 6449.67 | Z23: Dab Pumps | AA23: 0 | AC23: 0 | AD23: 0 | AE23: 0 | AF23: 0 | AG23: 0 | AH23: 0 | AI23: 0 | AJ23: 0 | AK23: 0 | AO23: 0 | AP23: 0 | AQ23: 0 | AR23: 0 | AS23: 0 | AT23: 0 | AU23: 0 | AV23: 0 | AW23: 0
B24: Ferrari | C24: 24159 | D24: 38598 | E24: 14439 | F24: 0.5976654663 | J24: Ferrari | K24: 38598 | L24: 4517 | M24: 2051 | N24: 4147 | O24: 299 | P24: 11903 | Q24: 5959 | R24: 6931 | S24: 0 | T24: 2791 | U24: 0 | Z24: Ebara | AA24: 36868.4 | AB24: 17668.24 | AC24: 4350.31 | AD24: 3639.71 | AE24: 14215.62 | AF24: 14487.66 | AG24: 1537.04 | AH24: 0 | AI24: 0 | AJ24: 4317 | AK24: 13912 | AN24: 11983.1 | AO24: 1908 | AP24: 3635.8 | AQ24: 1689.3 | AR24: 0 | AS24: 3065 | AT24: 0 | AU24: 7996 | AV24: 2451.2 | AW24: 4140
B25: Ebara | C25: 74127.58 | D25: 36868.4 | E25: -37259.18 | F25: -0.502635861 | J25: Ebara | K25: 36868.4 | L25: 11983.1 | M25: 1908 | N25: 3635.8 | O25: 1689.3 | P25: 0 | Q25: 3065 | R25: 0 | S25: 7996 | T25: 2451.2 | U25: 4140 | Z25: Effebi | AA25: 0 | AC25: 0 | AD25: 0 | AE25: 0 | AF25: 0 | AG25: 0 | AH25: 0 | AI25: 0 | AJ25: 0 | AK25: 0 | AO25: 0 | AP25: 0 | AQ25: 0 | AR25: 0 | AS25: 0 | AT25: 0 | AU25: 0 | AV25: 0 | AW25: 0
B26: Itap | C26: 38854.59 | D26: 35659.47 | E26: -3195.12 | F26: -0.08223275551 | J26: Itap | K26: 35659.47 | L26: 522.09 | M26: 6364.29 | N26: 9173.58 | O26: 7948.42 | P26: 1776.21 | Q26: 0 | R26: 2951.04 | S26: 843.06 | T26: 4093.82 | U26: 1986.96 | Z26: Enolgas | AA26: 9556.37 | AB26: 1557.14 | AC26: 0 | AD26: 8073.36 | AE26: 1069.38 | AF26: 614.4 | AG26: 1596.68 | AH26: 4648.46 | AI26: 0 | AJ26: 4358.47 | AK26: 3662.84 | AN26: 1168.72 | AO26: 1006.28 | AP26: 1003.83 | AQ26: 0 | AR26: 4613.75 | AS26: 0 | AT26: 683.64 | AU26: 0 | AV26: 456.4 | AW26: 623.75
B27: Rubinetterie Bresciane | C27: 33297.75 | D27: 32345.31 | E27: -952.44 | F27: -0.02860373449 | J27: Rubinetterie Bresciane | K27: 32345.31 | L27: 1117.33 | M27: 6988.98 | N27: 2968.77 | O27: 5336.83 | P27: 2995.71 | Q27: 817.63 | R27: 0 | S27: 7091.09 | T27: 4303.34 | U27: 725.63 | Z27: Ercos | AA27: 9663 | AB27: 430.33 | AC27: 1541.4 | AD27: 1055.6 | AE27: 3796.01 | AF27: 2854.21 | AG27: 3612.86 | AH27: 100.74 | AI27: 0 | AJ27: 3879.85 | AK27: 1098.8 | AN27: 2813 | AO27: 1951 | AP27: 581 | AQ27: 1821 | AR27: 124 | AS27: 8 | AT27: 1746 | AU27: 0 | AV27: 440 | AW27: 179
B28: Caleffi | C28: 31102.17 | D28: 29491.72 | E28: -1610.45 | F28: -0.0517793453 | J28: Caleffi | K28: 29491.72 | L28: 1646.16 | M28: 7831.26 | N28: 2057.21 | O28: 1034.26 | P28: 4776.09 | Q28: 6282.03 | R28: 199 | S28: 605.64 | T28: 4312.16 | U28: 747.91 | Z28: Euroacque | AA28: 0 | AC28: 0 | AD28: 0 | AE28: 0 | AF28: 0 | AG28: 0 | AH28: 0 | AI28: 0 | AJ28: 0 | AK28: 0 | AO28: 0 | AP28: 0 | AQ28: 0 | AR28: 0 | AS28: 0 | AT28: 0 | AU28: 0 | AV28: 0 | AW28: 0
B29: Giacomini | C29: 25976.48 | D29: 28897.35 | E29: 2920.87 | F29: 0.1124428714 | J29: Giacomini | K29: 28897.35 | L29: 591.08 | M29: 11545.74 | N29: 6363.2 | O29: 3893.62 | P29: 1199.69 | Q29: 0 | R29: 2412.82 | S29: 727.3 | T29: 1217.3 | U29: 946.6 | Z29: Eurocornici | AA29: 0 | AC29: 0 | AD29: 0 | AE29: 0 | AF29: 0 | AG29: 0 | AH29: 0 | AI29: 0 | AJ29: 0 | AK29: 0 | AO29: 0 | AP29: 0 | AQ29: 0 | AR29: 0 | AS29: 0 | AT29: 0 | AU29: 0 | AV29: 0 | AW29: 0
B30: Geberit | C30: 39353.51 | D30: 27421.55 | E30: -11931.96 | F30: -0.3031993842 | J30: Geberit | K30: 27421.55 | L30: 4439.02 | M30: 2551.17 | N30: 2692.28 | O30: 4759.51 | P30: 0 | Q30: 3614.26 | R30: 556.74 | S30: 4146.96 | T30: 3486.07 | U30: 1175.54 | Z30: Farg | AA30: 14470.33 | AC30: 4404.4 | AD30: 1996.4 | AE30: 0 | AF30: 6614.73 | AG30: 2382.73 | AH30: 0 | AI30: 0 | AJ30: 6509.63 | AK30: 0 | AN30: 1083 | AO30: 670.16 | AP30: 2125.52 | AQ30: 2760.42 | AR30: 0 | AS30: 2066.68 | AT30: 1387.43 | AU30: 0 | AV30: 2039.84 | AW30: 2337.28
B31: Valsir | C31: 3644 | D31: 19118 | E31: 15474 | F31: 4.246432492 | J31: Valsir | K31: 19118 | L31: 6102 | M31: 0 | N31: 5257.77 | O31: 0.23 | P31: 0 | Q31: 0 | R31: 5123 | S31: 0 | T31: 2545 | U31: 90 | Z31: Ferrari | AA31: 38598 | AB31: 1837 | AC31: 143 | AD31: 1469 | AE31: 3629 | AF31: 3147 | AG31: 1331 | AH31: 5974 | AI31: 2614 | AJ31: 2729 | AK31: 1286 | AN31: 4517 | AO31: 2051 | AP31: 4147 | AQ31: 299 | AR31: 11903 | AS31: 5959 | AT31: 6931 | AU31: 0 | AV31: 2791 | AW31: 0
B32: Fluidmaster | C32: 15508 | D32: 17561 | E32: 2053 | F32: 0.132383286 | J32: Fluidmaster | K32: 17561 | L32: 3256 | M32: 0 | N32: 0.06 | O32: 9614.94 | P32: 263 | Q32: 1899 | R32: 0 | S32: 1853 | T32: 675 | U32: 0 | Z32: Ferroli | AA32: 0 | AC32: 0 | AD32: 0 | AE32: 0 | AF32: 0 | AG32: 0 | AH32: 0 | AI32: 0 | AJ32: 0 | AK32: 0 | AO32: 0 | AP32: 0 | AQ32: 0 | AR32: 0 | AS32: 0 | AT32: 0 | AU32: 0 | AV32: 0 | AW32: 0
B33: Thermomat Saniline | C33: 24007 | D33: 16496 | E33: -7511 | F33: -0.3128670804 | J33: Thermomat Saniline | K33: 16496 | L33: 3892 | M33: 501 | N33: 4406 | O33: 2693 | P33: 2475 | Q33: -101 | R33: 0 | S33: 1261 | T33: 0 | U33: 1369 | Z33: Fima Carlo Frattini | AA33: 3373 | AC33: 0 | AD33: 0 | AE33: 0 | AF33: 0 | AG33: 938.86 | AH33: 0 | AI33: 0 | AJ33: 111 | AK33: 5412.2 | AN33: 388.92 | AO33: 418.2 | AP33: 0 | AQ33: 710.94 | AR33: 1893.98 | AS33: 0 | AT33: -39.04 | AU33: 0 | AV33: 0 | AW33: 0
B34: Varem | C34: 15755.66 | D34: 15739.34 | E34: -16.32 | F34: -0.001035818239 | J34: Varem | K34: 15739.34 | M34: 1649.13 | N34: 0 | O34: 4102.84 | P34: 1528.81 | Q34: 2640.89 | R34: 3443.56 | S34: 997.49 | T34: 1376.62 | U34: 0 | Z34: Fimi | AA34: 6222.74 | AB34: 935.71 | AC34: 1491.73 | AD34: 0 | AE34: 3035.08 | AF34: 237.29 | AG34: 851.54 | AH34: 1439.06 | AI34: 2944.99 | AJ34: 0 | AK34: 0 | AO34: 775.2 | AP34: 884.52 | AQ34: 0 | AR34: 1784.71 | AS34: 0 | AT34: 1226.54 | AU34: -61.33 | AV34: 847 | AW34: 766.1
B35: Carrier | C35: 4576 | D35: 15347 | E35: 10771 | F35: 2.353802448 | J35: Carrier | K35: 15347 | L35: 4783 | M35: 0 | N35: 2246 | O35: 0 | P35: 6275 | Q35: -814 | R35: 724 | S35: 0 | T35: 1318 | U35: 815 | Z35: First Corporation | AA35: 0 | AC35: 0 | AD35: 0 | AE35: 0 | AF35: 0 | AG35: 0 | AH35: 0 | AI35: 0 | AJ35: 0 | AK35: 0 | AO35: 0 | AP35: 0 | AQ35: 0 | AR35: 0 | AS35: 0 | AT35: 0 | AU35: 0 | AV35: 0 | AW35: 0
B36: Rems | C36: 28413 | D36: 15012 | E36: -13401 | F36: -0.4716503009 | J36: Rems | K36: 15012 | L36: 656 | M36: 1508 | N36: 228 | O36: 1557 | P36: 3843 | Q36: 1131 | R36: 2750 | S36: 0 | T36: 1414 | U36: 1925 | Z36: Fluidmaster | AA36: 17561 | AB36: 3862 | AC36: 0 | AD36: -71 | AE36: 3219 | AF36: 223 | AG36: 3671 | AH36: 1247 | AI36: 0 | AJ36: 3357 | AK36: 0 | AN36: 3256 | AO36: 0 | AP36: 0.06 | AQ36: 9614.94 | AR36: 263 | AS36: 1899 | AT36: 0 | AU36: 1853 | AV36: 675 | AW36: 0
B37: Farg | C37: 21907.89 | D37: 14470.33 | E37: -7437.56 | F37: -0.3394923016 | J37: Farg | K37: 14470.33 | L37: 1083 | M37: 670.16 | N37: 2125.52 | O37: 2760.42 | P37: 0 | Q37: 2066.68 | R37: 1387.43 | S37: 0 | T37: 2039.84 | U37: 2337.28 | Z37: Galassia | AA37: 0 | AC37: 0 | AD37: 263 | AE37: 0 | AF37: 1696 | AG37: 0 | AH37: 0 | AI37: 0 | AJ37: 0 | AK37: 0 | AO37: 0 | AP37: 0 | AQ37: 0 | AR37: 0 | AS37: 0 | AT37: 0 | AU37: 0 | AV37: 0 | AW37: 0
B38: Bmeters | C38: 9223.76 | D38: 9983.87 | E38: 760.11 | F38: 0.08240782501 | J38: Bmeters | K38: 9983.87 | L38: 848.78 | M38: 1003.42 | N38: 2101.02 | O38: 0 | P38: 443.35 | Q38: 997.05 | R38: 0 | S38: 907.87 | T38: 1057.2 | U38: 2625.18 | Z38: Galletti | AA38: 0 | AC38: 0 | AD38: 0 | AE38: 0 | AF38: 0 | AG38: 0 | AH38: 0 | AI38: 0 | AJ38: 0 | AK38: 0 | AO38: 0 | AP38: 0 | AQ38: 0 | AR38: 0 | AS38: 0 | AT38: 0 | AU38: 0 | AV38: 0 | AW38: 0
B39: Ercos | C39: 18369.8 | D39: 9663 | E39: -8706.8 | F39: -0.4739735871 | J39: Ercos | K39: 9663 | L39: 2813 | M39: 1951 | N39: 581 | O39: 1821 | P39: 124 | Q39: 8 | R39: 1746 | S39: 0 | T39: 440 | U39: 179 | Z39: GBD | AA39: 0 | AC39: 0 | AD39: 0 | AE39: 0 | AF39: 0 | AG39: 0 | AH39: 0 | AI39: 0 | AJ39: 0 | AK39: 0 | AO39: 0 | AP39: 0 | AQ39: 0 | AR39: 0 | AS39: 0 | AT39: 0 | AU39: 0 | AV39: 0 | AW39: 0
B40: Enolgas | C40: 25580.73 | D40: 9556.37 | E40: -16024.36 | F40: -0.6264230927 | J40: Enolgas | K40: 9556.37 | L40: 1168.72 | M40: 1006.28 | N40: 1003.83 | O40: 0 | P40: 4613.75 | Q40: 0 | R40: 683.64 | S40: 0 | T40: 456.4 | U40: 623.75 | Z40: Geberit | AA40: 27421.55 | AB40: 4199.86 | AC40: 11334.26 | AD40: 0 | AE40: 12848.17 | AF40: 703.93 | AG40: 2867.3 | AH40: 2190.89 | AI40: 747.51 | AJ40: 3026.06 | AK40: 1435.53 | AN40: 4439.02 | AO40: 2551.17 | AP40: 2692.28 | AQ40: 4759.51 | AR40: 0 | AS40: 3614.26 | AT40: 556.74 | AU40: 4146.96 | AV40: 3486.07 | AW40: 1175.54
B41: Paini | C41: 23363.3 | D41: 8123.2 | E41: -15240.1 | F41: -0.6523093912 | J41: Paini | K41: 8123.2 | L41: 2650 | M41: 0 | N41: 0 | O41: 0 | P41: 4321.8 | Q41: 0 | R41: 636.4 | S41: 0 | T41: 515 | U41: 0 | Z41: General d'aspirazione | AA41: 0 | AC41: 0 | AD41: 0 | AE41: 0 | AF41: 0 | AG41: 0 | AH41: 0 | AI41: 0 | AJ41: 0 | AK41: 0 | AO41: 0 | AP41: 0 | AQ41: 0 | AR41: 0 | AS41: 0 | AT41: 0 | AU41: 0 | AV41: 0 | AW41: 0
B42: Omp Tea | C42: 14930.58 | D42: 8116.7 | E42: -6813.88 | F42: -0.4563707505 | J42: Omp Tea | K42: 8116.7 | L42: 866.8 | M42: 881.2 | N42: 0 | O42: 1587.92 | P42: 2000.2 | Q42: 1326.66 | R42: 531.9 | S42: 0 | T42: 623.22 | U42: 298.8 | Z42: General Fittings | AA42: 0 | AC42: 0 | AD42: 0 | AE42: 0 | AF42: 0 | AG42: 0 | AH42: 0 | AI42: 0 | AJ42: 0 | AK42: 0 | AO42: 0 | AP42: 0 | AQ42: 0 | AR42: 0 | AS42: 0 | AT42: 0 | AU42: 0 | AV42: 0 | AW42: 0
B43: Grohe | C43: 8522.75 | D43: 8058.64 | E43: -464.11 | F43: -0.05445542812 | J43: Grohe | K43: 8058.64 | M43: 222.06 | N43: 126.36 | O43: 1393.67 | P43: 0 | Q43: 0 | R43: 1587.71 | S43: 4728.84 | T43: 194.04 | U43: -194.04 | Z43: Giacomini | AA43: 28897.35 | AB43: 3875.16 | AC43: 1986.5 | AD43: 1469.34 | AE43: 4715.35 | AF43: 2297.4 | AG43: 3228.5 | AH43: 5487.41 | AI43: 0 | AJ43: 1117 | AK43: 1799.82 | AN43: 591.08 | AO43: 11545.74 | AP43: 6363.2 | AQ43: 3893.62 | AR43: 1199.69 | AS43: 0 | AT43: 2412.82 | AU43: 727.3 | AV43: 1217.3 | AW43: 946.6
B44: Novellini | C44: 1544 | D44: 7972.64 | E44: 6428.64 | F44: 4.163626943 | J44: Novellini | K44: 7972.64 | L44: 1628.01 | M44: 3329.73 | N44: 2039.19 | O44: 0.07 | P44: 268 | Q44: 0 | R44: 327 | S44: 0.23 | T44: 380.41 | U44: 0 | Z44: Giuseppe Tirinnanzi | AA44: 0 | AC44: 0 | AD44: 0 | AE44: 0 | AF44: 0 | AG44: 0 | AH44: 0 | AI44: 0 | AJ44: 0 | AK44: 0 | AO44: 0 | AP44: 0 | AQ44: 0 | AR44: 0 | AS44: 0 | AT44: 0 | AU44: 0 | AV44: 0 | AW44: 0
B45: Fimi | C45: 10935.4 | D45: 6222.74 | E45: -4712.66 | F45: -0.4309545147 | J45: Fimi | K45: 6222.74 | M45: 775.2 | N45: 884.52 | O45: 0 | P45: 1784.71 | Q45: 0 | R45: 1226.54 | S45: -61.33 | T45: 847 | U45: 766.1 | Z45: Global | AA45: 62829 | AB45: 6912.64 | AC45: 0 | AD45: 0 | AE45: 0 | AF45: 0 | AG45: 11673.14 | AH45: 1114.34 | AI45: 0 | AJ45: 7922.88 | AK45: 0 | AN45: 12892.99 | AO45: 0 | AP45: 9019.83 | AQ45: 0 | AR45: 12239.76 | AS45: 9023.68 | AT45: 0 | AU45: 0 | AV45: 9239.74 | AW45: 10413
B46: Fima Carlo Frattini | C46: 6462.06 | D46: 3373 | E46: -3089.06 | F46: -0.4780302257 | J46: Fima Carlo Frattini | K46: 3373 | L46: 388.92 | M46: 418.2 | N46: 0 | O46: 710.94 | P46: 1893.98 | Q46: 0 | R46: -39.04 | S46: 0 | T46: 0 | U46: 0 | Z46: Griffon - Bostik | AA46: 668.96 | AC46: 0 | AD46: 0 | AE46: 282.99 | AF46: 0 | AG46: 0 | AH46: 0 | AI46: 0 | AJ46: 551.58 | AK46: 0 | AO46: 0 | AP46: 0 | AQ46: 0 | AR46: 0 | AS46: 0 | AT46: 368.68 | AU46: 0 | AV46: 300.28 | AW46: 0
B47: Albatros | C47: 8639 | D47: 2640 | E47: -5999 | F47: -0.6944090751 | J47: Albatros | K47: 2640 | L47: 0 | M47: 0 | N47: 1208 | O47: 0 | P47: 1168 | Q47: 0 | R47: 0 | S47: 0 | T47: 264 | U47: 0 | Z47: Grohe | AA47: 8058.64 | AB47: 1438.15 | AC47: 812.64 | AD47: -1371.81 | AE47: 1999.36 | AF47: 1636.54 | AG47: 1519.51 | AH47: 1574.56 | AI47: 0 | AJ47: 913.8 | AK47: 0 | AO47: 222.06 | AP47: 126.36 | AQ47: 1393.67 | AR47: 0 | AS47: 0 | AT47: 1587.71 | AU47: 4728.84 | AV47: 194.04 | AW47: -194.04
B48: Va-Albertoni | C48: 7570.8 | D48: 2101.91 | E48: -5468.89 | F48: -0.7223661964 | J48: Va-Albertoni | K48: 2101.91 | L48: 1130.53 | M48: 0 | N48: 0 | O48: 0 | P48: 971.38 | Q48: 0 | R48: 0 | S48: 0 | T48: 0 | U48: 0 | Z48: Gruppo Salteco | AA48: 0 | AC48: 0 | AD48: 0 | AE48: 0 | AF48: 0 | AG48: 0 | AH48: 0 | AI48: 0 | AJ48: 0 | AK48: 0 | AO48: 0 | AP48: 0 | AQ48: 0 | AR48: 0 | AS48: 0 | AT48: 0 | AU48: 0 | AV48: 0 | AW48: 0
B49: Neoperl | C49: 4743.97 | D49: 1796.91 | E49: -2947.06 | F49: -0.6212223096 | J49: Neoperl | K49: 1796.91 | L49: 558.74 | M49: 94.71 | N49: 0 | O49: 205.03 | P49: 476.44 | Q49: 0 | R49: 0 | S49: 0 | T49: 461.99 | U49: 0 | Z49: Haier | AA49: 145178.23 | AC49: 0 | AD49: 48806 | AE49: 0 | AF49: 54316.8 | AG49: 0 | AH49: 2560.58 | AI49: 55089.6 | AJ49: 0 | AK49: 0 | AO49: 0 | AP49: 0 | AQ49: 0 | AR49: 0 | AS49: 77832.73 | AT49: 69409 | AU49: 0 | AV49: -2132.56 | AW49: 69.06
B50: Atusa | C50: 1408.12 | D50: 1378.04 | E50: -30.08 | F50: -0.02136181575 | J50: Atusa | K50: 1378.04 | L50: -7.38 | M50: 0 | N50: 0 | O50: 0 | P50: 0 | Q50: 1385.42 | R50: 0 | S50: 0 | T50: 0 | U50: 0 | Z50: Ibp Banninger | AA50: 46597 | AB50: 7524 | AC50: 4967 | AD50: 1302 | AE50: 18327 | AF50: 2399 | AG50: 4744 | AH50: 13576 | AI50: 3164 | AJ50: 2786 | AK50: 65 | AN50: 7568 | AO50: 7776 | AP50: 4143 | AQ50: 6110 | AR50: 5921 | AS50: 2304 | AT50: 6842 | AU50: 0 | AV50: 4423 | AW50: 1510
B51: Griffon - Bostik | C51: 834.57 | D51: 668.96 | E51: -165.61 | F51: -0.1984375187 | J51: Griffon - Bostik | K51: 668.96 | M51: 0 | N51: 0 | O51: 0 | P51: 0 | Q51: 0 | R51: 368.68 | S51: 0 | T51: 300.28 | U51: 0 | Z51: Ideal Standard | AA51: -30.81 | AC51: 0 | AD51: 0 | AE51: 0 | AF51: 0 | AG51: 1969.79 | AH51: 832.53 | AI51: 0 | AJ51: 0 | AK51: 0 | AO51: 0 | AP51: 0 | AQ51: 0 | AR51: 0 | AS51: 0 | AT51: -30.81 | AU51: 0 | AV51: 0 | AW51: 0
B52: General Fittings | C52: 0 | D52: 0 | E52: 0 | J52: General Fittings | K52: 0 | M52: 0 | N52: 0 | O52: 0 | P52: 0 | Q52: 0 | R52: 0 | S52: 0 | T52: 0 | U52: 0 | Z52: Immergas | AA52: 0 | AC52: 0 | AD52: 0 | AE52: 0 | AF52: 0 | AG52: 0 | AH52: 0 | AI52: 0 | AJ52: 0 | AK52: 0 | AO52: 0 | AP52: 0 | AQ52: 0 | AR52: 0 | AS52: 0 | AT52: 0 | AU52: 0 | AV52: 0 | AW52: 0
B53: Sabiana | C53: 0 | D53: 0 | E53: 0 | J53: Sabiana | K53: 0 | M53: 0 | N53: 0 | O53: 0 | P53: 0 | Q53: 0 | R53: 0 | S53: 0 | T53: 0 | U53: 0 | Z53: Isoclima | AA53: 277736.08 | AC53: 0 | AD53: 31894 | AE53: 25357.17 | AF53: 30828.66 | AG53: 39790.06 | AH53: 32088.9 | AI53: 21224.81 | AJ53: 26720.16 | AK53: 17487.25 | AN53: 15333.07 | AO53: 6958.7 | AP53: 77432.65 | AQ53: 58444.84 | AR53: 32734.49 | AS53: 21172.1 | AT53: 11770.52 | AU53: 27133.24 | AV53: 23656.79 | AW53: 3099.68
B54: Rizzo Aquae | C54: 0 | D54: 0 | E54: 0 | J54: Rizzo Aquae | K54: 0 | M54: 0 | N54: 0 | O54: 0 | P54: 0 | Q54: 0 | R54: 0 | S54: 0 | T54: 0 | U54: 0 | Z54: Italkero | AA54: 0 | AC54: 0 | AD54: 0 | AE54: 0 | AF54: 0 | AG54: 0 | AH54: 0 | AI54: 0 | AJ54: 0 | AK54: 0 | AO54: 0 | AP54: 0 | AQ54: 0 | AR54: 0 | AS54: 0 | AT54: 0 | AU54: 0 | AV54: 0 | AW54: 0
B55: Euroacque | C55: 0 | D55: 0 | E55: 0 | J55: Euroacque | K55: 0 | M55: 0 | N55: 0 | O55: 0 | P55: 0 | Q55: 0 | R55: 0 | S55: 0 | T55: 0 | U55: 0 | Z55: Itap | AA55: 35659.47 | AB55: 8186.12 | AC55: 2195.96 | AD55: 5089.87 | AE55: 6748.5 | AF55: 1459.75 | AG55: 4140.96 | AH55: 3473.28 | AI55: 0 | AJ55: 5783.26 | AK55: 1776.89 | AN55: 522.09 | AO55: 6364.29 | AP55: 9173.58 | AQ55: 7948.42 | AR55: 1776.21 | AS55: 0 | AT55: 2951.04 | AU55: 843.06 | AV55: 4093.82 | AW55: 1986.96
B56: Tecnocontrol | C56: 0 | D56: 0 | E56: 0 | J56: Tecnocontrol | K56: 0 | M56: 0 | N56: 0 | O56: 0 | P56: 0 | Q56: 0 | R56: 0 | S56: 0 | T56: 0 | U56: 0 | Z56: KINEDO | AA56: 0 | AC56: 0 | AD56: 0 | AE56: 0 | AF56: 0 | AG56: 1543.78 | AH56: -28.22 | AI56: 0 | AJ56: 0 | AK56: 907.77 | AO56: 0 | AP56: 0 | AQ56: 0 | AR56: 0 | AS56: 0 | AT56: 0 | AU56: 0 | AV56: 0 | AW56: 0
B57: Italkero | C57: 0 | D57: 0 | E57: 0 | J57: Italkero | K57: 0 | M57: 0 | N57: 0 | O57: 0 | P57: 0 | Q57: 0 | R57: 0 | S57: 0 | T57: 0 | U57: 0 | Z57: LG | AA57: 0 | AC57: 0 | AD57: 0 | AE57: 0 | AF57: 0 | AG57: 0 | AH57: 0 | AI57: 0 | AJ57: 0 | AK57: 0 | AO57: 0 | AP57: 0 | AQ57: 0 | AR57: 0 | AS57: 0 | AT57: 0 | AU57: 0 | AV57: 0 | AW57: 0
B58: Immergas | C58: 0 | D58: 0 | E58: 0 | J58: Immergas | K58: 0 | M58: 0 | N58: 0 | O58: 0 | P58: 0 | Q58: 0 | R58: 0 | S58: 0 | T58: 0 | U58: 0 | Z58: L'isolante K-Flex | AA58: 41762.04 | AB58: 3232.28 | AC58: 6791.21 | AD58: 5875.64 | AE58: 6161.31 | AF58: 8621.57 | AG58: 0 | AH58: 20040.99 | AI58: 2302.5 | AJ58: 5635.49 | AK58: 7779.22 | AN58: 4696.19 | AO58: 5532.68 | AP58: 5439.5 | AQ58: 3119.02 | AR58: 4390.82 | AS58: 2870.81 | AT58: 4382.25 | AU58: 2021.44 | AV58: 7321.97 | AW58: 1987.36
B59: Eurocornici | C59: 0 | D59: 0 | E59: 0 | J59: Eurocornici | K59: 0 | M59: 0 | N59: 0 | O59: 0 | P59: 0 | Q59: 0 | R59: 0 | S59: 0 | T59: 0 | U59: 0 | Z59: Megius | AA59: 0 | AC59: 0 | AD59: 0 | AE59: 0 | AF59: 0 | AG59: 0 | AH59: 0 | AI59: 0 | AJ59: 0 | AK59: 0 | AO59: 0 | AP59: 0 | AQ59: 0 | AR59: 0 | AS59: 0 | AT59: 0 | AU59: 0 | AV59: 0 | AW59: 0
B60: Royo | C60: 1072.4 | D60: 0 | E60: -1072.4 | F60: -1 | J60: Royo | K60: 0 | M60: 0 | N60: 0 | O60: 0 | P60: 0 | Q60: 0 | R60: 0 | S60: 0 | T60: 0 | U60: 0 | Z60: Mut Meccanica Tovo | AA60: 0 | AC60: 0 | AD60: 0 | AE60: 0 | AF60: 0 | AG60: 0 | AH60: 0 | AI60: 0 | AJ60: 0 | AK60: 0 | AO60: 0 | AP60: 0 | AQ60: 0 | AR60: 0 | AS60: 0 | AT60: 0 | AU60: 0 | AV60: 0 | AW60: 0
B61: KINEDO | C61: 2423.33 | D61: 0 | E61: -2423.33 | F61: -1 | J61: KINEDO | K61: 0 | M61: 0 | N61: 0 | O61: 0 | P61: 0 | Q61: 0 | R61: 0 | S61: 0 | T61: 0 | U61: 0 | Z61: Negrari | AA61: 0 | AC61: 0 | AD61: 0 | AE61: 0 | AF61: 0 | AG61: 0 | AH61: 0 | AI61: 0 | AJ61: 0 | AK61: 0 | AO61: 0 | AP61: 0 | AQ61: 0 | AR61: 0 | AS61: 0 | AT61: 0 | AU61: 0 | AV61: 0 | AW61: 0
B62: GBD | C62: 0 | D62: 0 | E62: 0 | J62: GBD | K62: 0 | M62: 0 | N62: 0 | O62: 0 | P62: 0 | Q62: 0 | R62: 0 | S62: 0 | T62: 0 | U62: 0 | Z62: Neoperl | AA62: 1796.91 | AC62: 1781.19 | AD62: 0 | AE62: 977.69 | AF62: 693.01 | AG62: 0 | AH62: 713.48 | AI62: 0 | AJ62: 578.6 | AK62: 0 | AN62: 558.74 | AO62: 94.71 | AP62: 0 | AQ62: 205.03 | AR62: 476.44 | AS62: 0 | AT62: 0 | AU62: 0 | AV62: 461.99 | AW62: 0
B63: LG | C63: 0 | D63: 0 | E63: 0 | J63: LG | K63: 0 | M63: 0 | N63: 0 | O63: 0 | P63: 0 | Q63: 0 | R63: 0 | S63: 0 | T63: 0 | U63: 0 | Z63: Novellini | AA63: 7972.64 | AC63: 0 | AD63: 184 | AE63: 1360 | AF63: 0 | AG63: 0 | AH63: 0 | AI63: 0 | AJ63: 0 | AK63: 0 | AN63: 1628.01 | AO63: 3329.73 | AP63: 2039.19 | AQ63: 0.07 | AR63: 268 | AS63: 0 | AT63: 327 | AU63: 0.23 | AV63: 380.41 | AW63: 0
B64: Arbi arredobagno | C64: 0 | D64: 0 | E64: 0 | J64: Arbi arredobagno | K64: 0 | M64: 0 | N64: 0 | O64: 0 | P64: 0 | Q64: 0 | R64: 0 | S64: 0 | T64: 0 | U64: 0 | Z64: Olimpia Splendid | AA64: 0 | AC64: 0 | AD64: 0 | AE64: 0 | AF64: 0 | AG64: 0 | AH64: 0 | AI64: 0 | AJ64: 20278 | AK64: 0 | AO64: 0 | AP64: 0 | AQ64: 0 | AR64: 0 | AS64: 0 | AT64: 0 | AU64: 0 | AV64: 0 | AW64: 0
B65: Bossini | C65: 0 | D65: 0 | E65: 0 | J65: Bossini | K65: 0 | M65: 0 | N65: 0 | O65: 0 | P65: 0 | Q65: 0 | R65: 0 | S65: 0 | T65: 0 | U65: 0 | Z65: Omp Tea | AA65: 8116.7 | AB65: 891.51 | AC65: 3523.03 | AD65: 838.24 | AE65: 0 | AF65: 2343.99 | AG65: 2445.31 | AH65: 1076.72 | AI65: 0 | AJ65: 2001.04 | AK65: 1810.74 | AN65: 866.8 | AO65: 881.2 | AP65: 0 | AQ65: 1587.92 | AR65: 2000.2 | AS65: 1326.66 | AT65: 531.9 | AU65: 0 | AV65: 623.22 | AW65: 298.8
B66: Effebi | C66: 0 | D66: 0 | E66: 0 | J66: Effebi | K66: 0 | M66: 0 | N66: 0 | O66: 0 | P66: 0 | Q66: 0 | R66: 0 | S66: 0 | T66: 0 | U66: 0 | Z66: Paini | AA66: 8123.2 | AB66: -46.6 | AC66: 7718.11 | AD66: 3770.94 | AE66: -120.04 | AF66: 6690.5 | AG66: 2626.28 | AH66: -86.9 | AI66: 0 | AJ66: 2811.01 | AK66: 0 | AN66: 2650 | AO66: 0 | AP66: 0 | AQ66: 0 | AR66: 4321.8 | AS66: 0 | AT66: 636.4 | AU66: 0 | AV66: 515 | AW66: 0
B67: Dab Pumps | C67: 0 | D67: 0 | E67: 0 | J67: Dab Pumps | K67: 0 | M67: 0 | N67: 0 | O67: 0 | P67: 0 | Q67: 0 | R67: 0 | S67: 0 | T67: 0 | U67: 0 | Z67: Panasonic | AA67: 0 | AC67: 0 | AD67: 0 | AE67: 0 | AF67: 0 | AG67: 0 | AH67: 0 | AI67: 0 | AJ67: 0 | AK67: 0 | AO67: 0 | AP67: 0 | AQ67: 0 | AR67: 0 | AS67: 0 | AT67: 0 | AU67: 0 | AV67: 0 | AW67: 0
B68: Beza | C68: 0 | D68: 0 | E68: 0 | J68: Beza | K68: 0 | M68: 0 | N68: 0 | O68: 0 | P68: 0 | Q68: 0 | R68: 0 | S68: 0 | T68: 0 | U68: 0 | Z68: Planus | AA68: 0 | AC68: 0 | AD68: 0 | AE68: 0 | AF68: 0 | AG68: 0 | AH68: 0 | AI68: 0 | AJ68: 0 | AK68: 0 | AO68: 0 | AP68: 0 | AQ68: 0 | AR68: 0 | AS68: 0 | AT68: 0 | AU68: 0 | AV68: 0 | AW68: 0
B69: Megius | C69: 0 | D69: 0 | E69: 0 | J69: Megius | K69: 0 | M69: 0 | N69: 0 | O69: 0 | P69: 0 | Q69: 0 | R69: 0 | S69: 0 | T69: 0 | U69: 0 | Z69: Polieco | AA69: 404686.45 | AB69: 10382.61 | AC69: 42034.08 | AD69: 31217.93 | AE69: 40175.15 | AF69: 49840.88 | AG69: 60860.11 | AH69: 58117.96 | AI69: 6748.01 | AJ69: 34505.23 | AK69: 12517.16 | AN69: 20578.4 | AO69: 52701.49 | AP69: 44386.71 | AQ69: 19484.91 | AR69: 37970.25 | AS69: 44612.61 | AT69: 63393.67 | AU69: 43998.16 | AV69: 30403.66 | AW69: 47156.59
B70: Gruppo Salteco | C70: 0 | D70: 0 | E70: 0 | J70: Gruppo Salteco | K70: 0 | M70: 0 | N70: 0 | O70: 0 | P70: 0 | Q70: 0 | R70: 0 | S70: 0 | T70: 0 | U70: 0 | Z70: Raccorderie Metalliche | AA70: 199251.82 | AB70: 11351.84 | AC70: 22631.38 | AD70: 32838.1 | AE70: 23307.02 | AF70: 21146.49 | AG70: 51115.93 | AH70: 33662.36 | AI70: 2621.28 | AJ70: 4918.3 | AK70: 24725.25 | AN70: 11660.48 | AO70: 22275.24 | AP70: 35169.68 | AQ70: 7660.42 | AR70: 30670.67 | AS70: 29106.81 | AT70: 9936.33 | AU70: 11952.42 | AV70: 14570.46 | AW70: 26249.31
B71: Mut Meccanica Tovo | C71: 0 | D71: 0 | E71: 0 | J71: Mut Meccanica Tovo | K71: 0 | M71: 0 | N71: 0 | O71: 0 | P71: 0 | Q71: 0 | R71: 0 | S71: 0 | T71: 0 | U71: 0 | Z71: Rems | AA71: 15012 | AB71: 2731 | AC71: 378 | AD71: 4168 | AE71: 3687 | AF71: 4838 | AG71: 2186 | AH71: 1947 | AI71: 1359 | AJ71: 1675 | AK71: 5444 | AN71: 656 | AO71: 1508 | AP71: 228 | AQ71: 1557 | AR71: 3843 | AS71: 1131 | AT71: 2750 | AU71: 0 | AV71: 1414 | AW71: 1925
B72: RM Manfredi | C72: 0 | D72: 0 | E72: 0 | J72: RM Manfredi | K72: 0 | M72: 0 | N72: 0 | O72: 0 | P72: 0 | Q72: 0 | R72: 0 | S72: 0 | T72: 0 | U72: 0 | Z72: River | AA72: 0 | AC72: 0 | AD72: 0 | AE72: 0 | AF72: 0 | AG72: 0 | AH72: 0 | AI72: 0 | AJ72: 0 | AK72: 0 | AO72: 0 | AP72: 0 | AQ72: 0 | AR72: 0 | AS72: 0 | AT72: 0 | AU72: 0 | AV72: 0 | AW72: 0
B73: Negrari | C73: 0 | D73: 0 | E73: 0 | J73: Negrari | K73: 0 | M73: 0 | N73: 0 | O73: 0 | P73: 0 | Q73: 0 | R73: 0 | S73: 0 | T73: 0 | U73: 0 | Z73: Rizzo Aquae | AA73: 0 | AC73: 0 | AD73: 0 | AE73: 0 | AF73: 0 | AG73: 0 | AH73: 0 | AI73: 0 | AJ73: 0 | AK73: 0 | AO73: 0 | AP73: 0 | AQ73: 0 | AR73: 0 | AS73: 0 | AT73: 0 | AU73: 0 | AV73: 0 | AW73: 0
B74: Galassia | C74: 1959 | D74: 0 | E74: -1959 | F74: -1 | J74: Galassia | K74: 0 | M74: 0 | N74: 0 | O74: 0 | P74: 0 | Q74: 0 | R74: 0 | S74: 0 | T74: 0 | U74: 0 | Z74: RM Manfredi | AA74: 0 | AC74: 0 | AD74: 0 | AE74: 0 | AF74: 0 | AG74: 0 | AH74: 0 | AI74: 0 | AJ74: 0 | AK74: 0 | AO74: 0 | AP74: 0 | AQ74: 0 | AR74: 0 | AS74: 0 | AT74: 0 | AU74: 0 | AV74: 0 | AW74: 0
B75: Galletti | C75: 0 | D75: 0 | E75: 0 | J75: Galletti | K75: 0 | M75: 0 | N75: 0 | O75: 0 | P75: 0 | Q75: 0 | R75: 0 | S75: 0 | T75: 0 | U75: 0 | Z75: Royo | AA75: 0 | AC75: 0 | AD75: 0 | AE75: 0 | AF75: 0 | AG75: 1072.4 | AH75: 0 | AI75: 0 | AJ75: 0 | AK75: 0 | AO75: 0 | AP75: 0 | AQ75: 0 | AR75: 0 | AS75: 0 | AT75: 0 | AU75: 0 | AV75: 0 | AW75: 0
B76: Arblu | C76: 0 | D76: 0 | E76: 0 | J76: Arblu | K76: 0 | M76: 0 | N76: 0 | O76: 0 | P76: 0 | Q76: 0 | R76: 0 | S76: 0 | T76: 0 | U76: 0 | Z76: Rubinetterie Bresciane | AA76: 32345.31 | AB76: 1681.7 | AC76: 0 | AD76: 2974.87 | AE76: 7945.58 | AF76: 1177.52 | AG76: 2420.4 | AH76: 0 | AI76: 9748 | AJ76: 7202.59 | AK76: 147.09 | AN76: 1117.33 | AO76: 6988.98 | AP76: 2968.77 | AQ76: 5336.83 | AR76: 2995.71 | AS76: 817.63 | AT76: 0 | AU76: 7091.09 | AV76: 4303.34 | AW76: 725.63
B77: Silmet | C77: 0 | D77: 0 | E77: 0 | J77: Silmet | K77: 0 | M77: 0 | N77: 0 | O77: 0 | P77: 0 | Q77: 0 | R77: 0 | S77: 0 | T77: 0 | U77: 0 | Z77: Sabiana | AA77: 0 | AC77: 0 | AD77: 0 | AE77: 0 | AF77: 0 | AG77: 0 | AH77: 0 | AI77: 0 | AJ77: 0 | AK77: 0 | AO77: 0 | AP77: 0 | AQ77: 0 | AR77: 0 | AS77: 0 | AT77: 0 | AU77: 0 | AV77: 0 | AW77: 0
B78: System Group (Rototec) | C78: 0 | D78: 0 | E78: 0 | J78: System Group (Rototec) | K78: 0 | M78: 0 | N78: 0 | O78: 0 | P78: 0 | Q78: 0 | R78: 0 | S78: 0 | T78: 0 | U78: 0 | Z78: Samsung | AA78: 93774.49 | AC78: 0 | AD78: 0 | AE78: 0 | AF78: 0 | AG78: 12198.61 | AH78: 0 | AI78: 0 | AJ78: 0 | AK78: 0 | AO78: 0 | AP78: 71474.98 | AQ78: 17171.72 | AR78: 4341.74 | AS78: 0 | AT78: 0 | AU78: 0 | AV78: 0 | AW78: 786.05
B79: BT-Flex | C79: 0 | D79: 0 | E79: 0 | J79: BT-Flex | K79: 0 | M79: 0 | N79: 0 | O79: 0 | P79: 0 | Q79: 0 | R79: 0 | S79: 0 | T79: 0 | U79: 0 | Z79: Silmet | AA79: 0 | AC79: 0 | AD79: 0 | AE79: 0 | AF79: 0 | AG79: 0 | AH79: 0 | AI79: 0 | AJ79: 0 | AK79: 0 | AO79: 0 | AP79: 0 | AQ79: 0 | AR79: 0 | AS79: 0 | AT79: 0 | AU79: 0 | AV79: 0 | AW79: 0
B80: System Group (Sab) | C80: 0 | D80: 0 | E80: 0 | J80: System Group (Sab) | K80: 0 | M80: 0 | N80: 0 | O80: 0 | P80: 0 | Q80: 0 | R80: 0 | S80: 0 | T80: 0 | U80: 0 | Z80: System Group (Rototec) | AA80: 0 | AC80: 0 | AD80: 0 | AE80: 0 | AF80: 0 | AG80: 0 | AH80: 0 | AI80: 0 | AJ80: 0 | AK80: 0 | AO80: 0 | AP80: 0 | AQ80: 0 | AR80: 0 | AS80: 0 | AT80: 0 | AU80: 0 | AV80: 0 | AW80: 0
B81: Olimpia Splendid | C81: 20278 | D81: 0 | E81: -20278 | F81: -1 | J81: Olimpia Splendid | K81: 0 | M81: 0 | N81: 0 | O81: 0 | P81: 0 | Q81: 0 | R81: 0 | S81: 0 | T81: 0 | U81: 0 | Z81: System Group (Sa.Mi. Plastic) | AA81: 40533.87 | AB81: -47.97 | AC81: 1580.46 | AD81: 3404.31 | AE81: 32573.04 | AF81: 13158.19 | AG81: 4349.86 | AH81: 7413.03 | AI81: 0 | AJ81: 7505.402 | AK81: 673.998 | AO81: 0 | AP81: 6034.2 | AQ81: 5643 | AR81: 8306.7 | AS81: 8984.31 | AT81: 3094.61 | AU81: 0 | AV81: 2021.38 | AW81: 6449.67
B82: Tecnosystemi | C82: 0 | D82: 0 | E82: 0 | J82: Tecnosystemi | K82: 0 | M82: 0 | N82: 0 | O82: 0 | P82: 0 | Q82: 0 | R82: 0 | S82: 0 | T82: 0 | U82: 0 | Z82: System Group (Sab) | AA82: 0 | AC82: 0 | AD82: 0 | AE82: 0 | AF82: 0 | AG82: 0 | AH82: 0 | AI82: 0 | AJ82: 0 | AK82: 0 | AO82: 0 | AP82: 0 | AQ82: 0 | AR82: 0 | AS82: 0 | AT82: 0 | AU82: 0 | AV82: 0 | AW82: 0
B83: Ferroli | C83: 0 | D83: 0 | E83: 0 | J83: Ferroli | K83: 0 | M83: 0 | N83: 0 | O83: 0 | P83: 0 | Q83: 0 | R83: 0 | S83: 0 | T83: 0 | U83: 0 | Z83: Tecnocontrol | AA83: 0 | AC83: 0 | AD83: 0 | AE83: 0 | AF83: 0 | AG83: 0 | AH83: 0 | AI83: 0 | AJ83: 0 | AK83: 0 | AO83: 0 | AP83: 0 | AQ83: 0 | AR83: 0 | AS83: 0 | AT83: 0 | AU83: 0 | AV83: 0 | AW83: 0
B84: General d'aspirazione | C84: 0 | D84: 0 | E84: 0 | J84: General d'aspirazione | K84: 0 | M84: 0 | N84: 0 | O84: 0 | P84: 0 | Q84: 0 | R84: 0 | S84: 0 | T84: 0 | U84: 0 | Z84: Tecnosystemi | AA84: 0 | AC84: 0 | AD84: 0 | AE84: 0 | AF84: 0 | AG84: 0 | AH84: 0 | AI84: 0 | AJ84: 0 | AK84: 0 | AO84: 0 | AP84: 0 | AQ84: 0 | AR84: 0 | AS84: 0 | AT84: 0 | AU84: 0 | AV84: 0 | AW84: 0
B85: Bwt/Cillichemie | C85: 0 | D85: 0 | E85: 0 | J85: Bwt/Cillichemie | K85: 0 | M85: 0 | N85: 0 | O85: 0 | P85: 0 | Q85: 0 | R85: 0 | S85: 0 | T85: 0 | U85: 0 | Z85: Tenaris Dalmine | AA85: 701116.29 | AB85: 29712.59 | AC85: 42090.26 | AD85: 91986.03 | AE85: 120389.92 | AF85: 69461.25 | AG85: 59300.13 | AH85: 48400.5 | AI85: 0 | AJ85: 72630.62 | AK85: 49265.66 | AN85: 38203.94 | AO85: 70115.46 | AP85: 86473.46 | AQ85: 32895.75 | AR85: 116573.51 | AS85: 62997.12 | AT85: 72468.66 | AU85: 19094.84 | AV85: 155865.37 | AW85: 46428.18
B86: Bernasconi | C86: 0 | D86: 0 | E86: 0 | J86: Bernasconi | K86: 0 | M86: 0 | N86: 0 | O86: 0 | P86: 0 | Q86: 0 | R86: 0 | S86: 0 | T86: 0 | U86: 0 | Z86: Thermomat Saniline | AA86: 16496 | AB86: 2557 | AC86: 1128 | AD86: 4149 | AE86: 6538 | AF86: 1772 | AG86: 0 | AH86: 2125 | AI86: 0 | AJ86: 2879 | AK86: 2859 | AN86: 3892 | AO86: 501 | AP86: 4406 | AQ86: 2693 | AR86: 2475 | AS86: -101 | AT86: 0 | AU86: 1261 | AV86: 0 | AW86: 1369
B87: Panasonic | C87: 0 | D87: 0 | E87: 0 | J87: Panasonic | K87: 0 | M87: 0 | N87: 0 | O87: 0 | P87: 0 | Q87: 0 | R87: 0 | S87: 0 | T87: 0 | U87: 0 | Z87: Tiemme Raccorderie | AA87: 64212.22 | AB87: 9891.07 | AC87: 23491.29 | AD87: 6581.25 | AE87: 11189.88 | AF87: 12872.4 | AG87: 3572.86 | AH87: 9456.15 | AI87: 0 | AJ87: 12401.8 | AK87: 3064.84 | AN87: 6068.13 | AO87: 10774.26 | AP87: 3966.58 | AQ87: 8987.88 | AR87: 6948.37 | AS87: 6400.74 | AT87: 8279.53 | AU87: 1931.62 | AV87: 6664.23 | AW87: 4190.88
B88: Giuseppe Tirinnanzi | C88: 0 | D88: 0 | E88: 0 | J88: Giuseppe Tirinnanzi | K88: 0 | M88: 0 | N88: 0 | O88: 0 | P88: 0 | Q88: 0 | R88: 0 | S88: 0 | T88: 0 | U88: 0 | Z88: Unidelta | AA88: 513325.87 | AB88: 62515.61 | AC88: 112359.36 | AD88: 81934.11 | AE88: 90068.87 | AF88: 73881.41 | AG88: 89360.5 | AH88: 58191.34 | AI88: 18910.25 | AJ88: 36952.41 | AK88: 78618.87 | AN88: 33528.5 | AO88: 41154.23 | AP88: 81001.86 | AQ88: 108171.52 | AR88: 65408.63 | AS88: 58973.71 | AT88: 3560.91 | AU88: 25250.44 | AV88: 32291.4 | AW88: 63984.67
B89: Planus | C89: 0 | D89: 0 | E89: 0 | J89: Planus | K89: 0 | M89: 0 | N89: 0 | O89: 0 | P89: 0 | Q89: 0 | R89: 0 | S89: 0 | T89: 0 | U89: 0 | Z89: Va-Albertoni | AA89: 2101.91 | AC89: 1094.4 | AD89: 1026.24 | AE89: 0 | AF89: 1920.87 | AG89: 1193.1 | AH89: 1055.84 | AI89: 93.9 | AJ89: 754.17 | AK89: 432.28 | AN89: 1130.53 | AO89: 0 | AP89: 0 | AQ89: 0 | AR89: 971.38 | AS89: 0 | AT89: 0 | AU89: 0 | AV89: 0 | AW89: 0
B90: Vortice | C90: 0 | D90: 0 | E90: 0 | J90: Vortice | K90: 0 | M90: 0 | N90: 0 | O90: 0 | P90: 0 | Q90: 0 | R90: 0 | S90: 0 | T90: 0 | U90: 0 | Z90: Valsir | AA90: 19118 | AC90: 0 | AD90: 0 | AE90: 0 | AF90: 0 | AG90: 0 | AH90: 0 | AI90: 0 | AJ90: 0 | AK90: 3644 | AN90: 6102 | AO90: 0 | AP90: 5257.77 | AQ90: 0.23 | AR90: 0 | AS90: 0 | AT90: 5123 | AU90: 0 | AV90: 2545 | AW90: 90
B91: Arredamenti Montegrappa | C91: 1399.29 | D91: 0 | E91: -1399.29 | F91: -1 | J91: Arredamenti Montegrappa | K91: 0 | M91: 0 | N91: 0 | O91: 0 | P91: 0 | Q91: 0 | R91: 0 | S91: 0 | T91: 0 | U91: 0 | Z91: Varem | AA91: 15739.34 | AC91: 1620.41 | AD91: 3049.78 | AE91: 981.1 | AF91: 2506.64 | AG91: 1634.28 | AH91: 869.65 | AI91: 0 | AJ91: 5093.8 | AK91: 0 | AO91: 1649.13 | AP91: 0 | AQ91: 4102.84 | AR91: 1528.81 | AS91: 2640.89 | AT91: 3443.56 | AU91: 997.49 | AV91: 1376.62 | AW91: 0
B92: Wilo | C92: 0 | D92: 0 | E92: 0 | J92: Wilo | K92: 0 | M92: 0 | N92: 0 | O92: 0 | P92: 0 | Q92: 0 | R92: 0 | S92: 0 | T92: 0 | U92: 0 | Z92: Vortice | AA92: 0 | AC92: 0 | AD92: 0 | AE92: 0 | AF92: 0 | AG92: 0 | AH92: 0 | AI92: 0 | AJ92: 0 | AK92: 0 | AO92: 0 | AP92: 0 | AQ92: 0 | AR92: 0 | AS92: 0 | AT92: 0 | AU92: 0 | AV92: 0 | AW92: 0
B93: First Corporation | C93: 0 | D93: 0 | E93: 0 | J93: First Corporation | K93: 0 | M93: 0 | N93: 0 | O93: 0 | P93: 0 | Q93: 0 | R93: 0 | S93: 0 | T93: 0 | U93: 0 | Z93: Wavin | AA93: 266250.22 | AB93: 21235.64 | AC93: 22727.63 | AD93: 46374.57 | AE93: 61827.39 | AF93: 13114.08 | AG93: 13337.61 | AH93: 4201.66 | AI93: 7147.28 | AJ93: 10385.71 | AK93: 27839.63 | AN93: 26864.41 | AO93: 20025.89 | AP93: 35379.86 | AQ93: 37992.1 | AR93: 44508.4 | AS93: 20783.84 | AT93: 21839.31 | AU93: 4740.69 | AV93: 26235.67 | AW93: 27880.05
B94: Sctubes | C94: 0 | D94: 0 | E94: 0 | J94: Sctubes | K94: 0 | M94: 0 | N94: 0 | O94: 0 | P94: 0 | Q94: 0 | R94: 0 | S94: 0 | T94: 0 | U94: 0 | Z94: Wilo | AA94: 0 | AC94: 0 | AD94: 0 | AE94: 0 | AF94: 0 | AG94: 0 | AH94: 0 | AI94: 0 | AJ94: 0 | AK94: 0 | AO94: 0 | AP94: 0 | AQ94: 0 | AR94: 0 | AS94: 0 | AT94: 0 | AU94: 0 | AV94: 0 | AW94: 0
B95: Carlo Nobili | C95: 0 | D95: 0 | E95: 0 | J95: Carlo Nobili | K95: 0 | M95: 0 | N95: 0 | O95: 0 | P95: 0 | Q95: 0 | R95: 0 | S95: 0 | T95: 0 | U95: 0 | Z95: Xylem | AA95: 66146.82 | AC95: 24475.62 | AD95: 24287.51 | AE95: 7000.22 | AF95: 7543.6 | AG95: 7460.7 | AH95: 8134.8 | AI95: 368.98 | AJ95: 25059.68 | AK95: 1965.33 | AN95: 1915.6 | AO95: 276 | AP95: 9529.45 | AQ95: 10212 | AR95: 13999.52 | AS95: 13622.5 | AT95: 0 | AU95: 2201.96 | AV95: 4853.09 | AW95: 9536.7
B96: River | C96: 0 | D96: 0 | E96: 0 | J96: River | K96: 0 | M96: 0 | N96: 0 | O96: 0 | P96: 0 | Q96: 0 | R96: 0 | S96: 0 | T96: 0 | U96: 0 | Z96: Sctubes | AA96: 0 | AC96: 0 | AD96: 0 | AE96: 0 | AF96: 0 | AG96: 0 | AH96: 0 | AI96: 0 | AJ96: 0 | AK96: 0 | AO96: 0 | AP96: 0 | AQ96: 0 | AR96: 0 | AS96: 0 | AT96: 0 | AU96: 0 | AV96: 0 | AW96: 0
B97: Ideal Standard | C97: 2802.32 | D97: -30.81 | E97: -2833.13 | F97: -1.010994462 | J97: Ideal Standard | K97: -30.81 | M97: 0 | N97: 0 | O97: 0 | P97: 0 | Q97: 0 | R97: -30.81 | S97: 0 | T97: 0 | U97: 0 | Z97: System Group Sicilia | AA97: 180542 | AC97: 0 | AD97: 24976.54 | AE97: 10227.14 | AF97: 18838.82 | AG97: 6498.97 | AH97: 12524.07 | AI97: 7591.68 | AJ97: 3577.66 | AK97: 5750.95 | AO97: 0 | AP97: 43993.78 | AQ97: 18087.09 | AR97: 53418.25 | AS97: 17989.44 | AT97: 10458.07 | AU97: 0 | AV97: 23102.09 | AW97: 13493.28
A98: Totale complessivo | C98: 4014734 | D98: 3972007.63 | E98: -42726.37 | F98: -0.01064239125 | I98: Totale complessivo | K98: 3972007.63 | L98: 270036.53 | M98: 344920.56 | N98: 605316.84 | O98: 414517.82 | P98: 562372 | Q98: 504231.24 | R98: 351612.01 | S98: 201941.75 | T98: 395003.05 | U98: 322055.83 | Y98: Totale complessivo | AA98: 3972007.63 | AB98: 245671.85 | AC98: 382083.98 | AD98: 522373.08 | AE98: 620434.2 | AF98: 487423.44 | AG98: 459431.51 | AH98: 405442.6 | AI98: 157389.13 | AJ98: 405196.032 | AK98: 329288.178 | AN98: 270036.53 | AO98: 344920.56 | AP98: 605316.84 | AQ98: 414517.82 | AR98: 562372 | AS98: 504231.24 | AT98: 351612.01 | AU98: 201941.75 | AV98: 395003.05 | AW98: 322055.83

Sheet BUDGET
O1: BUDGET ANNUALE DEGLI ACQUISTI
A2: BUDGET MENSILE DEGLI ACQUISTI
A3: FORNITORE | B3: GEN 22 | C3: FEB 22 | D3: MAR 22 | E3: APR 22 | F3: MAG 22 | G3: GIU 22 | H3: LUG 22 | I3: AGO 22 | J3: SET 22 | K3: OTT 22 | L3: NOV 22 | M3: DIC 22 | O3: FORNITORE | P3: BUDGET 2022 | U3: GEN-MAR | V3: APR-GIU | W3: LUG-SET | X3: OTT-DIC
A4: =IF(O4=0,"",O4) -> Unidelta | B4: =IFERROR(VLOOKUP(A4,STAGIONALITA!$A$3:$M$105,2,FALSE)*P4,"") -> 0 | C4: =IFERROR(VLOOKUP(A4,STAGIONALITA!$A$3:$M$105,3,FALSE)*P4,"") -> 130440.4742 | D4: =IFERROR(VLOOKUP(A4,STAGIONALITA!$A$3:$M$105,4,FALSE)*P4,"") -> 63901.46264 | E4: =IFERROR(VLOOKUP(A4,STAGIONALITA!$A$3:$M$105,5,FALSE)*P4,"") -> 78851.68108 | F4: =IFERROR(VLOOKUP(A4,STAGIONALITA!$A$3:$M$105,6,FALSE)*P4,"") -> 57542.33302 | G4: =IFERROR(VLOOKUP(A4,STAGIONALITA!$A$3:$M$105,7,FALSE)*P4,"") -> 68031.67779 | H4: =IFERROR(VLOOKUP(A4,STAGIONALITA!$A$3:$M$105,8,FALSE)*P4,"") -> 61055.53161 | I4: =IFERROR(VLOOKUP(A4,STAGIONALITA!$A$3:$M$105,9,FALSE)*P4,"") -> 16887.43076 | J4: =IFERROR(VLOOKUP(A4,STAGIONALITA!$A$3:$M$105,10,FALSE)*P4,"") -> 36810.78616 | K4: =IFERROR(VLOOKUP(A4,STAGIONALITA!$A$3:$M$105,11,FALSE)*P4,"") -> 61072.15771 | L4: =IFERROR(VLOOKUP(A4,STAGIONALITA!$A$3:$M$105,12,FALSE)*P4,"") -> 62990.22348 | M4: =IFERROR(VLOOKUP(A4,STAGIONALITA!$A$3:$M$105,13,FALSE)*P4,"") -> 12416.24157 | O4: Unidelta | P4: 650000 | T4: ACQUISTI | U4: =ACQUISTI!L5+ACQUISTI!M5+ACQUISTI!N5 -> 1220273.93 | V4: =U4+ACQUISTI!O5+ACQUISTI!P5+ACQUISTI!Q5 -> 2701394.99 | W4: =V4+ACQUISTI!R5+ACQUISTI!S5+ACQUISTI!T5 -> 3649951.8 | X4: =W4+ACQUISTI!U5+ACQUISTI!V5+ACQUISTI!W5 -> 3972007.63
A5: Tenaris Dalmine | B5: =IFERROR(VLOOKUP(A5,STAGIONALITA!$A$3:$M$105,2,FALSE)*P5,"") -> 19930.15098 | C5: =IFERROR(VLOOKUP(A5,STAGIONALITA!$A$3:$M$105,3,FALSE)*P5,"") -> 27800.16741 | D5: =IFERROR(VLOOKUP(A5,STAGIONALITA!$A$3:$M$105,4,FALSE)*P5,"") -> 58984.31852 | E5: =IFERROR(VLOOKUP(A5,STAGIONALITA!$A$3:$M$105,5,FALSE)*P5,"") -> 94673.14025 | F5: =IFERROR(VLOOKUP(A5,STAGIONALITA!$A$3:$M$105,6,FALSE)*P5,"") -> 66269.29538 | G5: =IFERROR(VLOOKUP(A5,STAGIONALITA!$A$3:$M$105,7,FALSE)*P5,"") -> 46887.93821 | H5: =IFERROR(VLOOKUP(A5,STAGIONALITA!$A$3:$M$105,8,FALSE)*P5,"") -> 54758.41784 | I5: =IFERROR(VLOOKUP(A5,STAGIONALITA!$A$3:$M$105,9,FALSE)*P5,"") -> 1175.284099 | J5: =IFERROR(VLOOKUP(A5,STAGIONALITA!$A$3:$M$105,10,FALSE)*P5,"") -> 51079.77507 | K5: =IFERROR(VLOOKUP(A5,STAGIONALITA!$A$3:$M$105,11,FALSE)*P5,"") -> 54878.33297 | L5: =IFERROR(VLOOKUP(A5,STAGIONALITA!$A$3:$M$105,12,FALSE)*P5,"") -> 98946.89728 | M5: =IFERROR(VLOOKUP(A5,STAGIONALITA!$A$3:$M$105,13,FALSE)*P5,"") -> 24616.28199 | O5: Tenaris Dalmine | P5: 600000 | T5: BUDGET | U5: =SUM(B4:D107) -> 978527.7242 | V5: =U5+SUM(E4:G107) -> 2290122.029 | W5: =V5+SUM(H4:J107) -> 3166793.542 | X5: =W5+SUM(K4:M107) -> 4213000
A6: Polieco | B6: =IFERROR(VLOOKUP(A6,STAGIONALITA!$A$3:$M$105,2,FALSE)*P6,"") -> 12728.34405 | C6: =IFERROR(VLOOKUP(A6,STAGIONALITA!$A$3:$M$105,3,FALSE)*P6,"") -> 50510.78545 | D6: =IFERROR(VLOOKUP(A6,STAGIONALITA!$A$3:$M$105,4,FALSE)*P6,"") -> 42869.04722 | E6: =IFERROR(VLOOKUP(A6,STAGIONALITA!$A$3:$M$105,5,FALSE)*P6,"") -> 44373.20055 | F6: =IFERROR(VLOOKUP(A6,STAGIONALITA!$A$3:$M$105,6,FALSE)*P6,"") -> 61700.12089 | G6: =IFERROR(VLOOKUP(A6,STAGIONALITA!$A$3:$M$105,7,FALSE)*P6,"") -> 68930.6045 | H6: =IFERROR(VLOOKUP(A6,STAGIONALITA!$A$3:$M$105,8,FALSE)*P6,"") -> 66516.50384 | I6: =IFERROR(VLOOKUP(A6,STAGIONALITA!$A$3:$M$105,9,FALSE)*P6,"") -> 8674.845344 | J6: =IFERROR(VLOOKUP(A6,STAGIONALITA!$A$3:$M$105,10,FALSE)*P6,"") -> 41273.20162 | K6: =IFERROR(VLOOKUP(A6,STAGIONALITA!$A$3:$M$105,11,FALSE)*P6,"") -> 15556.12075 | L6: =IFERROR(VLOOKUP(A6,STAGIONALITA!$A$3:$M$105,12,FALSE)*P6,"") -> 58516.38264 | M6: =IFERROR(VLOOKUP(A6,STAGIONALITA!$A$3:$M$105,13,FALSE)*P6,"") -> 28350.84313 | O6: Polieco | P6: 500000 | T6: Δ € | U6: =U4-U5 -> 241746.2058 | V6: =V4-V5 -> 411272.9605 | W6: =W4-W5 -> 483158.2583 | X6: =X4-X5 -> -240992.37
A7: Wavin | B7: =IFERROR(VLOOKUP(A7,STAGIONALITA!$A$3:$M$105,2,FALSE)*P7,"") -> 14867.38638 | C7: =IFERROR(VLOOKUP(A7,STAGIONALITA!$A$3:$M$105,3,FALSE)*P7,"") -> 26403.36032 | D7: =IFERROR(VLOOKUP(A7,STAGIONALITA!$A$3:$M$105,4,FALSE)*P7,"") -> 24615.59109 | E7: =IFERROR(VLOOKUP(A7,STAGIONALITA!$A$3:$M$105,5,FALSE)*P7,"") -> 43386.71624 | F7: =IFERROR(VLOOKUP(A7,STAGIONALITA!$A$3:$M$105,6,FALSE)*P7,"") -> 22630.42554 | G7: =IFERROR(VLOOKUP(A7,STAGIONALITA!$A$3:$M$105,7,FALSE)*P7,"") -> 17379.07265 | H7: =IFERROR(VLOOKUP(A7,STAGIONALITA!$A$3:$M$105,8,FALSE)*P7,"") -> 10316.57709 | I7: =IFERROR(VLOOKUP(A7,STAGIONALITA!$A$3:$M$105,9,FALSE)*P7,"") -> 11386.02186 | J7: =IFERROR(VLOOKUP(A7,STAGIONALITA!$A$3:$M$105,10,FALSE)*P7,"") -> 19309.95094 | K7: =IFERROR(VLOOKUP(A7,STAGIONALITA!$A$3:$M$105,11,FALSE)*P7,"") -> 21419.94316 | L7: =IFERROR(VLOOKUP(A7,STAGIONALITA!$A$3:$M$105,12,FALSE)*P7,"") -> 22331.64126 | M7: =IFERROR(VLOOKUP(A7,STAGIONALITA!$A$3:$M$105,13,FALSE)*P7,"") -> 15953.31347 | O7: Wavin | P7: 250000
A8: Raccorderie Metalliche | B8: =IFERROR(VLOOKUP(A8,STAGIONALITA!$A$3:$M$105,2,FALSE)*P8,"") -> 17996.03037 | C8: =IFERROR(VLOOKUP(A8,STAGIONALITA!$A$3:$M$105,3,FALSE)*P8,"") -> 14622.88079 | D8: =IFERROR(VLOOKUP(A8,STAGIONALITA!$A$3:$M$105,4,FALSE)*P8,"") -> 28733.73911 | E8: =IFERROR(VLOOKUP(A8,STAGIONALITA!$A$3:$M$105,5,FALSE)*P8,"") -> 22507.87588 | F8: =IFERROR(VLOOKUP(A8,STAGIONALITA!$A$3:$M$105,6,FALSE)*P8,"") -> 21112.66916 | G8: =IFERROR(VLOOKUP(A8,STAGIONALITA!$A$3:$M$105,7,FALSE)*P8,"") -> 29786.01583 | H8: =IFERROR(VLOOKUP(A8,STAGIONALITA!$A$3:$M$105,8,FALSE)*P8,"") -> 27629.38897 | I8: =IFERROR(VLOOKUP(A8,STAGIONALITA!$A$3:$M$105,9,FALSE)*P8,"") -> 8233.50822 | J8: =IFERROR(VLOOKUP(A8,STAGIONALITA!$A$3:$M$105,10,FALSE)*P8,"") -> 14347.37185 | K8: =IFERROR(VLOOKUP(A8,STAGIONALITA!$A$3:$M$105,11,FALSE)*P8,"") -> 24196.48917 | L8: =IFERROR(VLOOKUP(A8,STAGIONALITA!$A$3:$M$105,12,FALSE)*P8,"") -> 16860.40039 | M8: =IFERROR(VLOOKUP(A8,STAGIONALITA!$A$3:$M$105,13,FALSE)*P8,"") -> 13973.63025 | O8: Raccorderie Metalliche | P8: 240000
A9: Ariston | B9: =IFERROR(VLOOKUP(A9,STAGIONALITA!$A$3:$M$105,2,FALSE)*P9,"") -> 17631.57411 | C9: =IFERROR(VLOOKUP(A9,STAGIONALITA!$A$3:$M$105,3,FALSE)*P9,"") -> 26880.57472 | D9: =IFERROR(VLOOKUP(A9,STAGIONALITA!$A$3:$M$105,4,FALSE)*P9,"") -> 21328.34485 | E9: =IFERROR(VLOOKUP(A9,STAGIONALITA!$A$3:$M$105,5,FALSE)*P9,"") -> 21650.63507 | F9: =IFERROR(VLOOKUP(A9,STAGIONALITA!$A$3:$M$105,6,FALSE)*P9,"") -> 20570.83536 | G9: =IFERROR(VLOOKUP(A9,STAGIONALITA!$A$3:$M$105,7,FALSE)*P9,"") -> 23090.06494 | H9: =IFERROR(VLOOKUP(A9,STAGIONALITA!$A$3:$M$105,8,FALSE)*P9,"") -> 19307.18545 | I9: =IFERROR(VLOOKUP(A9,STAGIONALITA!$A$3:$M$105,9,FALSE)*P9,"") -> 3112.832449 | J9: =IFERROR(VLOOKUP(A9,STAGIONALITA!$A$3:$M$105,10,FALSE)*P9,"") -> 18110.86265 | K9: =IFERROR(VLOOKUP(A9,STAGIONALITA!$A$3:$M$105,11,FALSE)*P9,"") -> 22456.37942 | L9: =IFERROR(VLOOKUP(A9,STAGIONALITA!$A$3:$M$105,12,FALSE)*P9,"") -> 13456.47144 | M9: =IFERROR(VLOOKUP(A9,STAGIONALITA!$A$3:$M$105,13,FALSE)*P9,"") -> 12404.23955 | O9: Ariston | P9: 220000
A10: Haier | B10: =IFERROR(VLOOKUP(A10,STAGIONALITA!$A$3:$M$105,2,FALSE)*P10,"") -> 0 | C10: =IFERROR(VLOOKUP(A10,STAGIONALITA!$A$3:$M$105,3,FALSE)*P10,"") -> 17711.65841 | D10: =IFERROR(VLOOKUP(A10,STAGIONALITA!$A$3:$M$105,4,FALSE)*P10,"") -> 27614.10196 | E10: =IFERROR(VLOOKUP(A10,STAGIONALITA!$A$3:$M$105,5,FALSE)*P10,"") -> 31106.78688 | F10: =IFERROR(VLOOKUP(A10,STAGIONALITA!$A$3:$M$105,6,FALSE)*P10,"") -> 48809.86733 | G10: =IFERROR(VLOOKUP(A10,STAGIONALITA!$A$3:$M$105,7,FALSE)*P10,"") -> 6418.213824 | H10: =IFERROR(VLOOKUP(A10,STAGIONALITA!$A$3:$M$105,8,FALSE)*P10,"") -> 37450.78631 | I10: =IFERROR(VLOOKUP(A10,STAGIONALITA!$A$3:$M$105,9,FALSE)*P10,"") -> 15520.52066 | J10: =IFERROR(VLOOKUP(A10,STAGIONALITA!$A$3:$M$105,10,FALSE)*P10,"") -> 4052.942427 | K10: =IFERROR(VLOOKUP(A10,STAGIONALITA!$A$3:$M$105,11,FALSE)*P10,"") -> -1190.177 | L10: =IFERROR(VLOOKUP(A10,STAGIONALITA!$A$3:$M$105,12,FALSE)*P10,"") -> 9514.469751 | M10: =IFERROR(VLOOKUP(A10,STAGIONALITA!$A$3:$M$105,13,FALSE)*P10,"") -> 2990.82945 | O10: Haier | P10: 200000
A11: Isoclima | B11: =IFERROR(VLOOKUP(A11,STAGIONALITA!$A$3:$M$105,2,FALSE)*P11,"") -> 0 | C11: =IFERROR(VLOOKUP(A11,STAGIONALITA!$A$3:$M$105,3,FALSE)*P11,"") -> 0 | D11: =IFERROR(VLOOKUP(A11,STAGIONALITA!$A$3:$M$105,4,FALSE)*P11,"") -> 14716.5685 | E11: =IFERROR(VLOOKUP(A11,STAGIONALITA!$A$3:$M$105,5,FALSE)*P11,"") -> 8382.024364 | F11: =IFERROR(VLOOKUP(A11,STAGIONALITA!$A$3:$M$105,6,FALSE)*P11,"") -> 16589.86764 | G11: =IFERROR(VLOOKUP(A11,STAGIONALITA!$A$3:$M$105,7,FALSE)*P11,"") -> 14098.25299 | H11: =IFERROR(VLOOKUP(A11,STAGIONALITA!$A$3:$M$105,8,FALSE)*P11,"") -> 21517.56456 | I11: =IFERROR(VLOOKUP(A11,STAGIONALITA!$A$3:$M$105,9,FALSE)*P11,"") -> 8065.630513 | J11: =IFERROR(VLOOKUP(A11,STAGIONALITA!$A$3:$M$105,10,FALSE)*P11,"") -> 35658.49425 | K11: =IFERROR(VLOOKUP(A11,STAGIONALITA!$A$3:$M$105,11,FALSE)*P11,"") -> 12521.86512 | L11: =IFERROR(VLOOKUP(A11,STAGIONALITA!$A$3:$M$105,12,FALSE)*P11,"") -> 24771.23553 | M11: =IFERROR(VLOOKUP(A11,STAGIONALITA!$A$3:$M$105,13,FALSE)*P11,"") -> 43678.49653 | O11: Isoclima | P11: 200000
A12: Bosch | B12: =IFERROR(VLOOKUP(A12,STAGIONALITA!$A$3:$M$105,2,FALSE)*P12,"") -> 12369.4605 | C12: =IFERROR(VLOOKUP(A12,STAGIONALITA!$A$3:$M$105,3,FALSE)*P12,"") -> 8469.243151 | D12: =IFERROR(VLOOKUP(A12,STAGIONALITA!$A$3:$M$105,4,FALSE)*P12,"") -> 16128.42928 | E12: =IFERROR(VLOOKUP(A12,STAGIONALITA!$A$3:$M$105,5,FALSE)*P12,"") -> 18450.46233 | F12: =IFERROR(VLOOKUP(A12,STAGIONALITA!$A$3:$M$105,6,FALSE)*P12,"") -> 12202.7127 | G12: =IFERROR(VLOOKUP(A12,STAGIONALITA!$A$3:$M$105,7,FALSE)*P12,"") -> 9538.29825 | H12: =IFERROR(VLOOKUP(A12,STAGIONALITA!$A$3:$M$105,8,FALSE)*P12,"") -> 12736.36679 | I12: =IFERROR(VLOOKUP(A12,STAGIONALITA!$A$3:$M$105,9,FALSE)*P12,"") -> 2256.225083 | J12: =IFERROR(VLOOKUP(A12,STAGIONALITA!$A$3:$M$105,10,FALSE)*P12,"") -> 16925.55423 | K12: =IFERROR(VLOOKUP(A12,STAGIONALITA!$A$3:$M$105,11,FALSE)*P12,"") -> 38379.85355 | L12: =IFERROR(VLOOKUP(A12,STAGIONALITA!$A$3:$M$105,12,FALSE)*P12,"") -> 13693.70732 | M12: =IFERROR(VLOOKUP(A12,STAGIONALITA!$A$3:$M$105,13,FALSE)*P12,"") -> 8849.686797 | O12: Bosch | P12: 170000
A13: Xylem | B13: =IFERROR(VLOOKUP(A13,STAGIONALITA!$A$3:$M$105,2,FALSE)*P13,"") -> 0 | C13: =IFERROR(VLOOKUP(A13,STAGIONALITA!$A$3:$M$105,3,FALSE)*P13,"") -> 0 | D13: =IFERROR(VLOOKUP(A13,STAGIONALITA!$A$3:$M$105,4,FALSE)*P13,"") -> 0 | E13: =IFERROR(VLOOKUP(A13,STAGIONALITA!$A$3:$M$105,5,FALSE)*P13,"") -> 0 | F13: =IFERROR(VLOOKUP(A13,STAGIONALITA!$A$3:$M$105,6,FALSE)*P13,"") -> 0 | G13: =IFERROR(VLOOKUP(A13,STAGIONALITA!$A$3:$M$105,7,FALSE)*P13,"") -> 63786.99529 | H13: =IFERROR(VLOOKUP(A13,STAGIONALITA!$A$3:$M$105,8,FALSE)*P13,"") -> 12327.79627 | I13: =IFERROR(VLOOKUP(A13,STAGIONALITA!$A$3:$M$105,9,FALSE)*P13,"") -> 8609.795955 | J13: =IFERROR(VLOOKUP(A13,STAGIONALITA!$A$3:$M$105,10,FALSE)*P13,"") -> 18947.54766 | K13: =IFERROR(VLOOKUP(A13,STAGIONALITA!$A$3:$M$105,11,FALSE)*P13,"") -> 7874.357274 | L13: =IFERROR(VLOOKUP(A13,STAGIONALITA!$A$3:$M$105,12,FALSE)*P13,"") -> 17770.83836 | M13: =IFERROR(VLOOKUP(A13,STAGIONALITA!$A$3:$M$105,13,FALSE)*P13,"") -> 10682.6692 | O13: Xylem | P13: 140000
A14: Tiemme Raccorderie | B14: =IFERROR(VLOOKUP(A14,STAGIONALITA!$A$3:$M$105,2,FALSE)*P14,"") -> 6661.11127 | C14: =IFERROR(VLOOKUP(A14,STAGIONALITA!$A$3:$M$105,3,FALSE)*P14,"") -> 11247.99893 | D14: =IFERROR(VLOOKUP(A14,STAGIONALITA!$A$3:$M$105,4,FALSE)*P14,"") -> 7677.224552 | E14: =IFERROR(VLOOKUP(A14,STAGIONALITA!$A$3:$M$105,5,FALSE)*P14,"") -> 7219.169105 | F14: =IFERROR(VLOOKUP(A14,STAGIONALITA!$A$3:$M$105,6,FALSE)*P14,"") -> 10641.59417 | G14: =IFERROR(VLOOKUP(A14,STAGIONALITA!$A$3:$M$105,7,FALSE)*P14,"") -> 3700.689464 | H14: =IFERROR(VLOOKUP(A14,STAGIONALITA!$A$3:$M$105,8,FALSE)*P14,"") -> 8709.234023 | I14: =IFERROR(VLOOKUP(A14,STAGIONALITA!$A$3:$M$105,9,FALSE)*P14,"") -> 2543.089608 | J14: =IFERROR(VLOOKUP(A14,STAGIONALITA!$A$3:$M$105,10,FALSE)*P14,"") -> 10828.39346 | K14: =IFERROR(VLOOKUP(A14,STAGIONALITA!$A$3:$M$105,11,FALSE)*P14,"") -> 12049.17256 | L14: =IFERROR(VLOOKUP(A14,STAGIONALITA!$A$3:$M$105,12,FALSE)*P14,"") -> 11044.22525 | M14: =IFERROR(VLOOKUP(A14,STAGIONALITA!$A$3:$M$105,13,FALSE)*P14,"") -> 7678.097602 | O14: Tiemme Raccorderie | P14: 100000
A15: System Group (Sa.Mi. Plastic) | B15: =IFERROR(VLOOKUP(A15,STAGIONALITA!$A$3:$M$105,2,FALSE)*P15,"") -> 8160.555549 | C15: =IFERROR(VLOOKUP(A15,STAGIONALITA!$A$3:$M$105,3,FALSE)*P15,"") -> 10405.93766 | D15: =IFERROR(VLOOKUP(A15,STAGIONALITA!$A$3:$M$105,4,FALSE)*P15,"") -> 5469.485129 | E15: =IFERROR(VLOOKUP(A15,STAGIONALITA!$A$3:$M$105,5,FALSE)*P15,"") -> 8592.510565 | F15: =IFERROR(VLOOKUP(A15,STAGIONALITA!$A$3:$M$105,6,FALSE)*P15,"") -> 5858.967508 | G15: =IFERROR(VLOOKUP(A15,STAGIONALITA!$A$3:$M$105,7,FALSE)*P15,"") -> 4657.171656 | H15: =IFERROR(VLOOKUP(A15,STAGIONALITA!$A$3:$M$105,8,FALSE)*P15,"") -> 4916.543099 | I15: =IFERROR(VLOOKUP(A15,STAGIONALITA!$A$3:$M$105,9,FALSE)*P15,"") -> 1470.658013 | J15: =IFERROR(VLOOKUP(A15,STAGIONALITA!$A$3:$M$105,10,FALSE)*P15,"") -> 11298.25109 | K15: =IFERROR(VLOOKUP(A15,STAGIONALITA!$A$3:$M$105,11,FALSE)*P15,"") -> 6431.403146 | L15: =IFERROR(VLOOKUP(A15,STAGIONALITA!$A$3:$M$105,12,FALSE)*P15,"") -> 7850.891923 | M15: =IFERROR(VLOOKUP(A15,STAGIONALITA!$A$3:$M$105,13,FALSE)*P15,"") -> 4887.624662 | O15: System Group (Sa.Mi. Plastic) | P15: 80000
A16: Ibp Banninger | B16: =IFERROR(VLOOKUP(A16,STAGIONALITA!$A$3:$M$105,2,FALSE)*P16,"") -> 7131.318824 | C16: =IFERROR(VLOOKUP(A16,STAGIONALITA!$A$3:$M$105,3,FALSE)*P16,"") -> 5220.989166 | D16: =IFERROR(VLOOKUP(A16,STAGIONALITA!$A$3:$M$105,4,FALSE)*P16,"") -> 7358.217992 | E16: =IFERROR(VLOOKUP(A16,STAGIONALITA!$A$3:$M$105,5,FALSE)*P16,"") -> 9493.174668 | F16: =IFERROR(VLOOKUP(A16,STAGIONALITA!$A$3:$M$105,6,FALSE)*P16,"") -> 6331.954735 | G16: =IFERROR(VLOOKUP(A16,STAGIONALITA!$A$3:$M$105,7,FALSE)*P16,"") -> 6447.465239 | H16: =IFERROR(VLOOKUP(A16,STAGIONALITA!$A$3:$M$105,8,FALSE)*P16,"") -> 7766.321171 | I16: =IFERROR(VLOOKUP(A16,STAGIONALITA!$A$3:$M$105,9,FALSE)*P16,"") -> 2348.555009 | J16: =IFERROR(VLOOKUP(A16,STAGIONALITA!$A$3:$M$105,10,FALSE)*P16,"") -> 7470.884502 | K16: =IFERROR(VLOOKUP(A16,STAGIONALITA!$A$3:$M$105,11,FALSE)*P16,"") -> 6020.533086 | L16: =IFERROR(VLOOKUP(A16,STAGIONALITA!$A$3:$M$105,12,FALSE)*P16,"") -> 5696.361514 | M16: =IFERROR(VLOOKUP(A16,STAGIONALITA!$A$3:$M$105,13,FALSE)*P16,"") -> 3714.224094 | O16: Ibp Banninger | P16: 75000
A17: Ebara | B17: =IFERROR(VLOOKUP(A17,STAGIONALITA!$A$3:$M$105,2,FALSE)*P17,"") -> 0 | C17: =IFERROR(VLOOKUP(A17,STAGIONALITA!$A$3:$M$105,3,FALSE)*P17,"") -> 13093.85353 | D17: =IFERROR(VLOOKUP(A17,STAGIONALITA!$A$3:$M$105,4,FALSE)*P17,"") -> 8165.519519 | E17: =IFERROR(VLOOKUP(A17,STAGIONALITA!$A$3:$M$105,5,FALSE)*P17,"") -> 6152.125741 | F17: =IFERROR(VLOOKUP(A17,STAGIONALITA!$A$3:$M$105,6,FALSE)*P17,"") -> 3956.882154 | G17: =IFERROR(VLOOKUP(A17,STAGIONALITA!$A$3:$M$105,7,FALSE)*P17,"") -> 9119.64829 | H17: =IFERROR(VLOOKUP(A17,STAGIONALITA!$A$3:$M$105,8,FALSE)*P17,"") -> 9927.457517 | I17: =IFERROR(VLOOKUP(A17,STAGIONALITA!$A$3:$M$105,9,FALSE)*P17,"") -> 2072.952049 | J17: =IFERROR(VLOOKUP(A17,STAGIONALITA!$A$3:$M$105,10,FALSE)*P17,"") -> 4488.115708 | K17: =IFERROR(VLOOKUP(A17,STAGIONALITA!$A$3:$M$105,11,FALSE)*P17,"") -> 5783.391303 | L17: =IFERROR(VLOOKUP(A17,STAGIONALITA!$A$3:$M$105,12,FALSE)*P17,"") -> 6177.006865 | M17: =IFERROR(VLOOKUP(A17,STAGIONALITA!$A$3:$M$105,13,FALSE)*P17,"") -> 3063.047325 | O17: Ebara | P17: 72000
A18: L'isolante K-Flex | B18: =IFERROR(VLOOKUP(A18,STAGIONALITA!$A$3:$M$105,2,FALSE)*P18,"") -> 2138.994479 | C18: =IFERROR(VLOOKUP(A18,STAGIONALITA!$A$3:$M$105,3,FALSE)*P18,"") -> 4458.57142 | D18: =IFERROR(VLOOKUP(A18,STAGIONALITA!$A$3:$M$105,4,FALSE)*P18,"") -> 7066.099011 | E18: =IFERROR(VLOOKUP(A18,STAGIONALITA!$A$3:$M$105,5,FALSE)*P18,"") -> 5611.924511 | F18: =IFERROR(VLOOKUP(A18,STAGIONALITA!$A$3:$M$105,6,FALSE)*P18,"") -> 4488.118857 | G18: =IFERROR(VLOOKUP(A18,STAGIONALITA!$A$3:$M$105,7,FALSE)*P18,"") -> 8026.9363 | H18: =IFERROR(VLOOKUP(A18,STAGIONALITA!$A$3:$M$105,8,FALSE)*P18,"") -> 6628.886932 | I18: =IFERROR(VLOOKUP(A18,STAGIONALITA!$A$3:$M$105,9,FALSE)*P18,"") -> 2288.435892 | J18: =IFERROR(VLOOKUP(A18,STAGIONALITA!$A$3:$M$105,10,FALSE)*P18,"") -> 6513.89753 | K18: =IFERROR(VLOOKUP(A18,STAGIONALITA!$A$3:$M$105,11,FALSE)*P18,"") -> 11336.75548 | L18: =IFERROR(VLOOKUP(A18,STAGIONALITA!$A$3:$M$105,12,FALSE)*P18,"") -> 4243.214473 | M18: =IFERROR(VLOOKUP(A18,STAGIONALITA!$A$3:$M$105,13,FALSE)*P18,"") -> 3198.165114 | O18: L'isolante K-Flex | P18: 66000
A19: Geberit | B19: =IFERROR(VLOOKUP(A19,STAGIONALITA!$A$3:$M$105,2,FALSE)*P19,"") -> 3826.532528 | C19: =IFERROR(VLOOKUP(A19,STAGIONALITA!$A$3:$M$105,3,FALSE)*P19,"") -> 5749.11008 | D19: =IFERROR(VLOOKUP(A19,STAGIONALITA!$A$3:$M$105,4,FALSE)*P19,"") -> 5947.210879 | E19: =IFERROR(VLOOKUP(A19,STAGIONALITA!$A$3:$M$105,5,FALSE)*P19,"") -> 4274.882478 | F19: =IFERROR(VLOOKUP(A19,STAGIONALITA!$A$3:$M$105,6,FALSE)*P19,"") -> 4241.855382 | G19: =IFERROR(VLOOKUP(A19,STAGIONALITA!$A$3:$M$105,7,FALSE)*P19,"") -> 5323.415261 | H19: =IFERROR(VLOOKUP(A19,STAGIONALITA!$A$3:$M$105,8,FALSE)*P19,"") -> 4776.365646 | I19: =IFERROR(VLOOKUP(A19,STAGIONALITA!$A$3:$M$105,9,FALSE)*P19,"") -> 2333.390567 | J19: =IFERROR(VLOOKUP(A19,STAGIONALITA!$A$3:$M$105,10,FALSE)*P19,"") -> 3899.704953 | K19: =IFERROR(VLOOKUP(A19,STAGIONALITA!$A$3:$M$105,11,FALSE)*P19,"") -> 5702.139667 | L19: =IFERROR(VLOOKUP(A19,STAGIONALITA!$A$3:$M$105,12,FALSE)*P19,"") -> 6110.071332 | M19: =IFERROR(VLOOKUP(A19,STAGIONALITA!$A$3:$M$105,13,FALSE)*P19,"") -> 2815.321226 | O19: Geberit | P19: 55000
A20: Giacomini | B20: =IFERROR(VLOOKUP(A20,STAGIONALITA!$A$3:$M$105,2,FALSE)*P20,"") -> 4061.034783 | C20: =IFERROR(VLOOKUP(A20,STAGIONALITA!$A$3:$M$105,3,FALSE)*P20,"") -> 3102.260614 | D20: =IFERROR(VLOOKUP(A20,STAGIONALITA!$A$3:$M$105,4,FALSE)*P20,"") -> 6314.654209 | E20: =IFERROR(VLOOKUP(A20,STAGIONALITA!$A$3:$M$105,5,FALSE)*P20,"") -> 3034.23384 | F20: =IFERROR(VLOOKUP(A20,STAGIONALITA!$A$3:$M$105,6,FALSE)*P20,"") -> 3179.093624 | G20: =IFERROR(VLOOKUP(A20,STAGIONALITA!$A$3:$M$105,7,FALSE)*P20,"") -> 4373.264245 | H20: =IFERROR(VLOOKUP(A20,STAGIONALITA!$A$3:$M$105,8,FALSE)*P20,"") -> 4288.261954 | I20: =IFERROR(VLOOKUP(A20,STAGIONALITA!$A$3:$M$105,9,FALSE)*P20,"") -> 1239.36615 | J20: =IFERROR(VLOOKUP(A20,STAGIONALITA!$A$3:$M$105,10,FALSE)*P20,"") -> 2606.554214 | K20: =IFERROR(VLOOKUP(A20,STAGIONALITA!$A$3:$M$105,11,FALSE)*P20,"") -> 4678.150185 | L20: =IFERROR(VLOOKUP(A20,STAGIONALITA!$A$3:$M$105,12,FALSE)*P20,"") -> 4042.252734 | M20: =IFERROR(VLOOKUP(A20,STAGIONALITA!$A$3:$M$105,13,FALSE)*P20,"") -> 3080.873446 | O20: Giacomini | P20: 44000
A21: Rubinetterie Bresciane | B21: =IFERROR(VLOOKUP(A21,STAGIONALITA!$A$3:$M$105,2,FALSE)*P21,"") -> 2155.465604 | C21: =IFERROR(VLOOKUP(A21,STAGIONALITA!$A$3:$M$105,3,FALSE)*P21,"") -> 2837.262348 | D21: =IFERROR(VLOOKUP(A21,STAGIONALITA!$A$3:$M$105,4,FALSE)*P21,"") -> 5490.442687 | E21: =IFERROR(VLOOKUP(A21,STAGIONALITA!$A$3:$M$105,5,FALSE)*P21,"") -> 3268.318954 | F21: =IFERROR(VLOOKUP(A21,STAGIONALITA!$A$3:$M$105,6,FALSE)*P21,"") -> 2841.704305 | G21: =IFERROR(VLOOKUP(A21,STAGIONALITA!$A$3:$M$105,7,FALSE)*P21,"") -> 4346.663564 | H21: =IFERROR(VLOOKUP(A21,STAGIONALITA!$A$3:$M$105,8,FALSE)*P21,"") -> 3446.002472 | I21: =IFERROR(VLOOKUP(A21,STAGIONALITA!$A$3:$M$105,9,FALSE)*P21,"") -> 838.9303907 | J21: =IFERROR(VLOOKUP(A21,STAGIONALITA!$A$3:$M$105,10,FALSE)*P21,"") -> 3215.626492 | K21: =IFERROR(VLOOKUP(A21,STAGIONALITA!$A$3:$M$105,11,FALSE)*P21,"") -> 3634.238189 | L21: =IFERROR(VLOOKUP(A21,STAGIONALITA!$A$3:$M$105,12,FALSE)*P21,"") -> 4280.396741 | M21: =IFERROR(VLOOKUP(A21,STAGIONALITA!$A$3:$M$105,13,FALSE)*P21,"") -> 2644.948254 | O21: Rubinetterie Bresciane | P21: 39000
A22: Itap | B22: =IFERROR(VLOOKUP(A22,STAGIONALITA!$A$3:$M$105,2,FALSE)*P22,"") -> 2511.96409 | C22: =IFERROR(VLOOKUP(A22,STAGIONALITA!$A$3:$M$105,3,FALSE)*P22,"") -> 2752.130726 | D22: =IFERROR(VLOOKUP(A22,STAGIONALITA!$A$3:$M$105,4,FALSE)*P22,"") -> 6054.333015 | E22: =IFERROR(VLOOKUP(A22,STAGIONALITA!$A$3:$M$105,5,FALSE)*P22,"") -> 1936.642998 | F22: =IFERROR(VLOOKUP(A22,STAGIONALITA!$A$3:$M$105,6,FALSE)*P22,"") -> 5530.387377 | G22: =IFERROR(VLOOKUP(A22,STAGIONALITA!$A$3:$M$105,7,FALSE)*P22,"") -> 2917.125915 | H22: =IFERROR(VLOOKUP(A22,STAGIONALITA!$A$3:$M$105,8,FALSE)*P22,"") -> 1706.927738 | I22: =IFERROR(VLOOKUP(A22,STAGIONALITA!$A$3:$M$105,9,FALSE)*P22,"") -> 0 | J22: =IFERROR(VLOOKUP(A22,STAGIONALITA!$A$3:$M$105,10,FALSE)*P22,"") -> 3600.721603 | K22: =IFERROR(VLOOKUP(A22,STAGIONALITA!$A$3:$M$105,11,FALSE)*P22,"") -> 5208.612745 | L22: =IFERROR(VLOOKUP(A22,STAGIONALITA!$A$3:$M$105,12,FALSE)*P22,"") -> 3560.403584 | M22: =IFERROR(VLOOKUP(A22,STAGIONALITA!$A$3:$M$105,13,FALSE)*P22,"") -> 3220.750209 | O22: Itap | P22: 39000
A23: Paini | B23: =IFERROR(VLOOKUP(A23,STAGIONALITA!$A$3:$M$105,2,FALSE)*P23,"") -> 521.4289721 | C23: =IFERROR(VLOOKUP(A23,STAGIONALITA!$A$3:$M$105,3,FALSE)*P23,"") -> 16320.42734 | D23: =IFERROR(VLOOKUP(A23,STAGIONALITA!$A$3:$M$105,4,FALSE)*P23,"") -> 3945.832396 | E23: =IFERROR(VLOOKUP(A23,STAGIONALITA!$A$3:$M$105,5,FALSE)*P23,"") -> 968.9082905 | F23: =IFERROR(VLOOKUP(A23,STAGIONALITA!$A$3:$M$105,6,FALSE)*P23,"") -> 1404.75135 | G23: =IFERROR(VLOOKUP(A23,STAGIONALITA!$A$3:$M$105,7,FALSE)*P23,"") -> 1226.075366 | H23: =IFERROR(VLOOKUP(A23,STAGIONALITA!$A$3:$M$105,8,FALSE)*P23,"") -> 1627.846026 | I23: =IFERROR(VLOOKUP(A23,STAGIONALITA!$A$3:$M$105,9,FALSE)*P23,"") -> 0 | J23: =IFERROR(VLOOKUP(A23,STAGIONALITA!$A$3:$M$105,10,FALSE)*P23,"") -> 1586.262829 | K23: =IFERROR(VLOOKUP(A23,STAGIONALITA!$A$3:$M$105,11,FALSE)*P23,"") -> 1772.400932 | L23: =IFERROR(VLOOKUP(A23,STAGIONALITA!$A$3:$M$105,12,FALSE)*P23,"") -> 2381.829803 | M23: =IFERROR(VLOOKUP(A23,STAGIONALITA!$A$3:$M$105,13,FALSE)*P23,"") -> 1244.236692 | O23: Paini | P23: 33000
A24: Global | B24: =IFERROR(VLOOKUP(A24,STAGIONALITA!$A$3:$M$105,2,FALSE)*P24,"") -> 4217.341336 | C24: =IFERROR(VLOOKUP(A24,STAGIONALITA!$A$3:$M$105,3,FALSE)*P24,"") -> 2836.421576 | D24: =IFERROR(VLOOKUP(A24,STAGIONALITA!$A$3:$M$105,4,FALSE)*P24,"") -> 3760.633533 | E24: =IFERROR(VLOOKUP(A24,STAGIONALITA!$A$3:$M$105,5,FALSE)*P24,"") -> 2953.885199 | F24: =IFERROR(VLOOKUP(A24,STAGIONALITA!$A$3:$M$105,6,FALSE)*P24,"") -> 1442.552627 | G24: =IFERROR(VLOOKUP(A24,STAGIONALITA!$A$3:$M$105,7,FALSE)*P24,"") -> 3228.090311 | H24: =IFERROR(VLOOKUP(A24,STAGIONALITA!$A$3:$M$105,8,FALSE)*P24,"") -> 571.1387767 | I24: =IFERROR(VLOOKUP(A24,STAGIONALITA!$A$3:$M$105,9,FALSE)*P24,"") -> 400.188926 | J24: =IFERROR(VLOOKUP(A24,STAGIONALITA!$A$3:$M$105,10,FALSE)*P24,"") -> 2529.935985 | K24: =IFERROR(VLOOKUP(A24,STAGIONALITA!$A$3:$M$105,11,FALSE)*P24,"") -> 1917.009487 | L24: =IFERROR(VLOOKUP(A24,STAGIONALITA!$A$3:$M$105,12,FALSE)*P24,"") -> 7127.627803 | M24: =IFERROR(VLOOKUP(A24,STAGIONALITA!$A$3:$M$105,13,FALSE)*P24,"") -> 2015.174439 | O24: Global | P24: 33000
A25: Ferrari | B25: =IFERROR(VLOOKUP(A25,STAGIONALITA!$A$3:$M$105,2,FALSE)*P25,"") -> 3162.468949 | C25: =IFERROR(VLOOKUP(A25,STAGIONALITA!$A$3:$M$105,3,FALSE)*P25,"") -> 2395.734425 | D25: =IFERROR(VLOOKUP(A25,STAGIONALITA!$A$3:$M$105,4,FALSE)*P25,"") -> 2910.29785 | E25: =IFERROR(VLOOKUP(A25,STAGIONALITA!$A$3:$M$105,5,FALSE)*P25,"") -> 2459.848162 | F25: =IFERROR(VLOOKUP(A25,STAGIONALITA!$A$3:$M$105,6,FALSE)*P25,"") -> 1627.262952 | G25: =IFERROR(VLOOKUP(A25,STAGIONALITA!$A$3:$M$105,7,FALSE)*P25,"") -> 2709.963446 | H25: =IFERROR(VLOOKUP(A25,STAGIONALITA!$A$3:$M$105,8,FALSE)*P25,"") -> 3844.732048 | I25: =IFERROR(VLOOKUP(A25,STAGIONALITA!$A$3:$M$105,9,FALSE)*P25,"") -> 700.1949787 | J25: =IFERROR(VLOOKUP(A25,STAGIONALITA!$A$3:$M$105,10,FALSE)*P25,"") -> 2720.525065 | K25: =IFERROR(VLOOKUP(A25,STAGIONALITA!$A$3:$M$105,11,FALSE)*P25,"") -> 3625.528 | L25: =IFERROR(VLOOKUP(A25,STAGIONALITA!$A$3:$M$105,12,FALSE)*P25,"") -> 2245.924923 | M25: =IFERROR(VLOOKUP(A25,STAGIONALITA!$A$3:$M$105,13,FALSE)*P25,"") -> 2597.519202 | O25: Ferrari | P25: 31000
A26: Cordivari | B26: =IFERROR(VLOOKUP(A26,STAGIONALITA!$A$3:$M$105,2,FALSE)*P26,"") -> 1472.666954 | C26: =IFERROR(VLOOKUP(A26,STAGIONALITA!$A$3:$M$105,3,FALSE)*P26,"") -> 2052.469623 | D26: =IFERROR(VLOOKUP(A26,STAGIONALITA!$A$3:$M$105,4,FALSE)*P26,"") -> 2655.908297 | E26: =IFERROR(VLOOKUP(A26,STAGIONALITA!$A$3:$M$105,5,FALSE)*P26,"") -> 2726.898771 | F26: =IFERROR(VLOOKUP(A26,STAGIONALITA!$A$3:$M$105,6,FALSE)*P26,"") -> 2578.320896 | G26: =IFERROR(VLOOKUP(A26,STAGIONALITA!$A$3:$M$105,7,FALSE)*P26,"") -> 2689.274368 | H26: =IFERROR(VLOOKUP(A26,STAGIONALITA!$A$3:$M$105,8,FALSE)*P26,"") -> 3094.993272 | I26: =IFERROR(VLOOKUP(A26,STAGIONALITA!$A$3:$M$105,9,FALSE)*P26,"") -> 1418.431953 | J26: =IFERROR(VLOOKUP(A26,STAGIONALITA!$A$3:$M$105,10,FALSE)*P26,"") -> 2470.221504 | K26: =IFERROR(VLOOKUP(A26,STAGIONALITA!$A$3:$M$105,11,FALSE)*P26,"") -> 3113.337835 | L26: =IFERROR(VLOOKUP(A26,STAGIONALITA!$A$3:$M$105,12,FALSE)*P26,"") -> 4143.915378 | M26: =IFERROR(VLOOKUP(A26,STAGIONALITA!$A$3:$M$105,13,FALSE)*P26,"") -> 2583.56115 | O26: Cordivari | P26: 31000
A27: Caleffi | B27: =IFERROR(VLOOKUP(A27,STAGIONALITA!$A$3:$M$105,2,FALSE)*P27,"") -> 1963.30233 | C27: =IFERROR(VLOOKUP(A27,STAGIONALITA!$A$3:$M$105,3,FALSE)*P27,"") -> 2554.628822 | D27: =IFERROR(VLOOKUP(A27,STAGIONALITA!$A$3:$M$105,4,FALSE)*P27,"") -> 2221.886284 | E27: =IFERROR(VLOOKUP(A27,STAGIONALITA!$A$3:$M$105,5,FALSE)*P27,"") -> 2226.281059 | F27: =IFERROR(VLOOKUP(A27,STAGIONALITA!$A$3:$M$105,6,FALSE)*P27,"") -> 2053.615461 | G27: =IFERROR(VLOOKUP(A27,STAGIONALITA!$A$3:$M$105,7,FALSE)*P27,"") -> 2643.143362 | H27: =IFERROR(VLOOKUP(A27,STAGIONALITA!$A$3:$M$105,8,FALSE)*P27,"") -> 2703.14626 | I27: =IFERROR(VLOOKUP(A27,STAGIONALITA!$A$3:$M$105,9,FALSE)*P27,"") -> 1141.006716 | J27: =IFERROR(VLOOKUP(A27,STAGIONALITA!$A$3:$M$105,10,FALSE)*P27,"") -> 2226.559564 | K27: =IFERROR(VLOOKUP(A27,STAGIONALITA!$A$3:$M$105,11,FALSE)*P27,"") -> 3292.13059 | L27: =IFERROR(VLOOKUP(A27,STAGIONALITA!$A$3:$M$105,12,FALSE)*P27,"") -> 2894.885642 | M27: =IFERROR(VLOOKUP(A27,STAGIONALITA!$A$3:$M$105,13,FALSE)*P27,"") -> 3079.413911 | O27: Caleffi | P27: 29000
A28: Enolgas | B28: =IFERROR(VLOOKUP(A28,STAGIONALITA!$A$3:$M$105,2,FALSE)*P28,"") -> 1734.790179 | C28: =IFERROR(VLOOKUP(A28,STAGIONALITA!$A$3:$M$105,3,FALSE)*P28,"") -> 1357.681172 | D28: =IFERROR(VLOOKUP(A28,STAGIONALITA!$A$3:$M$105,4,FALSE)*P28,"") -> 4111.41831 | E28: =IFERROR(VLOOKUP(A28,STAGIONALITA!$A$3:$M$105,5,FALSE)*P28,"") -> 2032.795689 | F28: =IFERROR(VLOOKUP(A28,STAGIONALITA!$A$3:$M$105,6,FALSE)*P28,"") -> 2212.42972 | G28: =IFERROR(VLOOKUP(A28,STAGIONALITA!$A$3:$M$105,7,FALSE)*P28,"") -> 1964.78946 | H28: =IFERROR(VLOOKUP(A28,STAGIONALITA!$A$3:$M$105,8,FALSE)*P28,"") -> 2283.549735 | I28: =IFERROR(VLOOKUP(A28,STAGIONALITA!$A$3:$M$105,9,FALSE)*P28,"") -> 1207.044393 | J28: =IFERROR(VLOOKUP(A28,STAGIONALITA!$A$3:$M$105,10,FALSE)*P28,"") -> 3922.95903 | K28: =IFERROR(VLOOKUP(A28,STAGIONALITA!$A$3:$M$105,11,FALSE)*P28,"") -> 2874.334928 | L28: =IFERROR(VLOOKUP(A28,STAGIONALITA!$A$3:$M$105,12,FALSE)*P28,"") -> 2528.08954 | M28: =IFERROR(VLOOKUP(A28,STAGIONALITA!$A$3:$M$105,13,FALSE)*P28,"") -> 1770.117843 | O28: Enolgas | P28: 28000
A29: Rems | B29: =IFERROR(VLOOKUP(A29,STAGIONALITA!$A$3:$M$105,2,FALSE)*P29,"") -> 1717.192269 | C29: =IFERROR(VLOOKUP(A29,STAGIONALITA!$A$3:$M$105,3,FALSE)*P29,"") -> 2507.46908 | D29: =IFERROR(VLOOKUP(A29,STAGIONALITA!$A$3:$M$105,4,FALSE)*P29,"") -> 2468.704824 | E29: =IFERROR(VLOOKUP(A29,STAGIONALITA!$A$3:$M$105,5,FALSE)*P29,"") -> 2436.793918 | F29: =IFERROR(VLOOKUP(A29,STAGIONALITA!$A$3:$M$105,6,FALSE)*P29,"") -> 2888.258286 | G29: =IFERROR(VLOOKUP(A29,STAGIONALITA!$A$3:$M$105,7,FALSE)*P29,"") -> 1800.503293 | H29: =IFERROR(VLOOKUP(A29,STAGIONALITA!$A$3:$M$105,8,FALSE)*P29,"") -> 2260.534347 | I29: =IFERROR(VLOOKUP(A29,STAGIONALITA!$A$3:$M$105,9,FALSE)*P29,"") -> 341.382449 | J29: =IFERROR(VLOOKUP(A29,STAGIONALITA!$A$3:$M$105,10,FALSE)*P29,"") -> 2112.544841 | K29: =IFERROR(VLOOKUP(A29,STAGIONALITA!$A$3:$M$105,11,FALSE)*P29,"") -> 3599.93575 | L29: =IFERROR(VLOOKUP(A29,STAGIONALITA!$A$3:$M$105,12,FALSE)*P29,"") -> 3862.718852 | M29: =IFERROR(VLOOKUP(A29,STAGIONALITA!$A$3:$M$105,13,FALSE)*P29,"") -> 2003.962092 | O29: Rems | P29: 28000
A30: Thermomat Saniline | B30: =IFERROR(VLOOKUP(A30,STAGIONALITA!$A$3:$M$105,2,FALSE)*P30,"") -> 1749.780085 | C30: =IFERROR(VLOOKUP(A30,STAGIONALITA!$A$3:$M$105,3,FALSE)*P30,"") -> 2167.423069 | D30: =IFERROR(VLOOKUP(A30,STAGIONALITA!$A$3:$M$105,4,FALSE)*P30,"") -> 3604.846683 | E30: =IFERROR(VLOOKUP(A30,STAGIONALITA!$A$3:$M$105,5,FALSE)*P30,"") -> 3620.999696 | F30: =IFERROR(VLOOKUP(A30,STAGIONALITA!$A$3:$M$105,6,FALSE)*P30,"") -> 1965.996933 | G30: =IFERROR(VLOOKUP(A30,STAGIONALITA!$A$3:$M$105,7,FALSE)*P30,"") -> 1068.628901 | H30: =IFERROR(VLOOKUP(A30,STAGIONALITA!$A$3:$M$105,8,FALSE)*P30,"") -> 2613.674402 | I30: =IFERROR(VLOOKUP(A30,STAGIONALITA!$A$3:$M$105,9,FALSE)*P30,"") -> 333.7640804 | J30: =IFERROR(VLOOKUP(A30,STAGIONALITA!$A$3:$M$105,10,FALSE)*P30,"") -> 3093.204836 | K30: =IFERROR(VLOOKUP(A30,STAGIONALITA!$A$3:$M$105,11,FALSE)*P30,"") -> 1578.713831 | L30: =IFERROR(VLOOKUP(A30,STAGIONALITA!$A$3:$M$105,12,FALSE)*P30,"") -> 1391.494562 | M30: =IFERROR(VLOOKUP(A30,STAGIONALITA!$A$3:$M$105,13,FALSE)*P30,"") -> 1811.472921 | O30: Thermomat Saniline | P30: 25000
A31: Camon | B31: =IFERROR(VLOOKUP(A31,STAGIONALITA!$A$3:$M$105,2,FALSE)*P31,"") -> 0 | C31: =IFERROR(VLOOKUP(A31,STAGIONALITA!$A$3:$M$105,3,FALSE)*P31,"") -> 0 | D31: =IFERROR(VLOOKUP(A31,STAGIONALITA!$A$3:$M$105,4,FALSE)*P31,"") -> 0 | E31: =IFERROR(VLOOKUP(A31,STAGIONALITA!$A$3:$M$105,5,FALSE)*P31,"") -> 0 | F31: =IFERROR(VLOOKUP(A31,STAGIONALITA!$A$3:$M$105,6,FALSE)*P31,"") -> 0 | G31: =IFERROR(VLOOKUP(A31,STAGIONALITA!$A$3:$M$105,7,FALSE)*P31,"") -> 10833.3549 | H31: =IFERROR(VLOOKUP(A31,STAGIONALITA!$A$3:$M$105,8,FALSE)*P31,"") -> 0 | I31: =IFERROR(VLOOKUP(A31,STAGIONALITA!$A$3:$M$105,9,FALSE)*P31,"") -> 0 | J31: =IFERROR(VLOOKUP(A31,STAGIONALITA!$A$3:$M$105,10,FALSE)*P31,"") -> 0 | K31: =IFERROR(VLOOKUP(A31,STAGIONALITA!$A$3:$M$105,11,FALSE)*P31,"") -> 7340.558144 | L31: =IFERROR(VLOOKUP(A31,STAGIONALITA!$A$3:$M$105,12,FALSE)*P31,"") -> 0 | M31: =IFERROR(VLOOKUP(A31,STAGIONALITA!$A$3:$M$105,13,FALSE)*P31,"") -> 3826.086957 | O31: Camon | P31: 22000
A32: Farg | B32: =IFERROR(VLOOKUP(A32,STAGIONALITA!$A$3:$M$105,2,FALSE)*P32,"") -> 225.4847346 | C32: =IFERROR(VLOOKUP(A32,STAGIONALITA!$A$3:$M$105,3,FALSE)*P32,"") -> 2105.591493 | D32: =IFERROR(VLOOKUP(A32,STAGIONALITA!$A$3:$M$105,4,FALSE)*P32,"") -> 1638.695765 | E32: =IFERROR(VLOOKUP(A32,STAGIONALITA!$A$3:$M$105,5,FALSE)*P32,"") -> 2077.499213 | F32: =IFERROR(VLOOKUP(A32,STAGIONALITA!$A$3:$M$105,6,FALSE)*P32,"") -> 2977.112295 | G32: =IFERROR(VLOOKUP(A32,STAGIONALITA!$A$3:$M$105,7,FALSE)*P32,"") -> 2878.883398 | H32: =IFERROR(VLOOKUP(A32,STAGIONALITA!$A$3:$M$105,8,FALSE)*P32,"") -> 1749.21407 | I32: =IFERROR(VLOOKUP(A32,STAGIONALITA!$A$3:$M$105,9,FALSE)*P32,"") -> 0 | J32: =IFERROR(VLOOKUP(A32,STAGIONALITA!$A$3:$M$105,10,FALSE)*P32,"") -> 3359.151261 | K32: =IFERROR(VLOOKUP(A32,STAGIONALITA!$A$3:$M$105,11,FALSE)*P32,"") -> 2500.811344 | L32: =IFERROR(VLOOKUP(A32,STAGIONALITA!$A$3:$M$105,12,FALSE)*P32,"") -> 649.4477352 | M32: =IFERROR(VLOOKUP(A32,STAGIONALITA!$A$3:$M$105,13,FALSE)*P32,"") -> 1838.108692 | O32: Farg | P32: 22000
A33: Omp Tea | B33: =IFERROR(VLOOKUP(A33,STAGIONALITA!$A$3:$M$105,2,FALSE)*P33,"") -> 1476.830056 | C33: =IFERROR(VLOOKUP(A33,STAGIONALITA!$A$3:$M$105,3,FALSE)*P33,"") -> 1477.850301 | D33: =IFERROR(VLOOKUP(A33,STAGIONALITA!$A$3:$M$105,4,FALSE)*P33,"") -> 2272.624644 | E33: =IFERROR(VLOOKUP(A33,STAGIONALITA!$A$3:$M$105,5,FALSE)*P33,"") -> 1188.698271 | F33: =IFERROR(VLOOKUP(A33,STAGIONALITA!$A$3:$M$105,6,FALSE)*P33,"") -> 1713.023885 | G33: =IFERROR(VLOOKUP(A33,STAGIONALITA!$A$3:$M$105,7,FALSE)*P33,"") -> 1772.972785 | H33: =IFERROR(VLOOKUP(A33,STAGIONALITA!$A$3:$M$105,8,FALSE)*P33,"") -> 1702.836894 | I33: =IFERROR(VLOOKUP(A33,STAGIONALITA!$A$3:$M$105,9,FALSE)*P33,"") -> 751.2421105 | J33: =IFERROR(VLOOKUP(A33,STAGIONALITA!$A$3:$M$105,10,FALSE)*P33,"") -> 1638.181549 | K33: =IFERROR(VLOOKUP(A33,STAGIONALITA!$A$3:$M$105,11,FALSE)*P33,"") -> 2171.219674 | L33: =IFERROR(VLOOKUP(A33,STAGIONALITA!$A$3:$M$105,12,FALSE)*P33,"") -> 1198.47205 | M33: =IFERROR(VLOOKUP(A33,STAGIONALITA!$A$3:$M$105,13,FALSE)*P33,"") -> 636.0477811 | O33: Omp Tea | P33: 18000
A34: Ercos | B34: =IFERROR(VLOOKUP(A34,STAGIONALITA!$A$3:$M$105,2,FALSE)*P34,"") -> 1097.524164 | C34: =IFERROR(VLOOKUP(A34,STAGIONALITA!$A$3:$M$105,3,FALSE)*P34,"") -> 1408.552009 | D34: =IFERROR(VLOOKUP(A34,STAGIONALITA!$A$3:$M$105,4,FALSE)*P34,"") -> 2002.583765 | E34: =IFERROR(VLOOKUP(A34,STAGIONALITA!$A$3:$M$105,5,FALSE)*P34,"") -> 2308.665444 | F34: =IFERROR(VLOOKUP(A34,STAGIONALITA!$A$3:$M$105,6,FALSE)*P34,"") -> 1591.536523 | G34: =IFERROR(VLOOKUP(A34,STAGIONALITA!$A$3:$M$105,7,FALSE)*P34,"") -> 1223.832402 | H34: =IFERROR(VLOOKUP(A34,STAGIONALITA!$A$3:$M$105,8,FALSE)*P34,"") -> 1878.922967 | I34: =IFERROR(VLOOKUP(A34,STAGIONALITA!$A$3:$M$105,9,FALSE)*P34,"") -> 0 | J34: =IFERROR(VLOOKUP(A34,STAGIONALITA!$A$3:$M$105,10,FALSE)*P34,"") -> 2209.059538 | K34: =IFERROR(VLOOKUP(A34,STAGIONALITA!$A$3:$M$105,11,FALSE)*P34,"") -> 1336.874684 | L34: =IFERROR(VLOOKUP(A34,STAGIONALITA!$A$3:$M$105,12,FALSE)*P34,"") -> 1373.987877 | M34: =IFERROR(VLOOKUP(A34,STAGIONALITA!$A$3:$M$105,13,FALSE)*P34,"") -> 568.4606254 | O34: Ercos | P34: 17000
A35: Varem | B35: =IFERROR(VLOOKUP(A35,STAGIONALITA!$A$3:$M$105,2,FALSE)*P35,"") -> 1337.818415 | C35: =IFERROR(VLOOKUP(A35,STAGIONALITA!$A$3:$M$105,3,FALSE)*P35,"") -> 718.2140547 | D35: =IFERROR(VLOOKUP(A35,STAGIONALITA!$A$3:$M$105,4,FALSE)*P35,"") -> 3108.577007 | E35: =IFERROR(VLOOKUP(A35,STAGIONALITA!$A$3:$M$105,5,FALSE)*P35,"") -> 1690.894697 | F35: =IFERROR(VLOOKUP(A35,STAGIONALITA!$A$3:$M$105,6,FALSE)*P35,"") -> 1443.694456 | G35: =IFERROR(VLOOKUP(A35,STAGIONALITA!$A$3:$M$105,7,FALSE)*P35,"") -> 1285.823575 | H35: =IFERROR(VLOOKUP(A35,STAGIONALITA!$A$3:$M$105,8,FALSE)*P35,"") -> 698.723528 | I35: =IFERROR(VLOOKUP(A35,STAGIONALITA!$A$3:$M$105,9,FALSE)*P35,"") -> 1059.845946 | J35: =IFERROR(VLOOKUP(A35,STAGIONALITA!$A$3:$M$105,10,FALSE)*P35,"") -> 1528.065982 | K35: =IFERROR(VLOOKUP(A35,STAGIONALITA!$A$3:$M$105,11,FALSE)*P35,"") -> 1325.03043 | L35: =IFERROR(VLOOKUP(A35,STAGIONALITA!$A$3:$M$105,12,FALSE)*P35,"") -> 1621.229774 | M35: =IFERROR(VLOOKUP(A35,STAGIONALITA!$A$3:$M$105,13,FALSE)*P35,"") -> 1182.082137 | O35: Varem | P35: 17000
A36: =IF(O36=0,"",O36) -> Fluidmaster | B36: =IFERROR(VLOOKUP(A36,STAGIONALITA!$A$3:$M$105,2,FALSE)*P36,"") -> 1868.261622 | C36: =IFERROR(VLOOKUP(A36,STAGIONALITA!$A$3:$M$105,3,FALSE)*P36,"") -> 1064.415486 | D36: =IFERROR(VLOOKUP(A36,STAGIONALITA!$A$3:$M$105,4,FALSE)*P36,"") -> 1417.471414 | E36: =IFERROR(VLOOKUP(A36,STAGIONALITA!$A$3:$M$105,5,FALSE)*P36,"") -> 1650.76784 | F36: =IFERROR(VLOOKUP(A36,STAGIONALITA!$A$3:$M$105,6,FALSE)*P36,"") -> 410.6367853 | G36: =IFERROR(VLOOKUP(A36,STAGIONALITA!$A$3:$M$105,7,FALSE)*P36,"") -> 3518.31505 | H36: =IFERROR(VLOOKUP(A36,STAGIONALITA!$A$3:$M$105,8,FALSE)*P36,"") -> 333.806495 | I36: =IFERROR(VLOOKUP(A36,STAGIONALITA!$A$3:$M$105,9,FALSE)*P36,"") -> 159.1129327 | J36: =IFERROR(VLOOKUP(A36,STAGIONALITA!$A$3:$M$105,10,FALSE)*P36,"") -> 1679.133466 | K36: =IFERROR(VLOOKUP(A36,STAGIONALITA!$A$3:$M$105,11,FALSE)*P36,"") -> 3328.176051 | L36: =IFERROR(VLOOKUP(A36,STAGIONALITA!$A$3:$M$105,12,FALSE)*P36,"") -> 994.969933 | M36: =IFERROR(VLOOKUP(A36,STAGIONALITA!$A$3:$M$105,13,FALSE)*P36,"") -> 574.9329254 | O36: Fluidmaster | P36: 17000
A37: Samsung | B37: =IFERROR(VLOOKUP(A37,STAGIONALITA!$A$3:$M$105,2,FALSE)*P37,"") -> 291.4843061 | C37: =IFERROR(VLOOKUP(A37,STAGIONALITA!$A$3:$M$105,3,FALSE)*P37,"") -> 2964.786004 | D37: =IFERROR(VLOOKUP(A37,STAGIONALITA!$A$3:$M$105,4,FALSE)*P37,"") -> 2678.651775 | E37: =IFERROR(VLOOKUP(A37,STAGIONALITA!$A$3:$M$105,5,FALSE)*P37,"") -> 2063.295519 | F37: =IFERROR(VLOOKUP(A37,STAGIONALITA!$A$3:$M$105,6,FALSE)*P37,"") -> 1697.191913 | G37: =IFERROR(VLOOKUP(A37,STAGIONALITA!$A$3:$M$105,7,FALSE)*P37,"") -> 1875.056243 | H37: =IFERROR(VLOOKUP(A37,STAGIONALITA!$A$3:$M$105,8,FALSE)*P37,"") -> 774.8280098 | I37: =IFERROR(VLOOKUP(A37,STAGIONALITA!$A$3:$M$105,9,FALSE)*P37,"") -> 447.2434061 | J37: =IFERROR(VLOOKUP(A37,STAGIONALITA!$A$3:$M$105,10,FALSE)*P37,"") -> 218.086936 | K37: =IFERROR(VLOOKUP(A37,STAGIONALITA!$A$3:$M$105,11,FALSE)*P37,"") -> 2014.84746 | L37: =IFERROR(VLOOKUP(A37,STAGIONALITA!$A$3:$M$105,12,FALSE)*P37,"") -> 1075.937275 | M37: =IFERROR(VLOOKUP(A37,STAGIONALITA!$A$3:$M$105,13,FALSE)*P37,"") -> 898.5911537 | O37: Samsung | P37: 17000
A38: Fimi | B38: =IFERROR(VLOOKUP(A38,STAGIONALITA!$A$3:$M$105,2,FALSE)*P38,"") -> 561.409975 | C38: =IFERROR(VLOOKUP(A38,STAGIONALITA!$A$3:$M$105,3,FALSE)*P38,"") -> 949.7473974 | D38: =IFERROR(VLOOKUP(A38,STAGIONALITA!$A$3:$M$105,4,FALSE)*P38,"") -> 1421.234462 | E38: =IFERROR(VLOOKUP(A38,STAGIONALITA!$A$3:$M$105,5,FALSE)*P38,"") -> 947.9814152 | F38: =IFERROR(VLOOKUP(A38,STAGIONALITA!$A$3:$M$105,6,FALSE)*P38,"") -> 811.417573 | G38: =IFERROR(VLOOKUP(A38,STAGIONALITA!$A$3:$M$105,7,FALSE)*P38,"") -> 1209.738741 | H38: =IFERROR(VLOOKUP(A38,STAGIONALITA!$A$3:$M$105,8,FALSE)*P38,"") -> 1457.758901 | I38: =IFERROR(VLOOKUP(A38,STAGIONALITA!$A$3:$M$105,9,FALSE)*P38,"") -> 556.1957032 | J38: =IFERROR(VLOOKUP(A38,STAGIONALITA!$A$3:$M$105,10,FALSE)*P38,"") -> 1565.322131 | K38: =IFERROR(VLOOKUP(A38,STAGIONALITA!$A$3:$M$105,11,FALSE)*P38,"") -> 1595.567172 | L38: =IFERROR(VLOOKUP(A38,STAGIONALITA!$A$3:$M$105,12,FALSE)*P38,"") -> 713.4329251 | M38: =IFERROR(VLOOKUP(A38,STAGIONALITA!$A$3:$M$105,13,FALSE)*P38,"") -> 1210.193605 | O38: Fimi | P38: 13000
A39: Va-Albertoni | B39: =IFERROR(VLOOKUP(A39,STAGIONALITA!$A$3:$M$105,2,FALSE)*P39,"") -> 870.068936 | C39: =IFERROR(VLOOKUP(A39,STAGIONALITA!$A$3:$M$105,3,FALSE)*P39,"") -> 1161.593414 | D39: =IFERROR(VLOOKUP(A39,STAGIONALITA!$A$3:$M$105,4,FALSE)*P39,"") -> 839.2815508 | E39: =IFERROR(VLOOKUP(A39,STAGIONALITA!$A$3:$M$105,5,FALSE)*P39,"") -> 1657.112749 | F39: =IFERROR(VLOOKUP(A39,STAGIONALITA!$A$3:$M$105,6,FALSE)*P39,"") -> 1155.573931 | G39: =IFERROR(VLOOKUP(A39,STAGIONALITA!$A$3:$M$105,7,FALSE)*P39,"") -> 718.1844294 | H39: =IFERROR(VLOOKUP(A39,STAGIONALITA!$A$3:$M$105,8,FALSE)*P39,"") -> 1006.395185 | I39: =IFERROR(VLOOKUP(A39,STAGIONALITA!$A$3:$M$105,9,FALSE)*P39,"") -> 1063.264261 | J39: =IFERROR(VLOOKUP(A39,STAGIONALITA!$A$3:$M$105,10,FALSE)*P39,"") -> 735.5539994 | K39: =IFERROR(VLOOKUP(A39,STAGIONALITA!$A$3:$M$105,11,FALSE)*P39,"") -> 986.915242 | L39: =IFERROR(VLOOKUP(A39,STAGIONALITA!$A$3:$M$105,12,FALSE)*P39,"") -> 235.6340455 | M39: =IFERROR(VLOOKUP(A39,STAGIONALITA!$A$3:$M$105,13,FALSE)*P39,"") -> 570.4222569 | O39: Va-Albertoni | P39: 11000
A40: Carrier | B40: =IFERROR(VLOOKUP(A40,STAGIONALITA!$A$3:$M$105,2,FALSE)*P40,"") -> 0 | C40: =IFERROR(VLOOKUP(A40,STAGIONALITA!$A$3:$M$105,3,FALSE)*P40,"") -> 0 | D40: =IFERROR(VLOOKUP(A40,STAGIONALITA!$A$3:$M$105,4,FALSE)*P40,"") -> 0 | E40: =IFERROR(VLOOKUP(A40,STAGIONALITA!$A$3:$M$105,5,FALSE)*P40,"") -> 0 | F40: =IFERROR(VLOOKUP(A40,STAGIONALITA!$A$3:$M$105,6,FALSE)*P40,"") -> 3377.324805 | G40: =IFERROR(VLOOKUP(A40,STAGIONALITA!$A$3:$M$105,7,FALSE)*P40,"") -> 477.4738411 | H40: =IFERROR(VLOOKUP(A40,STAGIONALITA!$A$3:$M$105,8,FALSE)*P40,"") -> 35.60561369 | I40: =IFERROR(VLOOKUP(A40,STAGIONALITA!$A$3:$M$105,9,FALSE)*P40,"") -> 2282.345453 | J40: =IFERROR(VLOOKUP(A40,STAGIONALITA!$A$3:$M$105,10,FALSE)*P40,"") -> 953.5815195 | K40: =IFERROR(VLOOKUP(A40,STAGIONALITA!$A$3:$M$105,11,FALSE)*P40,"") -> 1551.704598 | L40: =IFERROR(VLOOKUP(A40,STAGIONALITA!$A$3:$M$105,12,FALSE)*P40,"") -> 1474.943335 | M40: =IFERROR(VLOOKUP(A40,STAGIONALITA!$A$3:$M$105,13,FALSE)*P40,"") -> 847.020834 | O40: Carrier | P40: 11000
A41: Grohe | B41: =IFERROR(VLOOKUP(A41,STAGIONALITA!$A$3:$M$105,2,FALSE)*P41,"") -> 505.9177308 | C41: =IFERROR(VLOOKUP(A41,STAGIONALITA!$A$3:$M$105,3,FALSE)*P41,"") -> 1043.983476 | D41: =IFERROR(VLOOKUP(A41,STAGIONALITA!$A$3:$M$105,4,FALSE)*P41,"") -> 537.7349429 | E41: =IFERROR(VLOOKUP(A41,STAGIONALITA!$A$3:$M$105,5,FALSE)*P41,"") -> 518.2175793 | F41: =IFERROR(VLOOKUP(A41,STAGIONALITA!$A$3:$M$105,6,FALSE)*P41,"") -> 293.1213293 | G41: =IFERROR(VLOOKUP(A41,STAGIONALITA!$A$3:$M$105,7,FALSE)*P41,"") -> 1005.189333 | H41: =IFERROR(VLOOKUP(A41,STAGIONALITA!$A$3:$M$105,8,FALSE)*P41,"") -> 444.9297288 | I41: =IFERROR(VLOOKUP(A41,STAGIONALITA!$A$3:$M$105,9,FALSE)*P41,"") -> 202.4813696 | J41: =IFERROR(VLOOKUP(A41,STAGIONALITA!$A$3:$M$105,10,FALSE)*P41,"") -> 775.0188693 | K41: =IFERROR(VLOOKUP(A41,STAGIONALITA!$A$3:$M$105,11,FALSE)*P41,"") -> 2514.308874 | L41: =IFERROR(VLOOKUP(A41,STAGIONALITA!$A$3:$M$105,12,FALSE)*P41,"") -> 747.501191 | M41: =IFERROR(VLOOKUP(A41,STAGIONALITA!$A$3:$M$105,13,FALSE)*P41,"") -> 1411.595575 | O41: Grohe | P41: 10000
A42: Rainbox | B42: =IFERROR(VLOOKUP(A42,STAGIONALITA!$A$3:$M$105,2,FALSE)*P42,"") -> 691.0062596 | C42: =IFERROR(VLOOKUP(A42,STAGIONALITA!$A$3:$M$105,3,FALSE)*P42,"") -> 590.7789063 | D42: =IFERROR(VLOOKUP(A42,STAGIONALITA!$A$3:$M$105,4,FALSE)*P42,"") -> 723.869139 | E42: =IFERROR(VLOOKUP(A42,STAGIONALITA!$A$3:$M$105,5,FALSE)*P42,"") -> 1039.299634 | F42: =IFERROR(VLOOKUP(A42,STAGIONALITA!$A$3:$M$105,6,FALSE)*P42,"") -> 1329.795087 | G42: =IFERROR(VLOOKUP(A42,STAGIONALITA!$A$3:$M$105,7,FALSE)*P42,"") -> 720.0602338 | H42: =IFERROR(VLOOKUP(A42,STAGIONALITA!$A$3:$M$105,8,FALSE)*P42,"") -> 1679.550018 | I42: =IFERROR(VLOOKUP(A42,STAGIONALITA!$A$3:$M$105,9,FALSE)*P42,"") -> 449.5393882 | J42: =IFERROR(VLOOKUP(A42,STAGIONALITA!$A$3:$M$105,10,FALSE)*P42,"") -> 615.8468171 | K42: =IFERROR(VLOOKUP(A42,STAGIONALITA!$A$3:$M$105,11,FALSE)*P42,"") -> 493.8289831 | L42: =IFERROR(VLOOKUP(A42,STAGIONALITA!$A$3:$M$105,12,FALSE)*P42,"") -> 476.2017243 | M42: =IFERROR(VLOOKUP(A42,STAGIONALITA!$A$3:$M$105,13,FALSE)*P42,"") -> 190.2238101 | O42: Rainbox | P42: 9000
A43: Ideal Standard | B43: =IFERROR(VLOOKUP(A43,STAGIONALITA!$A$3:$M$105,2,FALSE)*P43,"") -> 0 | C43: =IFERROR(VLOOKUP(A43,STAGIONALITA!$A$3:$M$105,3,FALSE)*P43,"") -> 2016.52717 | D43: =IFERROR(VLOOKUP(A43,STAGIONALITA!$A$3:$M$105,4,FALSE)*P43,"") -> 101.2981309 | E43: =IFERROR(VLOOKUP(A43,STAGIONALITA!$A$3:$M$105,5,FALSE)*P43,"") -> 655.652596 | F43: =IFERROR(VLOOKUP(A43,STAGIONALITA!$A$3:$M$105,6,FALSE)*P43,"") -> 772.3304786 | G43: =IFERROR(VLOOKUP(A43,STAGIONALITA!$A$3:$M$105,7,FALSE)*P43,"") -> 677.4464911 | H43: =IFERROR(VLOOKUP(A43,STAGIONALITA!$A$3:$M$105,8,FALSE)*P43,"") -> 830.0396895 | I43: =IFERROR(VLOOKUP(A43,STAGIONALITA!$A$3:$M$105,9,FALSE)*P43,"") -> 276.3383452 | J43: =IFERROR(VLOOKUP(A43,STAGIONALITA!$A$3:$M$105,10,FALSE)*P43,"") -> 1193.778252 | K43: =IFERROR(VLOOKUP(A43,STAGIONALITA!$A$3:$M$105,11,FALSE)*P43,"") -> 921.3109473 | L43: =IFERROR(VLOOKUP(A43,STAGIONALITA!$A$3:$M$105,12,FALSE)*P43,"") -> 703.2289428 | M43: =IFERROR(VLOOKUP(A43,STAGIONALITA!$A$3:$M$105,13,FALSE)*P43,"") -> 852.0489562 | O43: Ideal Standard | P43: 9000
A44: Bmeters | B44: =IFERROR(VLOOKUP(A44,STAGIONALITA!$A$3:$M$105,2,FALSE)*P44,"") -> 208.8194079 | C44: =IFERROR(VLOOKUP(A44,STAGIONALITA!$A$3:$M$105,3,FALSE)*P44,"") -> 1672.506786 | D44: =IFERROR(VLOOKUP(A44,STAGIONALITA!$A$3:$M$105,4,FALSE)*P44,"") -> 1217.57641 | E44: =IFERROR(VLOOKUP(A44,STAGIONALITA!$A$3:$M$105,5,FALSE)*P44,"") -> 74.61164038 | F44: =IFERROR(VLOOKUP(A44,STAGIONALITA!$A$3:$M$105,6,FALSE)*P44,"") -> 907.2137293 | G44: =IFERROR(VLOOKUP(A44,STAGIONALITA!$A$3:$M$105,7,FALSE)*P44,"") -> 143.1097714 | H44: =IFERROR(VLOOKUP(A44,STAGIONALITA!$A$3:$M$105,8,FALSE)*P44,"") -> 934.6962835 | I44: =IFERROR(VLOOKUP(A44,STAGIONALITA!$A$3:$M$105,9,FALSE)*P44,"") -> 206.1339819 | J44: =IFERROR(VLOOKUP(A44,STAGIONALITA!$A$3:$M$105,10,FALSE)*P44,"") -> 1377.90877 | K44: =IFERROR(VLOOKUP(A44,STAGIONALITA!$A$3:$M$105,11,FALSE)*P44,"") -> 141.50021 | L44: =IFERROR(VLOOKUP(A44,STAGIONALITA!$A$3:$M$105,12,FALSE)*P44,"") -> 986.9604351 | M44: =IFERROR(VLOOKUP(A44,STAGIONALITA!$A$3:$M$105,13,FALSE)*P44,"") -> 128.9625742 | O44: Bmeters | P44: 8000
A45: Valsir | B45: =IFERROR(VLOOKUP(A45,STAGIONALITA!$A$3:$M$105,2,FALSE)*P45,"") -> 610.7066933 | C45: =IFERROR(VLOOKUP(A45,STAGIONALITA!$A$3:$M$105,3,FALSE)*P45,"") -> 521.4350904 | D45: =IFERROR(VLOOKUP(A45,STAGIONALITA!$A$3:$M$105,4,FALSE)*P45,"") -> 783.8972454 | E45: =IFERROR(VLOOKUP(A45,STAGIONALITA!$A$3:$M$105,5,FALSE)*P45,"") -> 440.4345591 | F45: =IFERROR(VLOOKUP(A45,STAGIONALITA!$A$3:$M$105,6,FALSE)*P45,"") -> 514.0812994 | G45: =IFERROR(VLOOKUP(A45,STAGIONALITA!$A$3:$M$105,7,FALSE)*P45,"") -> 550.7547508 | H45: =IFERROR(VLOOKUP(A45,STAGIONALITA!$A$3:$M$105,8,FALSE)*P45,"") -> 572.9582691 | I45: =IFERROR(VLOOKUP(A45,STAGIONALITA!$A$3:$M$105,9,FALSE)*P45,"") -> 74.31082474 | J45: =IFERROR(VLOOKUP(A45,STAGIONALITA!$A$3:$M$105,10,FALSE)*P45,"") -> 530.9765843 | K45: =IFERROR(VLOOKUP(A45,STAGIONALITA!$A$3:$M$105,11,FALSE)*P45,"") -> 634.795856 | L45: =IFERROR(VLOOKUP(A45,STAGIONALITA!$A$3:$M$105,12,FALSE)*P45,"") -> 394.4128423 | M45: =IFERROR(VLOOKUP(A45,STAGIONALITA!$A$3:$M$105,13,FALSE)*P45,"") -> 371.235985 | O45: Valsir | P45: 6000
A46: Neoperl | B46: =IFERROR(VLOOKUP(A46,STAGIONALITA!$A$3:$M$105,2,FALSE)*P46,"") -> 472.3091725 | C46: =IFERROR(VLOOKUP(A46,STAGIONALITA!$A$3:$M$105,3,FALSE)*P46,"") -> 581.9760925 | D46: =IFERROR(VLOOKUP(A46,STAGIONALITA!$A$3:$M$105,4,FALSE)*P46,"") -> 402.4507218 | E46: =IFERROR(VLOOKUP(A46,STAGIONALITA!$A$3:$M$105,5,FALSE)*P46,"") -> 638.877366 | F46: =IFERROR(VLOOKUP(A46,STAGIONALITA!$A$3:$M$105,6,FALSE)*P46,"") -> 631.417218 | G46: =IFERROR(VLOOKUP(A46,STAGIONALITA!$A$3:$M$105,7,FALSE)*P46,"") -> 534.7032727 | H46: =IFERROR(VLOOKUP(A46,STAGIONALITA!$A$3:$M$105,8,FALSE)*P46,"") -> 476.8284742 | I46: =IFERROR(VLOOKUP(A46,STAGIONALITA!$A$3:$M$105,9,FALSE)*P46,"") -> 268.4728711 | J46: =IFERROR(VLOOKUP(A46,STAGIONALITA!$A$3:$M$105,10,FALSE)*P46,"") -> 536.7951894 | K46: =IFERROR(VLOOKUP(A46,STAGIONALITA!$A$3:$M$105,11,FALSE)*P46,"") -> 650.5418663 | L46: =IFERROR(VLOOKUP(A46,STAGIONALITA!$A$3:$M$105,12,FALSE)*P46,"") -> 491.5205926 | M46: =IFERROR(VLOOKUP(A46,STAGIONALITA!$A$3:$M$105,13,FALSE)*P46,"") -> 314.1071629 | O46: Neoperl | P46: 6000
A47: System Group (Rototec) | B47: =IFERROR(VLOOKUP(A47,STAGIONALITA!$A$3:$M$105,2,FALSE)*P47,"") -> 262.7291276 | C47: =IFERROR(VLOOKUP(A47,STAGIONALITA!$A$3:$M$105,3,FALSE)*P47,"") -> 0 | D47: =IFERROR(VLOOKUP(A47,STAGIONALITA!$A$3:$M$105,4,FALSE)*P47,"") -> 444.1822909 | E47: =IFERROR(VLOOKUP(A47,STAGIONALITA!$A$3:$M$105,5,FALSE)*P47,"") -> 478.3208911 | F47: =IFERROR(VLOOKUP(A47,STAGIONALITA!$A$3:$M$105,6,FALSE)*P47,"") -> 485.5808026 | G47: =IFERROR(VLOOKUP(A47,STAGIONALITA!$A$3:$M$105,7,FALSE)*P47,"") -> 834.9870972 | H47: =IFERROR(VLOOKUP(A47,STAGIONALITA!$A$3:$M$105,8,FALSE)*P47,"") -> 476.8985982 | I47: =IFERROR(VLOOKUP(A47,STAGIONALITA!$A$3:$M$105,9,FALSE)*P47,"") -> 176.7549261 | J47: =IFERROR(VLOOKUP(A47,STAGIONALITA!$A$3:$M$105,10,FALSE)*P47,"") -> 314.9154679 | K47: =IFERROR(VLOOKUP(A47,STAGIONALITA!$A$3:$M$105,11,FALSE)*P47,"") -> 94.03881958 | L47: =IFERROR(VLOOKUP(A47,STAGIONALITA!$A$3:$M$105,12,FALSE)*P47,"") -> 368.2908701 | M47: =IFERROR(VLOOKUP(A47,STAGIONALITA!$A$3:$M$105,13,FALSE)*P47,"") -> 63.30110887 | O47: System Group (Rototec) | P47: 4000
A48: Tecnosystemi | B48: =IFERROR(VLOOKUP(A48,STAGIONALITA!$A$3:$M$105,2,FALSE)*P48,"") -> 178.5233491 | C48: =IFERROR(VLOOKUP(A48,STAGIONALITA!$A$3:$M$105,3,FALSE)*P48,"") -> 208.286185 | D48: =IFERROR(VLOOKUP(A48,STAGIONALITA!$A$3:$M$105,4,FALSE)*P48,"") -> 337.8449856 | E48: =IFERROR(VLOOKUP(A48,STAGIONALITA!$A$3:$M$105,5,FALSE)*P48,"") -> 209.8575696 | F48: =IFERROR(VLOOKUP(A48,STAGIONALITA!$A$3:$M$105,6,FALSE)*P48,"") -> 440.7404313 | G48: =IFERROR(VLOOKUP(A48,STAGIONALITA!$A$3:$M$105,7,FALSE)*P48,"") -> 166.1254965 | H48: =IFERROR(VLOOKUP(A48,STAGIONALITA!$A$3:$M$105,8,FALSE)*P48,"") -> 288.8198762 | I48: =IFERROR(VLOOKUP(A48,STAGIONALITA!$A$3:$M$105,9,FALSE)*P48,"") -> 160.8699909 | J48: =IFERROR(VLOOKUP(A48,STAGIONALITA!$A$3:$M$105,10,FALSE)*P48,"") -> 311.5587857 | K48: =IFERROR(VLOOKUP(A48,STAGIONALITA!$A$3:$M$105,11,FALSE)*P48,"") -> 262.4901038 | L48: =IFERROR(VLOOKUP(A48,STAGIONALITA!$A$3:$M$105,12,FALSE)*P48,"") -> 315.0952718 | M48: =IFERROR(VLOOKUP(A48,STAGIONALITA!$A$3:$M$105,13,FALSE)*P48,"") -> 119.7879544 | O48: Tecnosystemi | P48: 3000
A49: KINEDO | B49: =IFERROR(VLOOKUP(A49,STAGIONALITA!$A$3:$M$105,2,FALSE)*P49,"") -> 0 | C49: =IFERROR(VLOOKUP(A49,STAGIONALITA!$A$3:$M$105,3,FALSE)*P49,"") -> 0 | D49: =IFERROR(VLOOKUP(A49,STAGIONALITA!$A$3:$M$105,4,FALSE)*P49,"") -> 0 | E49: =IFERROR(VLOOKUP(A49,STAGIONALITA!$A$3:$M$105,5,FALSE)*P49,"") -> 0 | F49: =IFERROR(VLOOKUP(A49,STAGIONALITA!$A$3:$M$105,6,FALSE)*P49,"") -> 1370.150307 | G49: =IFERROR(VLOOKUP(A49,STAGIONALITA!$A$3:$M$105,7,FALSE)*P49,"") -> 422.3776337 | H49: =IFERROR(VLOOKUP(A49,STAGIONALITA!$A$3:$M$105,8,FALSE)*P49,"") -> 186.0927198 | I49: =IFERROR(VLOOKUP(A49,STAGIONALITA!$A$3:$M$105,9,FALSE)*P49,"") -> -0.3192592257 | J49: =IFERROR(VLOOKUP(A49,STAGIONALITA!$A$3:$M$105,10,FALSE)*P49,"") -> 466.2037988 | K49: =IFERROR(VLOOKUP(A49,STAGIONALITA!$A$3:$M$105,11,FALSE)*P49,"") -> 124.5325755 | L49: =IFERROR(VLOOKUP(A49,STAGIONALITA!$A$3:$M$105,12,FALSE)*P49,"") -> 294.966501 | M49: =IFERROR(VLOOKUP(A49,STAGIONALITA!$A$3:$M$105,13,FALSE)*P49,"") -> 135.9957231 | O49: KINEDO | P49: 3000
A50: Novellini | B50: =IFERROR(VLOOKUP(A50,STAGIONALITA!$A$3:$M$105,2,FALSE)*P50,"") -> 186.5589702 | C50: =IFERROR(VLOOKUP(A50,STAGIONALITA!$A$3:$M$105,3,FALSE)*P50,"") -> 221.2743527 | D50: =IFERROR(VLOOKUP(A50,STAGIONALITA!$A$3:$M$105,4,FALSE)*P50,"") -> 211.5025347 | E50: =IFERROR(VLOOKUP(A50,STAGIONALITA!$A$3:$M$105,5,FALSE)*P50,"") -> 320.2823668 | F50: =IFERROR(VLOOKUP(A50,STAGIONALITA!$A$3:$M$105,6,FALSE)*P50,"") -> 250.851728 | G50: =IFERROR(VLOOKUP(A50,STAGIONALITA!$A$3:$M$105,7,FALSE)*P50,"") -> 358.1119875 | H50: =IFERROR(VLOOKUP(A50,STAGIONALITA!$A$3:$M$105,8,FALSE)*P50,"") -> 342.6539618 | I50: =IFERROR(VLOOKUP(A50,STAGIONALITA!$A$3:$M$105,9,FALSE)*P50,"") -> 95.67770977 | J50: =IFERROR(VLOOKUP(A50,STAGIONALITA!$A$3:$M$105,10,FALSE)*P50,"") -> 202.8715425 | K50: =IFERROR(VLOOKUP(A50,STAGIONALITA!$A$3:$M$105,11,FALSE)*P50,"") -> 286.3830799 | L50: =IFERROR(VLOOKUP(A50,STAGIONALITA!$A$3:$M$105,12,FALSE)*P50,"") -> 351.5976105 | M50: =IFERROR(VLOOKUP(A50,STAGIONALITA!$A$3:$M$105,13,FALSE)*P50,"") -> 172.2341558 | O50: Novellini | P50: 3000
A51: Galassia | B51: =IFERROR(VLOOKUP(A51,STAGIONALITA!$A$3:$M$105,2,FALSE)*P51,"") -> 122.0509582 | C51: =IFERROR(VLOOKUP(A51,STAGIONALITA!$A$3:$M$105,3,FALSE)*P51,"") -> 320.0220058 | D51: =IFERROR(VLOOKUP(A51,STAGIONALITA!$A$3:$M$105,4,FALSE)*P51,"") -> 182.2880245 | E51: =IFERROR(VLOOKUP(A51,STAGIONALITA!$A$3:$M$105,5,FALSE)*P51,"") -> 138.4817144 | F51: =IFERROR(VLOOKUP(A51,STAGIONALITA!$A$3:$M$105,6,FALSE)*P51,"") -> 233.8002468 | G51: =IFERROR(VLOOKUP(A51,STAGIONALITA!$A$3:$M$105,7,FALSE)*P51,"") -> 166.1168439 | H51: =IFERROR(VLOOKUP(A51,STAGIONALITA!$A$3:$M$105,8,FALSE)*P51,"") -> 191.973686 | I51: =IFERROR(VLOOKUP(A51,STAGIONALITA!$A$3:$M$105,9,FALSE)*P51,"") -> 41.62122477 | J51: =IFERROR(VLOOKUP(A51,STAGIONALITA!$A$3:$M$105,10,FALSE)*P51,"") -> 153.4402501 | K51: =IFERROR(VLOOKUP(A51,STAGIONALITA!$A$3:$M$105,11,FALSE)*P51,"") -> 171.5291916 | L51: =IFERROR(VLOOKUP(A51,STAGIONALITA!$A$3:$M$105,12,FALSE)*P51,"") -> 192.7950301 | M51: =IFERROR(VLOOKUP(A51,STAGIONALITA!$A$3:$M$105,13,FALSE)*P51,"") -> 85.88082375 | O51: Galassia | P51: 2000
A52: Arredamenti Montegrappa | B52: =IFERROR(VLOOKUP(A52,STAGIONALITA!$A$3:$M$105,2,FALSE)*P52,"") -> 220.671419 | C52: =IFERROR(VLOOKUP(A52,STAGIONALITA!$A$3:$M$105,3,FALSE)*P52,"") -> 65.91519348 | D52: =IFERROR(VLOOKUP(A52,STAGIONALITA!$A$3:$M$105,4,FALSE)*P52,"") -> 265.8341563 | E52: =IFERROR(VLOOKUP(A52,STAGIONALITA!$A$3:$M$105,5,FALSE)*P52,"") -> 74.33116449 | F52: =IFERROR(VLOOKUP(A52,STAGIONALITA!$A$3:$M$105,6,FALSE)*P52,"") -> 112.7878895 | G52: =IFERROR(VLOOKUP(A52,STAGIONALITA!$A$3:$M$105,7,FALSE)*P52,"") -> 387.3985951 | H52: =IFERROR(VLOOKUP(A52,STAGIONALITA!$A$3:$M$105,8,FALSE)*P52,"") -> 84.2675119 | I52: =IFERROR(VLOOKUP(A52,STAGIONALITA!$A$3:$M$105,9,FALSE)*P52,"") -> 59.46195775 | J52: =IFERROR(VLOOKUP(A52,STAGIONALITA!$A$3:$M$105,10,FALSE)*P52,"") -> 378.8537576 | K52: =IFERROR(VLOOKUP(A52,STAGIONALITA!$A$3:$M$105,11,FALSE)*P52,"") -> 153.9570057 | L52: =IFERROR(VLOOKUP(A52,STAGIONALITA!$A$3:$M$105,12,FALSE)*P52,"") -> 48.59504583 | M52: =IFERROR(VLOOKUP(A52,STAGIONALITA!$A$3:$M$105,13,FALSE)*P52,"") -> 147.9263033 | O52: Arredamenti Montegrappa | P52: 2000
A53: RM Manfredi | B53: =IFERROR(VLOOKUP(A53,STAGIONALITA!$A$3:$M$105,2,FALSE)*P53,"") -> 198.9807758 | C53: =IFERROR(VLOOKUP(A53,STAGIONALITA!$A$3:$M$105,3,FALSE)*P53,"") -> 179.5810768 | D53: =IFERROR(VLOOKUP(A53,STAGIONALITA!$A$3:$M$105,4,FALSE)*P53,"") -> 143.942966 | E53: =IFERROR(VLOOKUP(A53,STAGIONALITA!$A$3:$M$105,5,FALSE)*P53,"") -> 216.1119602 | F53: =IFERROR(VLOOKUP(A53,STAGIONALITA!$A$3:$M$105,6,FALSE)*P53,"") -> 90.73467505 | G53: =IFERROR(VLOOKUP(A53,STAGIONALITA!$A$3:$M$105,7,FALSE)*P53,"") -> 403.2764314 | H53: =IFERROR(VLOOKUP(A53,STAGIONALITA!$A$3:$M$105,8,FALSE)*P53,"") -> 211.6987217 | I53: =IFERROR(VLOOKUP(A53,STAGIONALITA!$A$3:$M$105,9,FALSE)*P53,"") -> 60.55038549 | J53: =IFERROR(VLOOKUP(A53,STAGIONALITA!$A$3:$M$105,10,FALSE)*P53,"") -> 215.2598353 | K53: =IFERROR(VLOOKUP(A53,STAGIONALITA!$A$3:$M$105,11,FALSE)*P53,"") -> 54.2858262 | L53: =IFERROR(VLOOKUP(A53,STAGIONALITA!$A$3:$M$105,12,FALSE)*P53,"") -> 106.8577949 | M53: =IFERROR(VLOOKUP(A53,STAGIONALITA!$A$3:$M$105,13,FALSE)*P53,"") -> 118.7195511 | O53: RM Manfredi | P53: 2000
A54: Atusa | B54: =IFERROR(VLOOKUP(A54,STAGIONALITA!$A$3:$M$105,2,FALSE)*P54,"") -> 112.7420469 | C54: =IFERROR(VLOOKUP(A54,STAGIONALITA!$A$3:$M$105,3,FALSE)*P54,"") -> 136.6268675 | D54: =IFERROR(VLOOKUP(A54,STAGIONALITA!$A$3:$M$105,4,FALSE)*P54,"") -> 163.8938049 | E54: =IFERROR(VLOOKUP(A54,STAGIONALITA!$A$3:$M$105,5,FALSE)*P54,"") -> 116.194808 | F54: =IFERROR(VLOOKUP(A54,STAGIONALITA!$A$3:$M$105,6,FALSE)*P54,"") -> 136.2798725 | G54: =IFERROR(VLOOKUP(A54,STAGIONALITA!$A$3:$M$105,7,FALSE)*P54,"") -> 235.625138 | H54: =IFERROR(VLOOKUP(A54,STAGIONALITA!$A$3:$M$105,8,FALSE)*P54,"") -> 154.1605337 | I54: =IFERROR(VLOOKUP(A54,STAGIONALITA!$A$3:$M$105,9,FALSE)*P54,"") -> 96.65788443 | J54: =IFERROR(VLOOKUP(A54,STAGIONALITA!$A$3:$M$105,10,FALSE)*P54,"") -> 0 | K54: =IFERROR(VLOOKUP(A54,STAGIONALITA!$A$3:$M$105,11,FALSE)*P54,"") -> 271.7523116 | L54: =IFERROR(VLOOKUP(A54,STAGIONALITA!$A$3:$M$105,12,FALSE)*P54,"") -> 246.8343551 | M54: =IFERROR(VLOOKUP(A54,STAGIONALITA!$A$3:$M$105,13,FALSE)*P54,"") -> 329.2323774 | O54: Atusa | P54: 2000
A55: Griffon - Bostik | B55: =IFERROR(VLOOKUP(A55,STAGIONALITA!$A$3:$M$105,2,FALSE)*P55,"") -> 0 | C55: =IFERROR(VLOOKUP(A55,STAGIONALITA!$A$3:$M$105,3,FALSE)*P55,"") -> 0 | D55: =IFERROR(VLOOKUP(A55,STAGIONALITA!$A$3:$M$105,4,FALSE)*P55,"") -> 0 | E55: =IFERROR(VLOOKUP(A55,STAGIONALITA!$A$3:$M$105,5,FALSE)*P55,"") -> 623.4057982 | F55: =IFERROR(VLOOKUP(A55,STAGIONALITA!$A$3:$M$105,6,FALSE)*P55,"") -> 42.2618776 | G55: =IFERROR(VLOOKUP(A55,STAGIONALITA!$A$3:$M$105,7,FALSE)*P55,"") -> 23.96056775 | H55: =IFERROR(VLOOKUP(A55,STAGIONALITA!$A$3:$M$105,8,FALSE)*P55,"") -> 0 | I55: =IFERROR(VLOOKUP(A55,STAGIONALITA!$A$3:$M$105,9,FALSE)*P55,"") -> 0 | J55: =IFERROR(VLOOKUP(A55,STAGIONALITA!$A$3:$M$105,10,FALSE)*P55,"") -> 228.4164727 | K55: =IFERROR(VLOOKUP(A55,STAGIONALITA!$A$3:$M$105,11,FALSE)*P55,"") -> 0 | L55: =IFERROR(VLOOKUP(A55,STAGIONALITA!$A$3:$M$105,12,FALSE)*P55,"") -> 0 | M55: =IFERROR(VLOOKUP(A55,STAGIONALITA!$A$3:$M$105,13,FALSE)*P55,"") -> 81.95528375 | O55: Griffon - Bostik | P55: 1000
B56: =IFERROR(VLOOKUP(A56,STAGIONALITA!$A$3:$M$105,2,FALSE)*P56,"") ->  | C56: =IFERROR(VLOOKUP(A56,STAGIONALITA!$A$3:$M$105,3,FALSE)*P56,"") ->  | D56: =IFERROR(VLOOKUP(A56,STAGIONALITA!$A$3:$M$105,4,FALSE)*P56,"") ->  | E56: =IFERROR(VLOOKUP(A56,STAGIONALITA!$A$3:$M$105,5,FALSE)*P56,"") ->  | F56: =IFERROR(VLOOKUP(A56,STAGIONALITA!$A$3:$M$105,6,FALSE)*P56,"") ->  | G56: =IFERROR(VLOOKUP(A56,STAGIONALITA!$A$3:$M$105,7,FALSE)*P56,"") ->  | H56: =IFERROR(VLOOKUP(A56,STAGIONALITA!$A$3:$M$105,8,FALSE)*P56,"") ->  | I56: =IFERROR(VLOOKUP(A56,STAGIONALITA!$A$3:$M$105,9,FALSE)*P56,"") ->  | J56: =IFERROR(VLOOKUP(A56,STAGIONALITA!$A$3:$M$105,10,FALSE)*P56,"") ->  | K56: =IFERROR(VLOOKUP(A56,STAGIONALITA!$A$3:$M$105,11,FALSE)*P56,"") ->  | L56: =IFERROR(VLOOKUP(A56,STAGIONALITA!$A$3:$M$105,12,FALSE)*P56,"") ->  | M56: =IFERROR(VLOOKUP(A56,STAGIONALITA!$A$3:$M$105,13,FALSE)*P56,"") -> 
B57: =IFERROR(VLOOKUP(A57,STAGIONALITA!$A$3:$M$105,2,FALSE)*P57,"") ->  | C57: =IFERROR(VLOOKUP(A57,STAGIONALITA!$A$3:$M$105,3,FALSE)*P57,"") ->  | D57: =IFERROR(VLOOKUP(A57,STAGIONALITA!$A$3:$M$105,4,FALSE)*P57,"") ->  | E57: =IFERROR(VLOOKUP(A57,STAGIONALITA!$A$3:$M$105,5,FALSE)*P57,"") ->  | F57: =IFERROR(VLOOKUP(A57,STAGIONALITA!$A$3:$M$105,6,FALSE)*P57,"") ->  | G57: =IFERROR(VLOOKUP(A57,STAGIONALITA!$A$3:$M$105,7,FALSE)*P57,"") ->  | H57: =IFERROR(VLOOKUP(A57,STAGIONALITA!$A$3:$M$105,8,FALSE)*P57,"") ->  | I57: =IFERROR(VLOOKUP(A57,STAGIONALITA!$A$3:$M$105,9,FALSE)*P57,"") ->  | J57: =IFERROR(VLOOKUP(A57,STAGIONALITA!$A$3:$M$105,10,FALSE)*P57,"") ->  | K57: =IFERROR(VLOOKUP(A57,STAGIONALITA!$A$3:$M$105,11,FALSE)*P57,"") ->  | L57: =IFERROR(VLOOKUP(A57,STAGIONALITA!$A$3:$M$105,12,FALSE)*P57,"") ->  | M57: =IFERROR(VLOOKUP(A57,STAGIONALITA!$A$3:$M$105,13,FALSE)*P57,"") -> 
B58: =IFERROR(VLOOKUP(A58,STAGIONALITA!$A$3:$M$105,2,FALSE)*P58,"") ->  | C58: =IFERROR(VLOOKUP(A58,STAGIONALITA!$A$3:$M$105,3,FALSE)*P58,"") ->  | D58: =IFERROR(VLOOKUP(A58,STAGIONALITA!$A$3:$M$105,4,FALSE)*P58,"") ->  | E58: =IFERROR(VLOOKUP(A58,STAGIONALITA!$A$3:$M$105,5,FALSE)*P58,"") ->  | F58: =IFERROR(VLOOKUP(A58,STAGIONALITA!$A$3:$M$105,6,FALSE)*P58,"") ->  | G58: =IFERROR(VLOOKUP(A58,STAGIONALITA!$A$3:$M$105,7,FALSE)*P58,"") ->  | H58: =IFERROR(VLOOKUP(A58,STAGIONALITA!$A$3:$M$105,8,FALSE)*P58,"") ->  | I58: =IFERROR(VLOOKUP(A58,STAGIONALITA!$A$3:$M$105,9,FALSE)*P58,"") ->  | J58: =IFERROR(VLOOKUP(A58,STAGIONALITA!$A$3:$M$105,10,FALSE)*P58,"") ->  | K58: =IFERROR(VLOOKUP(A58,STAGIONALITA!$A$3:$M$105,11,FALSE)*P58,"") ->  | L58: =IFERROR(VLOOKUP(A58,STAGIONALITA!$A$3:$M$105,12,FALSE)*P58,"") ->  | M58: =IFERROR(VLOOKUP(A58,STAGIONALITA!$A$3:$M$105,13,FALSE)*P58,"") -> 
B59: =IFERROR(VLOOKUP(A59,STAGIONALITA!$A$3:$M$105,2,FALSE)*P59,"") ->  | C59: =IFERROR(VLOOKUP(A59,STAGIONALITA!$A$3:$M$105,3,FALSE)*P59,"") ->  | D59: =IFERROR(VLOOKUP(A59,STAGIONALITA!$A$3:$M$105,4,FALSE)*P59,"") ->  | E59: =IFERROR(VLOOKUP(A59,STAGIONALITA!$A$3:$M$105,5,FALSE)*P59,"") ->  | F59: =IFERROR(VLOOKUP(A59,STAGIONALITA!$A$3:$M$105,6,FALSE)*P59,"") ->  | G59: =IFERROR(VLOOKUP(A59,STAGIONALITA!$A$3:$M$105,7,FALSE)*P59,"") ->  | H59: =IFERROR(VLOOKUP(A59,STAGIONALITA!$A$3:$M$105,8,FALSE)*P59,"") ->  | I59: =IFERROR(VLOOKUP(A59,STAGIONALITA!$A$3:$M$105,9,FALSE)*P59,"") ->  | J59: =IFERROR(VLOOKUP(A59,STAGIONALITA!$A$3:$M$105,10,FALSE)*P59,"") ->  | K59: =IFERROR(VLOOKUP(A59,STAGIONALITA!$A$3:$M$105,11,FALSE)*P59,"") ->  | L59: =IFERROR(VLOOKUP(A59,STAGIONALITA!$A$3:$M$105,12,FALSE)*P59,"") ->  | M59: =IFERROR(VLOOKUP(A59,STAGIONALITA!$A$3:$M$105,13,FALSE)*P59,"") -> 
B60: =IFERROR(VLOOKUP(A60,STAGIONALITA!$A$3:$M$105,2,FALSE)*P60,"") ->  | C60: =IFERROR(VLOOKUP(A60,STAGIONALITA!$A$3:$M$105,3,FALSE)*P60,"") ->  | D60: =IFERROR(VLOOKUP(A60,STAGIONALITA!$A$3:$M$105,4,FALSE)*P60,"") ->  | E60: =IFERROR(VLOOKUP(A60,STAGIONALITA!$A$3:$M$105,5,FALSE)*P60,"") ->  | F60: =IFERROR(VLOOKUP(A60,STAGIONALITA!$A$3:$M$105,6,FALSE)*P60,"") ->  | G60: =IFERROR(VLOOKUP(A60,STAGIONALITA!$A$3:$M$105,7,FALSE)*P60,"") ->  | H60: =IFERROR(VLOOKUP(A60,STAGIONALITA!$A$3:$M$105,8,FALSE)*P60,"") ->  | I60: =IFERROR(VLOOKUP(A60,STAGIONALITA!$A$3:$M$105,9,FALSE)*P60,"") ->  | J60: =IFERROR(VLOOKUP(A60,STAGIONALITA!$A$3:$M$105,10,FALSE)*P60,"") ->  | K60: =IFERROR(VLOOKUP(A60,STAGIONALITA!$A$3:$M$105,11,FALSE)*P60,"") ->  | L60: =IFERROR(VLOOKUP(A60,STAGIONALITA!$A$3:$M$105,12,FALSE)*P60,"") ->  | M60: =IFERROR(VLOOKUP(A60,STAGIONALITA!$A$3:$M$105,13,FALSE)*P60,"") -> 
B61: =IFERROR(VLOOKUP(A61,STAGIONALITA!$A$3:$M$105,2,FALSE)*P61,"") ->  | C61: =IFERROR(VLOOKUP(A61,STAGIONALITA!$A$3:$M$105,3,FALSE)*P61,"") ->  | D61: =IFERROR(VLOOKUP(A61,STAGIONALITA!$A$3:$M$105,4,FALSE)*P61,"") ->  | E61: =IFERROR(VLOOKUP(A61,STAGIONALITA!$A$3:$M$105,5,FALSE)*P61,"") ->  | F61: =IFERROR(VLOOKUP(A61,STAGIONALITA!$A$3:$M$105,6,FALSE)*P61,"") ->  | G61: =IFERROR(VLOOKUP(A61,STAGIONALITA!$A$3:$M$105,7,FALSE)*P61,"") ->  | H61: =IFERROR(VLOOKUP(A61,STAGIONALITA!$A$3:$M$105,8,FALSE)*P61,"") ->  | I61: =IFERROR(VLOOKUP(A61,STAGIONALITA!$A$3:$M$105,9,FALSE)*P61,"") ->  | J61: =IFERROR(VLOOKUP(A61,STAGIONALITA!$A$3:$M$105,10,FALSE)*P61,"") ->  | K61: =IFERROR(VLOOKUP(A61,STAGIONALITA!$A$3:$M$105,11,FALSE)*P61,"") ->  | L61: =IFERROR(VLOOKUP(A61,STAGIONALITA!$A$3:$M$105,12,FALSE)*P61,"") ->  | M61: =IFERROR(VLOOKUP(A61,STAGIONALITA!$A$3:$M$105,13,FALSE)*P61,"") -> 
B62: =IFERROR(VLOOKUP(A62,STAGIONALITA!$A$3:$M$105,2,FALSE)*P62,"") ->  | C62: =IFERROR(VLOOKUP(A62,STAGIONALITA!$A$3:$M$105,3,FALSE)*P62,"") ->  | D62: =IFERROR(VLOOKUP(A62,STAGIONALITA!$A$3:$M$105,4,FALSE)*P62,"") ->  | E62: =IFERROR(VLOOKUP(A62,STAGIONALITA!$A$3:$M$105,5,FALSE)*P62,"") ->  | F62: =IFERROR(VLOOKUP(A62,STAGIONALITA!$A$3:$M$105,6,FALSE)*P62,"") ->  | G62: =IFERROR(VLOOKUP(A62,STAGIONALITA!$A$3:$M$105,7,FALSE)*P62,"") ->  | H62: =IFERROR(VLOOKUP(A62,STAGIONALITA!$A$3:$M$105,8,FALSE)*P62,"") ->  | I62: =IFERROR(VLOOKUP(A62,STAGIONALITA!$A$3:$M$105,9,FALSE)*P62,"") ->  | J62: =IFERROR(VLOOKUP(A62,STAGIONALITA!$A$3:$M$105,10,FALSE)*P62,"") ->  | K62: =IFERROR(VLOOKUP(A62,STAGIONALITA!$A$3:$M$105,11,FALSE)*P62,"") ->  | L62: =IFERROR(VLOOKUP(A62,STAGIONALITA!$A$3:$M$105,12,FALSE)*P62,"") ->  | M62: =IFERROR(VLOOKUP(A62,STAGIONALITA!$A$3:$M$105,13,FALSE)*P62,"") -> 
B63: =IFERROR(VLOOKUP(A63,STAGIONALITA!$A$3:$M$105,2,FALSE)*P63,"") ->  | C63: =IFERROR(VLOOKUP(A63,STAGIONALITA!$A$3:$M$105,3,FALSE)*P63,"") ->  | D63: =IFERROR(VLOOKUP(A63,STAGIONALITA!$A$3:$M$105,4,FALSE)*P63,"") ->  | E63: =IFERROR(VLOOKUP(A63,STAGIONALITA!$A$3:$M$105,5,FALSE)*P63,"") ->  | F63: =IFERROR(VLOOKUP(A63,STAGIONALITA!$A$3:$M$105,6,FALSE)*P63,"") ->  | G63: =IFERROR(VLOOKUP(A63,STAGIONALITA!$A$3:$M$105,7,FALSE)*P63,"") ->  | H63: =IFERROR(VLOOKUP(A63,STAGIONALITA!$A$3:$M$105,8,FALSE)*P63,"") ->  | I63: =IFERROR(VLOOKUP(A63,STAGIONALITA!$A$3:$M$105,9,FALSE)*P63,"") ->  | J63: =IFERROR(VLOOKUP(A63,STAGIONALITA!$A$3:$M$105,10,FALSE)*P63,"") ->  | K63: =IFERROR(VLOOKUP(A63,STAGIONALITA!$A$3:$M$105,11,FALSE)*P63,"") ->  | L63: =IFERROR(VLOOKUP(A63,STAGIONALITA!$A$3:$M$105,12,FALSE)*P63,"") ->  | M63: =IFERROR(VLOOKUP(A63,STAGIONALITA!$A$3:$M$105,13,FALSE)*P63,"") -> 
B64: =IFERROR(VLOOKUP(A64,STAGIONALITA!$A$3:$M$105,2,FALSE)*P64,"") ->  | C64: =IFERROR(VLOOKUP(A64,STAGIONALITA!$A$3:$M$105,3,FALSE)*P64,"") ->  | D64: =IFERROR(VLOOKUP(A64,STAGIONALITA!$A$3:$M$105,4,FALSE)*P64,"") ->  | E64: =IFERROR(VLOOKUP(A64,STAGIONALITA!$A$3:$M$105,5,FALSE)*P64,"") ->  | F64: =IFERROR(VLOOKUP(A64,STAGIONALITA!$A$3:$M$105,6,FALSE)*P64,"") ->  | G64: =IFERROR(VLOOKUP(A64,STAGIONALITA!$A$3:$M$105,7,FALSE)*P64,"") ->  | H64: =IFERROR(VLOOKUP(A64,STAGIONALITA!$A$3:$M$105,8,FALSE)*P64,"") ->  | I64: =IFERROR(VLOOKUP(A64,STAGIONALITA!$A$3:$M$105,9,FALSE)*P64,"") ->  | J64: =IFERROR(VLOOKUP(A64,STAGIONALITA!$A$3:$M$105,10,FALSE)*P64,"") ->  | K64: =IFERROR(VLOOKUP(A64,STAGIONALITA!$A$3:$M$105,11,FALSE)*P64,"") ->  | L64: =IFERROR(VLOOKUP(A64,STAGIONALITA!$A$3:$M$105,12,FALSE)*P64,"") ->  | M64: =IFERROR(VLOOKUP(A64,STAGIONALITA!$A$3:$M$105,13,FALSE)*P64,"") -> 
B65: =IFERROR(VLOOKUP(A65,STAGIONALITA!$A$3:$M$105,2,FALSE)*P65,"") ->  | C65: =IFERROR(VLOOKUP(A65,STAGIONALITA!$A$3:$M$105,3,FALSE)*P65,"") ->  | D65: =IFERROR(VLOOKUP(A65,STAGIONALITA!$A$3:$M$105,4,FALSE)*P65,"") ->  | E65: =IFERROR(VLOOKUP(A65,STAGIONALITA!$A$3:$M$105,5,FALSE)*P65,"") ->  | F65: =IFERROR(VLOOKUP(A65,STAGIONALITA!$A$3:$M$105,6,FALSE)*P65,"") ->  | G65: =IFERROR(VLOOKUP(A65,STAGIONALITA!$A$3:$M$105,7,FALSE)*P65,"") ->  | H65: =IFERROR(VLOOKUP(A65,STAGIONALITA!$A$3:$M$105,8,FALSE)*P65,"") ->  | I65: =IFERROR(VLOOKUP(A65,STAGIONALITA!$A$3:$M$105,9,FALSE)*P65,"") ->  | J65: =IFERROR(VLOOKUP(A65,STAGIONALITA!$A$3:$M$105,10,FALSE)*P65,"") ->  | K65: =IFERROR(VLOOKUP(A65,STAGIONALITA!$A$3:$M$105,11,FALSE)*P65,"") ->  | L65: =IFERROR(VLOOKUP(A65,STAGIONALITA!$A$3:$M$105,12,FALSE)*P65,"") ->  | M65: =IFERROR(VLOOKUP(A65,STAGIONALITA!$A$3:$M$105,13,FALSE)*P65,"") -> 
B66: =IFERROR(VLOOKUP(A66,STAGIONALITA!$A$3:$M$105,2,FALSE)*P66,"") ->  | C66: =IFERROR(VLOOKUP(A66,STAGIONALITA!$A$3:$M$105,3,FALSE)*P66,"") ->  | D66: =IFERROR(VLOOKUP(A66,STAGIONALITA!$A$3:$M$105,4,FALSE)*P66,"") ->  | E66: =IFERROR(VLOOKUP(A66,STAGIONALITA!$A$3:$M$105,5,FALSE)*P66,"") ->  | F66: =IFERROR(VLOOKUP(A66,STAGIONALITA!$A$3:$M$105,6,FALSE)*P66,"") ->  | G66: =IFERROR(VLOOKUP(A66,STAGIONALITA!$A$3:$M$105,7,FALSE)*P66,"") ->  | H66: =IFERROR(VLOOKUP(A66,STAGIONALITA!$A$3:$M$105,8,FALSE)*P66,"") ->  | I66: =IFERROR(VLOOKUP(A66,STAGIONALITA!$A$3:$M$105,9,FALSE)*P66,"") ->  | J66: =IFERROR(VLOOKUP(A66,STAGIONALITA!$A$3:$M$105,10,FALSE)*P66,"") ->  | K66: =IFERROR(VLOOKUP(A66,STAGIONALITA!$A$3:$M$105,11,FALSE)*P66,"") ->  | L66: =IFERROR(VLOOKUP(A66,STAGIONALITA!$A$3:$M$105,12,FALSE)*P66,"") ->  | M66: =IFERROR(VLOOKUP(A66,STAGIONALITA!$A$3:$M$105,13,FALSE)*P66,"") -> 
B67: =IFERROR(VLOOKUP(A67,STAGIONALITA!$A$3:$M$105,2,FALSE)*P67,"") ->  | C67: =IFERROR(VLOOKUP(A67,STAGIONALITA!$A$3:$M$105,3,FALSE)*P67,"") ->  | D67: =IFERROR(VLOOKUP(A67,STAGIONALITA!$A$3:$M$105,4,FALSE)*P67,"") ->  | E67: =IFERROR(VLOOKUP(A67,STAGIONALITA!$A$3:$M$105,5,FALSE)*P67,"") ->  | F67: =IFERROR(VLOOKUP(A67,STAGIONALITA!$A$3:$M$105,6,FALSE)*P67,"") ->  | G67: =IFERROR(VLOOKUP(A67,STAGIONALITA!$A$3:$M$105,7,FALSE)*P67,"") ->  | H67: =IFERROR(VLOOKUP(A67,STAGIONALITA!$A$3:$M$105,8,FALSE)*P67,"") ->  | I67: =IFERROR(VLOOKUP(A67,STAGIONALITA!$A$3:$M$105,9,FALSE)*P67,"") ->  | J67: =IFERROR(VLOOKUP(A67,STAGIONALITA!$A$3:$M$105,10,FALSE)*P67,"") ->  | K67: =IFERROR(VLOOKUP(A67,STAGIONALITA!$A$3:$M$105,11,FALSE)*P67,"") ->  | L67: =IFERROR(VLOOKUP(A67,STAGIONALITA!$A$3:$M$105,12,FALSE)*P67,"") ->  | M67: =IFERROR(VLOOKUP(A67,STAGIONALITA!$A$3:$M$105,13,FALSE)*P67,"") -> 
A68: =IF(O68=0,"",O68) ->  | B68: =IFERROR(VLOOKUP(A68,STAGIONALITA!$A$3:$M$105,2,FALSE)*P68,"") ->  | C68: =IFERROR(VLOOKUP(A68,STAGIONALITA!$A$3:$M$105,3,FALSE)*P68,"") ->  | D68: =IFERROR(VLOOKUP(A68,STAGIONALITA!$A$3:$M$105,4,FALSE)*P68,"") ->  | E68: =IFERROR(VLOOKUP(A68,STAGIONALITA!$A$3:$M$105,5,FALSE)*P68,"") ->  | F68: =IFERROR(VLOOKUP(A68,STAGIONALITA!$A$3:$M$105,6,FALSE)*P68,"") ->  | G68: =IFERROR(VLOOKUP(A68,STAGIONALITA!$A$3:$M$105,7,FALSE)*P68,"") ->  | H68: =IFERROR(VLOOKUP(A68,STAGIONALITA!$A$3:$M$105,8,FALSE)*P68,"") ->  | I68: =IFERROR(VLOOKUP(A68,STAGIONALITA!$A$3:$M$105,9,FALSE)*P68,"") ->  | J68: =IFERROR(VLOOKUP(A68,STAGIONALITA!$A$3:$M$105,10,FALSE)*P68,"") ->  | K68: =IFERROR(VLOOKUP(A68,STAGIONALITA!$A$3:$M$105,11,FALSE)*P68,"") ->  | L68: =IFERROR(VLOOKUP(A68,STAGIONALITA!$A$3:$M$105,12,FALSE)*P68,"") ->  | M68: =IFERROR(VLOOKUP(A68,STAGIONALITA!$A$3:$M$105,13,FALSE)*P68,"") -> 
B69: =IFERROR(VLOOKUP(A69,STAGIONALITA!$A$3:$M$105,2,FALSE)*P69,"") ->  | C69: =IFERROR(VLOOKUP(A69,STAGIONALITA!$A$3:$M$105,3,FALSE)*P69,"") ->  | D69: =IFERROR(VLOOKUP(A69,STAGIONALITA!$A$3:$M$105,4,FALSE)*P69,"") ->  | E69: =IFERROR(VLOOKUP(A69,STAGIONALITA!$A$3:$M$105,5,FALSE)*P69,"") ->  | F69: =IFERROR(VLOOKUP(A69,STAGIONALITA!$A$3:$M$105,6,FALSE)*P69,"") ->  | G69: =IFERROR(VLOOKUP(A69,STAGIONALITA!$A$3:$M$105,7,FALSE)*P69,"") ->  | H69: =IFERROR(VLOOKUP(A69,STAGIONALITA!$A$3:$M$105,8,FALSE)*P69,"") ->  | I69: =IFERROR(VLOOKUP(A69,STAGIONALITA!$A$3:$M$105,9,FALSE)*P69,"") ->  | J69: =IFERROR(VLOOKUP(A69,STAGIONALITA!$A$3:$M$105,10,FALSE)*P69,"") ->  | K69: =IFERROR(VLOOKUP(A69,STAGIONALITA!$A$3:$M$105,11,FALSE)*P69,"") ->  | L69: =IFERROR(VLOOKUP(A69,STAGIONALITA!$A$3:$M$105,12,FALSE)*P69,"") ->  | M69: =IFERROR(VLOOKUP(A69,STAGIONALITA!$A$3:$M$105,13,FALSE)*P69,"") -> 
B70: =IFERROR(VLOOKUP(A70,STAGIONALITA!$A$3:$M$105,2,FALSE)*P70,"") ->  | C70: =IFERROR(VLOOKUP(A70,STAGIONALITA!$A$3:$M$105,3,FALSE)*P70,"") ->  | D70: =IFERROR(VLOOKUP(A70,STAGIONALITA!$A$3:$M$105,4,FALSE)*P70,"") ->  | E70: =IFERROR(VLOOKUP(A70,STAGIONALITA!$A$3:$M$105,5,FALSE)*P70,"") ->  | F70: =IFERROR(VLOOKUP(A70,STAGIONALITA!$A$3:$M$105,6,FALSE)*P70,"") ->  | G70: =IFERROR(VLOOKUP(A70,STAGIONALITA!$A$3:$M$105,7,FALSE)*P70,"") ->  | H70: =IFERROR(VLOOKUP(A70,STAGIONALITA!$A$3:$M$105,8,FALSE)*P70,"") ->  | I70: =IFERROR(VLOOKUP(A70,STAGIONALITA!$A$3:$M$105,9,FALSE)*P70,"") ->  | J70: =IFERROR(VLOOKUP(A70,STAGIONALITA!$A$3:$M$105,10,FALSE)*P70,"") ->  | K70: =IFERROR(VLOOKUP(A70,STAGIONALITA!$A$3:$M$105,11,FALSE)*P70,"") ->  | L70: =IFERROR(VLOOKUP(A70,STAGIONALITA!$A$3:$M$105,12,FALSE)*P70,"") ->  | M70: =IFERROR(VLOOKUP(A70,STAGIONALITA!$A$3:$M$105,13,FALSE)*P70,"") -> 
B71: =IFERROR(VLOOKUP(A71,STAGIONALITA!$A$3:$M$105,2,FALSE)*P71,"") ->  | C71: =IFERROR(VLOOKUP(A71,STAGIONALITA!$A$3:$M$105,3,FALSE)*P71,"") ->  | D71: =IFERROR(VLOOKUP(A71,STAGIONALITA!$A$3:$M$105,4,FALSE)*P71,"") ->  | E71: =IFERROR(VLOOKUP(A71,STAGIONALITA!$A$3:$M$105,5,FALSE)*P71,"") ->  | F71: =IFERROR(VLOOKUP(A71,STAGIONALITA!$A$3:$M$105,6,FALSE)*P71,"") ->  | G71: =IFERROR(VLOOKUP(A71,STAGIONALITA!$A$3:$M$105,7,FALSE)*P71,"") ->  | H71: =IFERROR(VLOOKUP(A71,STAGIONALITA!$A$3:$M$105,8,FALSE)*P71,"") ->  | I71: =IFERROR(VLOOKUP(A71,STAGIONALITA!$A$3:$M$105,9,FALSE)*P71,"") ->  | J71: =IFERROR(VLOOKUP(A71,STAGIONALITA!$A$3:$M$105,10,FALSE)*P71,"") ->  | K71: =IFERROR(VLOOKUP(A71,STAGIONALITA!$A$3:$M$105,11,FALSE)*P71,"") ->  | L71: =IFERROR(VLOOKUP(A71,STAGIONALITA!$A$3:$M$105,12,FALSE)*P71,"") ->  | M71: =IFERROR(VLOOKUP(A71,STAGIONALITA!$A$3:$M$105,13,FALSE)*P71,"") -> 
B72: =IFERROR(VLOOKUP(A72,STAGIONALITA!$A$3:$M$105,2,FALSE)*P72,"") ->  | C72: =IFERROR(VLOOKUP(A72,STAGIONALITA!$A$3:$M$105,3,FALSE)*P72,"") ->  | D72: =IFERROR(VLOOKUP(A72,STAGIONALITA!$A$3:$M$105,4,FALSE)*P72,"") ->  | E72: =IFERROR(VLOOKUP(A72,STAGIONALITA!$A$3:$M$105,5,FALSE)*P72,"") ->  | F72: =IFERROR(VLOOKUP(A72,STAGIONALITA!$A$3:$M$105,6,FALSE)*P72,"") ->  | G72: =IFERROR(VLOOKUP(A72,STAGIONALITA!$A$3:$M$105,7,FALSE)*P72,"") ->  | H72: =IFERROR(VLOOKUP(A72,STAGIONALITA!$A$3:$M$105,8,FALSE)*P72,"") ->  | I72: =IFERROR(VLOOKUP(A72,STAGIONALITA!$A$3:$M$105,9,FALSE)*P72,"") ->  | J72: =IFERROR(VLOOKUP(A72,STAGIONALITA!$A$3:$M$105,10,FALSE)*P72,"") ->  | K72: =IFERROR(VLOOKUP(A72,STAGIONALITA!$A$3:$M$105,11,FALSE)*P72,"") ->  | L72: =IFERROR(VLOOKUP(A72,STAGIONALITA!$A$3:$M$105,12,FALSE)*P72,"") ->  | M72: =IFERROR(VLOOKUP(A72,STAGIONALITA!$A$3:$M$105,13,FALSE)*P72,"") -> 
B73: =IFERROR(VLOOKUP(A73,STAGIONALITA!$A$3:$M$105,2,FALSE)*P73,"") ->  | C73: =IFERROR(VLOOKUP(A73,STAGIONALITA!$A$3:$M$105,3,FALSE)*P73,"") ->  | D73: =IFERROR(VLOOKUP(A73,STAGIONALITA!$A$3:$M$105,4,FALSE)*P73,"") ->  | E73: =IFERROR(VLOOKUP(A73,STAGIONALITA!$A$3:$M$105,5,FALSE)*P73,"") ->  | F73: =IFERROR(VLOOKUP(A73,STAGIONALITA!$A$3:$M$105,6,FALSE)*P73,"") ->  | G73: =IFERROR(VLOOKUP(A73,STAGIONALITA!$A$3:$M$105,7,FALSE)*P73,"") ->  | H73: =IFERROR(VLOOKUP(A73,STAGIONALITA!$A$3:$M$105,8,FALSE)*P73,"") ->  | I73: =IFERROR(VLOOKUP(A73,STAGIONALITA!$A$3:$M$105,9,FALSE)*P73,"") ->  | J73: =IFERROR(VLOOKUP(A73,STAGIONALITA!$A$3:$M$105,10,FALSE)*P73,"") ->  | K73: =IFERROR(VLOOKUP(A73,STAGIONALITA!$A$3:$M$105,11,FALSE)*P73,"") ->  | L73: =IFERROR(VLOOKUP(A73,STAGIONALITA!$A$3:$M$105,12,FALSE)*P73,"") ->  | M73: =IFERROR(VLOOKUP(A73,STAGIONALITA!$A$3:$M$105,13,FALSE)*P73,"") -> 
B74: =IFERROR(VLOOKUP(A74,STAGIONALITA!$A$3:$M$105,2,FALSE)*P74,"") ->  | C74: =IFERROR(VLOOKUP(A74,STAGIONALITA!$A$3:$M$105,3,FALSE)*P74,"") ->  | D74: =IFERROR(VLOOKUP(A74,STAGIONALITA!$A$3:$M$105,4,FALSE)*P74,"") ->  | E74: =IFERROR(VLOOKUP(A74,STAGIONALITA!$A$3:$M$105,5,FALSE)*P74,"") ->  | F74: =IFERROR(VLOOKUP(A74,STAGIONALITA!$A$3:$M$105,6,FALSE)*P74,"") ->  | G74: =IFERROR(VLOOKUP(A74,STAGIONALITA!$A$3:$M$105,7,FALSE)*P74,"") ->  | H74: =IFERROR(VLOOKUP(A74,STAGIONALITA!$A$3:$M$105,8,FALSE)*P74,"") ->  | I74: =IFERROR(VLOOKUP(A74,STAGIONALITA!$A$3:$M$105,9,FALSE)*P74,"") ->  | J74: =IFERROR(VLOOKUP(A74,STAGIONALITA!$A$3:$M$105,10,FALSE)*P74,"") ->  | K74: =IFERROR(VLOOKUP(A74,STAGIONALITA!$A$3:$M$105,11,FALSE)*P74,"") ->  | L74: =IFERROR(VLOOKUP(A74,STAGIONALITA!$A$3:$M$105,12,FALSE)*P74,"") ->  | M74: =IFERROR(VLOOKUP(A74,STAGIONALITA!$A$3:$M$105,13,FALSE)*P74,"") -> 
B75: =IFERROR(VLOOKUP(A75,STAGIONALITA!$A$3:$M$105,2,FALSE)*P75,"") ->  | C75: =IFERROR(VLOOKUP(A75,STAGIONALITA!$A$3:$M$105,3,FALSE)*P75,"") ->  | D75: =IFERROR(VLOOKUP(A75,STAGIONALITA!$A$3:$M$105,4,FALSE)*P75,"") ->  | E75: =IFERROR(VLOOKUP(A75,STAGIONALITA!$A$3:$M$105,5,FALSE)*P75,"") ->  | F75: =IFERROR(VLOOKUP(A75,STAGIONALITA!$A$3:$M$105,6,FALSE)*P75,"") ->  | G75: =IFERROR(VLOOKUP(A75,STAGIONALITA!$A$3:$M$105,7,FALSE)*P75,"") ->  | H75: =IFERROR(VLOOKUP(A75,STAGIONALITA!$A$3:$M$105,8,FALSE)*P75,"") ->  | I75: =IFERROR(VLOOKUP(A75,STAGIONALITA!$A$3:$M$105,9,FALSE)*P75,"") ->  | J75: =IFERROR(VLOOKUP(A75,STAGIONALITA!$A$3:$M$105,10,FALSE)*P75,"") ->  | K75: =IFERROR(VLOOKUP(A75,STAGIONALITA!$A$3:$M$105,11,FALSE)*P75,"") ->  | L75: =IFERROR(VLOOKUP(A75,STAGIONALITA!$A$3:$M$105,12,FALSE)*P75,"") ->  | M75: =IFERROR(VLOOKUP(A75,STAGIONALITA!$A$3:$M$105,13,FALSE)*P75,"") -> 
B76: =IFERROR(VLOOKUP(A76,STAGIONALITA!$A$3:$M$105,2,FALSE)*P76,"") ->  | C76: =IFERROR(VLOOKUP(A76,STAGIONALITA!$A$3:$M$105,3,FALSE)*P76,"") ->  | D76: =IFERROR(VLOOKUP(A76,STAGIONALITA!$A$3:$M$105,4,FALSE)*P76,"") ->  | E76: =IFERROR(VLOOKUP(A76,STAGIONALITA!$A$3:$M$105,5,FALSE)*P76,"") ->  | F76: =IFERROR(VLOOKUP(A76,STAGIONALITA!$A$3:$M$105,6,FALSE)*P76,"") ->  | G76: =IFERROR(VLOOKUP(A76,STAGIONALITA!$A$3:$M$105,7,FALSE)*P76,"") ->  | H76: =IFERROR(VLOOKUP(A76,STAGIONALITA!$A$3:$M$105,8,FALSE)*P76,"") ->  | I76: =IFERROR(VLOOKUP(A76,STAGIONALITA!$A$3:$M$105,9,FALSE)*P76,"") ->  | J76: =IFERROR(VLOOKUP(A76,STAGIONALITA!$A$3:$M$105,10,FALSE)*P76,"") ->  | K76: =IFERROR(VLOOKUP(A76,STAGIONALITA!$A$3:$M$105,11,FALSE)*P76,"") ->  | L76: =IFERROR(VLOOKUP(A76,STAGIONALITA!$A$3:$M$105,12,FALSE)*P76,"") ->  | M76: =IFERROR(VLOOKUP(A76,STAGIONALITA!$A$3:$M$105,13,FALSE)*P76,"") -> 
B77: =IFERROR(VLOOKUP(A77,STAGIONALITA!$A$3:$M$105,2,FALSE)*P77,"") ->  | C77: =IFERROR(VLOOKUP(A77,STAGIONALITA!$A$3:$M$105,3,FALSE)*P77,"") ->  | D77: =IFERROR(VLOOKUP(A77,STAGIONALITA!$A$3:$M$105,4,FALSE)*P77,"") ->  | E77: =IFERROR(VLOOKUP(A77,STAGIONALITA!$A$3:$M$105,5,FALSE)*P77,"") ->  | F77: =IFERROR(VLOOKUP(A77,STAGIONALITA!$A$3:$M$105,6,FALSE)*P77,"") ->  | G77: =IFERROR(VLOOKUP(A77,STAGIONALITA!$A$3:$M$105,7,FALSE)*P77,"") ->  | H77: =IFERROR(VLOOKUP(A77,STAGIONALITA!$A$3:$M$105,8,FALSE)*P77,"") ->  | I77: =IFERROR(VLOOKUP(A77,STAGIONALITA!$A$3:$M$105,9,FALSE)*P77,"") ->  | J77: =IFERROR(VLOOKUP(A77,STAGIONALITA!$A$3:$M$105,10,FALSE)*P77,"") ->  | K77: =IFERROR(VLOOKUP(A77,STAGIONALITA!$A$3:$M$105,11,FALSE)*P77,"") ->  | L77: =IFERROR(VLOOKUP(A77,STAGIONALITA!$A$3:$M$105,12,FALSE)*P77,"") ->  | M77: =IFERROR(VLOOKUP(A77,STAGIONALITA!$A$3:$M$105,13,FALSE)*P77,"") -> 
B78: =IFERROR(VLOOKUP(A78,STAGIONALITA!$A$3:$M$105,2,FALSE)*P78,"") ->  | C78: =IFERROR(VLOOKUP(A78,STAGIONALITA!$A$3:$M$105,3,FALSE)*P78,"") ->  | D78: =IFERROR(VLOOKUP(A78,STAGIONALITA!$A$3:$M$105,4,FALSE)*P78,"") ->  | E78: =IFERROR(VLOOKUP(A78,STAGIONALITA!$A$3:$M$105,5,FALSE)*P78,"") ->  | F78: =IFERROR(VLOOKUP(A78,STAGIONALITA!$A$3:$M$105,6,FALSE)*P78,"") ->  | G78: =IFERROR(VLOOKUP(A78,STAGIONALITA!$A$3:$M$105,7,FALSE)*P78,"") ->  | H78: =IFERROR(VLOOKUP(A78,STAGIONALITA!$A$3:$M$105,8,FALSE)*P78,"") ->  | I78: =IFERROR(VLOOKUP(A78,STAGIONALITA!$A$3:$M$105,9,FALSE)*P78,"") ->  | J78: =IFERROR(VLOOKUP(A78,STAGIONALITA!$A$3:$M$105,10,FALSE)*P78,"") ->  | K78: =IFERROR(VLOOKUP(A78,STAGIONALITA!$A$3:$M$105,11,FALSE)*P78,"") ->  | L78: =IFERROR(VLOOKUP(A78,STAGIONALITA!$A$3:$M$105,12,FALSE)*P78,"") ->  | M78: =IFERROR(VLOOKUP(A78,STAGIONALITA!$A$3:$M$105,13,FALSE)*P78,"") -> 
B79: =IFERROR(VLOOKUP(A79,STAGIONALITA!$A$3:$M$105,2,FALSE)*P79,"") ->  | C79: =IFERROR(VLOOKUP(A79,STAGIONALITA!$A$3:$M$105,3,FALSE)*P79,"") ->  | D79: =IFERROR(VLOOKUP(A79,STAGIONALITA!$A$3:$M$105,4,FALSE)*P79,"") ->  | E79: =IFERROR(VLOOKUP(A79,STAGIONALITA!$A$3:$M$105,5,FALSE)*P79,"") ->  | F79: =IFERROR(VLOOKUP(A79,STAGIONALITA!$A$3:$M$105,6,FALSE)*P79,"") ->  | G79: =IFERROR(VLOOKUP(A79,STAGIONALITA!$A$3:$M$105,7,FALSE)*P79,"") ->  | H79: =IFERROR(VLOOKUP(A79,STAGIONALITA!$A$3:$M$105,8,FALSE)*P79,"") ->  | I79: =IFERROR(VLOOKUP(A79,STAGIONALITA!$A$3:$M$105,9,FALSE)*P79,"") ->  | J79: =IFERROR(VLOOKUP(A79,STAGIONALITA!$A$3:$M$105,10,FALSE)*P79,"") ->  | K79: =IFERROR(VLOOKUP(A79,STAGIONALITA!$A$3:$M$105,11,FALSE)*P79,"") ->  | L79: =IFERROR(VLOOKUP(A79,STAGIONALITA!$A$3:$M$105,12,FALSE)*P79,"") ->  | M79: =IFERROR(VLOOKUP(A79,STAGIONALITA!$A$3:$M$105,13,FALSE)*P79,"") -> 
B80: =IFERROR(VLOOKUP(A80,STAGIONALITA!$A$3:$M$105,2,FALSE)*P80,"") ->  | C80: =IFERROR(VLOOKUP(A80,STAGIONALITA!$A$3:$M$105,3,FALSE)*P80,"") ->  | D80: =IFERROR(VLOOKUP(A80,STAGIONALITA!$A$3:$M$105,4,FALSE)*P80,"") ->  | E80: =IFERROR(VLOOKUP(A80,STAGIONALITA!$A$3:$M$105,5,FALSE)*P80,"") ->  | F80: =IFERROR(VLOOKUP(A80,STAGIONALITA!$A$3:$M$105,6,FALSE)*P80,"") ->  | G80: =IFERROR(VLOOKUP(A80,STAGIONALITA!$A$3:$M$105,7,FALSE)*P80,"") ->  | H80: =IFERROR(VLOOKUP(A80,STAGIONALITA!$A$3:$M$105,8,FALSE)*P80,"") ->  | I80: =IFERROR(VLOOKUP(A80,STAGIONALITA!$A$3:$M$105,9,FALSE)*P80,"") ->  | J80: =IFERROR(VLOOKUP(A80,STAGIONALITA!$A$3:$M$105,10,FALSE)*P80,"") ->  | K80: =IFERROR(VLOOKUP(A80,STAGIONALITA!$A$3:$M$105,11,FALSE)*P80,"") ->  | L80: =IFERROR(VLOOKUP(A80,STAGIONALITA!$A$3:$M$105,12,FALSE)*P80,"") ->  | M80: =IFERROR(VLOOKUP(A80,STAGIONALITA!$A$3:$M$105,13,FALSE)*P80,"") -> 
B81: =IFERROR(VLOOKUP(A81,STAGIONALITA!$A$3:$M$105,2,FALSE)*P81,"") ->  | C81: =IFERROR(VLOOKUP(A81,STAGIONALITA!$A$3:$M$105,3,FALSE)*P81,"") ->  | D81: =IFERROR(VLOOKUP(A81,STAGIONALITA!$A$3:$M$105,4,FALSE)*P81,"") ->  | E81: =IFERROR(VLOOKUP(A81,STAGIONALITA!$A$3:$M$105,5,FALSE)*P81,"") ->  | F81: =IFERROR(VLOOKUP(A81,STAGIONALITA!$A$3:$M$105,6,FALSE)*P81,"") ->  | G81: =IFERROR(VLOOKUP(A81,STAGIONALITA!$A$3:$M$105,7,FALSE)*P81,"") ->  | H81: =IFERROR(VLOOKUP(A81,STAGIONALITA!$A$3:$M$105,8,FALSE)*P81,"") ->  | I81: =IFERROR(VLOOKUP(A81,STAGIONALITA!$A$3:$M$105,9,FALSE)*P81,"") ->  | J81: =IFERROR(VLOOKUP(A81,STAGIONALITA!$A$3:$M$105,10,FALSE)*P81,"") ->  | K81: =IFERROR(VLOOKUP(A81,STAGIONALITA!$A$3:$M$105,11,FALSE)*P81,"") ->  | L81: =IFERROR(VLOOKUP(A81,STAGIONALITA!$A$3:$M$105,12,FALSE)*P81,"") ->  | M81: =IFERROR(VLOOKUP(A81,STAGIONALITA!$A$3:$M$105,13,FALSE)*P81,"") -> 
B82: =IFERROR(VLOOKUP(A82,STAGIONALITA!$A$3:$M$105,2,FALSE)*P82,"") ->  | C82: =IFERROR(VLOOKUP(A82,STAGIONALITA!$A$3:$M$105,3,FALSE)*P82,"") ->  | D82: =IFERROR(VLOOKUP(A82,STAGIONALITA!$A$3:$M$105,4,FALSE)*P82,"") ->  | E82: =IFERROR(VLOOKUP(A82,STAGIONALITA!$A$3:$M$105,5,FALSE)*P82,"") ->  | F82: =IFERROR(VLOOKUP(A82,STAGIONALITA!$A$3:$M$105,6,FALSE)*P82,"") ->  | G82: =IFERROR(VLOOKUP(A82,STAGIONALITA!$A$3:$M$105,7,FALSE)*P82,"") ->  | H82: =IFERROR(VLOOKUP(A82,STAGIONALITA!$A$3:$M$105,8,FALSE)*P82,"") ->  | I82: =IFERROR(VLOOKUP(A82,STAGIONALITA!$A$3:$M$105,9,FALSE)*P82,"") ->  | J82: =IFERROR(VLOOKUP(A82,STAGIONALITA!$A$3:$M$105,10,FALSE)*P82,"") ->  | K82: =IFERROR(VLOOKUP(A82,STAGIONALITA!$A$3:$M$105,11,FALSE)*P82,"") ->  | L82: =IFERROR(VLOOKUP(A82,STAGIONALITA!$A$3:$M$105,12,FALSE)*P82,"") ->  | M82: =IFERROR(VLOOKUP(A82,STAGIONALITA!$A$3:$M$105,13,FALSE)*P82,"") -> 
B83: =IFERROR(VLOOKUP(A83,STAGIONALITA!$A$3:$M$105,2,FALSE)*P83,"") ->  | C83: =IFERROR(VLOOKUP(A83,STAGIONALITA!$A$3:$M$105,3,FALSE)*P83,"") ->  | D83: =IFERROR(VLOOKUP(A83,STAGIONALITA!$A$3:$M$105,4,FALSE)*P83,"") ->  | E83: =IFERROR(VLOOKUP(A83,STAGIONALITA!$A$3:$M$105,5,FALSE)*P83,"") ->  | F83: =IFERROR(VLOOKUP(A83,STAGIONALITA!$A$3:$M$105,6,FALSE)*P83,"") ->  | G83: =IFERROR(VLOOKUP(A83,STAGIONALITA!$A$3:$M$105,7,FALSE)*P83,"") ->  | H83: =IFERROR(VLOOKUP(A83,STAGIONALITA!$A$3:$M$105,8,FALSE)*P83,"") ->  | I83: =IFERROR(VLOOKUP(A83,STAGIONALITA!$A$3:$M$105,9,FALSE)*P83,"") ->  | J83: =IFERROR(VLOOKUP(A83,STAGIONALITA!$A$3:$M$105,10,FALSE)*P83,"") ->  | K83: =IFERROR(VLOOKUP(A83,STAGIONALITA!$A$3:$M$105,11,FALSE)*P83,"") ->  | L83: =IFERROR(VLOOKUP(A83,STAGIONALITA!$A$3:$M$105,12,FALSE)*P83,"") ->  | M83: =IFERROR(VLOOKUP(A83,STAGIONALITA!$A$3:$M$105,13,FALSE)*P83,"") -> 
B84: =IFERROR(VLOOKUP(A84,STAGIONALITA!$A$3:$M$105,2,FALSE)*P84,"") ->  | C84: =IFERROR(VLOOKUP(A84,STAGIONALITA!$A$3:$M$105,3,FALSE)*P84,"") ->  | D84: =IFERROR(VLOOKUP(A84,STAGIONALITA!$A$3:$M$105,4,FALSE)*P84,"") ->  | E84: =IFERROR(VLOOKUP(A84,STAGIONALITA!$A$3:$M$105,5,FALSE)*P84,"") ->  | F84: =IFERROR(VLOOKUP(A84,STAGIONALITA!$A$3:$M$105,6,FALSE)*P84,"") ->  | G84: =IFERROR(VLOOKUP(A84,STAGIONALITA!$A$3:$M$105,7,FALSE)*P84,"") ->  | H84: =IFERROR(VLOOKUP(A84,STAGIONALITA!$A$3:$M$105,8,FALSE)*P84,"") ->  | I84: =IFERROR(VLOOKUP(A84,STAGIONALITA!$A$3:$M$105,9,FALSE)*P84,"") ->  | J84: =IFERROR(VLOOKUP(A84,STAGIONALITA!$A$3:$M$105,10,FALSE)*P84,"") ->  | K84: =IFERROR(VLOOKUP(A84,STAGIONALITA!$A$3:$M$105,11,FALSE)*P84,"") ->  | L84: =IFERROR(VLOOKUP(A84,STAGIONALITA!$A$3:$M$105,12,FALSE)*P84,"") ->  | M84: =IFERROR(VLOOKUP(A84,STAGIONALITA!$A$3:$M$105,13,FALSE)*P84,"") -> 
B85: =IFERROR(VLOOKUP(A85,STAGIONALITA!$A$3:$M$105,2,FALSE)*P85,"") ->  | C85: =IFERROR(VLOOKUP(A85,STAGIONALITA!$A$3:$M$105,3,FALSE)*P85,"") ->  | D85: =IFERROR(VLOOKUP(A85,STAGIONALITA!$A$3:$M$105,4,FALSE)*P85,"") ->  | E85: =IFERROR(VLOOKUP(A85,STAGIONALITA!$A$3:$M$105,5,FALSE)*P85,"") ->  | F85: =IFERROR(VLOOKUP(A85,STAGIONALITA!$A$3:$M$105,6,FALSE)*P85,"") ->  | G85: =IFERROR(VLOOKUP(A85,STAGIONALITA!$A$3:$M$105,7,FALSE)*P85,"") ->  | H85: =IFERROR(VLOOKUP(A85,STAGIONALITA!$A$3:$M$105,8,FALSE)*P85,"") ->  | I85: =IFERROR(VLOOKUP(A85,STAGIONALITA!$A$3:$M$105,9,FALSE)*P85,"") ->  | J85: =IFERROR(VLOOKUP(A85,STAGIONALITA!$A$3:$M$105,10,FALSE)*P85,"") ->  | K85: =IFERROR(VLOOKUP(A85,STAGIONALITA!$A$3:$M$105,11,FALSE)*P85,"") ->  | L85: =IFERROR(VLOOKUP(A85,STAGIONALITA!$A$3:$M$105,12,FALSE)*P85,"") ->  | M85: =IFERROR(VLOOKUP(A85,STAGIONALITA!$A$3:$M$105,13,FALSE)*P85,"") -> 
B86: =IFERROR(VLOOKUP(A86,STAGIONALITA!$A$3:$M$105,2,FALSE)*P86,"") ->  | C86: =IFERROR(VLOOKUP(A86,STAGIONALITA!$A$3:$M$105,3,FALSE)*P86,"") ->  | D86: =IFERROR(VLOOKUP(A86,STAGIONALITA!$A$3:$M$105,4,FALSE)*P86,"") ->  | E86: =IFERROR(VLOOKUP(A86,STAGIONALITA!$A$3:$M$105,5,FALSE)*P86,"") ->  | F86: =IFERROR(VLOOKUP(A86,STAGIONALITA!$A$3:$M$105,6,FALSE)*P86,"") ->  | G86: =IFERROR(VLOOKUP(A86,STAGIONALITA!$A$3:$M$105,7,FALSE)*P86,"") ->  | H86: =IFERROR(VLOOKUP(A86,STAGIONALITA!$A$3:$M$105,8,FALSE)*P86,"") ->  | I86: =IFERROR(VLOOKUP(A86,STAGIONALITA!$A$3:$M$105,9,FALSE)*P86,"") ->  | J86: =IFERROR(VLOOKUP(A86,STAGIONALITA!$A$3:$M$105,10,FALSE)*P86,"") ->  | K86: =IFERROR(VLOOKUP(A86,STAGIONALITA!$A$3:$M$105,11,FALSE)*P86,"") ->  | L86: =IFERROR(VLOOKUP(A86,STAGIONALITA!$A$3:$M$105,12,FALSE)*P86,"") ->  | M86: =IFERROR(VLOOKUP(A86,STAGIONALITA!$A$3:$M$105,13,FALSE)*P86,"") -> 
B87: =IFERROR(VLOOKUP(A87,STAGIONALITA!$A$3:$M$105,2,FALSE)*P87,"") ->  | C87: =IFERROR(VLOOKUP(A87,STAGIONALITA!$A$3:$M$105,3,FALSE)*P87,"") ->  | D87: =IFERROR(VLOOKUP(A87,STAGIONALITA!$A$3:$M$105,4,FALSE)*P87,"") ->  | E87: =IFERROR(VLOOKUP(A87,STAGIONALITA!$A$3:$M$105,5,FALSE)*P87,"") ->  | F87: =IFERROR(VLOOKUP(A87,STAGIONALITA!$A$3:$M$105,6,FALSE)*P87,"") ->  | G87: =IFERROR(VLOOKUP(A87,STAGIONALITA!$A$3:$M$105,7,FALSE)*P87,"") ->  | H87: =IFERROR(VLOOKUP(A87,STAGIONALITA!$A$3:$M$105,8,FALSE)*P87,"") ->  | I87: =IFERROR(VLOOKUP(A87,STAGIONALITA!$A$3:$M$105,9,FALSE)*P87,"") ->  | J87: =IFERROR(VLOOKUP(A87,STAGIONALITA!$A$3:$M$105,10,FALSE)*P87,"") ->  | K87: =IFERROR(VLOOKUP(A87,STAGIONALITA!$A$3:$M$105,11,FALSE)*P87,"") ->  | L87: =IFERROR(VLOOKUP(A87,STAGIONALITA!$A$3:$M$105,12,FALSE)*P87,"") ->  | M87: =IFERROR(VLOOKUP(A87,STAGIONALITA!$A$3:$M$105,13,FALSE)*P87,"") -> 
B88: =IFERROR(VLOOKUP(A88,STAGIONALITA!$A$3:$M$105,2,FALSE)*P88,"") ->  | C88: =IFERROR(VLOOKUP(A88,STAGIONALITA!$A$3:$M$105,3,FALSE)*P88,"") ->  | D88: =IFERROR(VLOOKUP(A88,STAGIONALITA!$A$3:$M$105,4,FALSE)*P88,"") ->  | E88: =IFERROR(VLOOKUP(A88,STAGIONALITA!$A$3:$M$105,5,FALSE)*P88,"") ->  | F88: =IFERROR(VLOOKUP(A88,STAGIONALITA!$A$3:$M$105,6,FALSE)*P88,"") ->  | G88: =IFERROR(VLOOKUP(A88,STAGIONALITA!$A$3:$M$105,7,FALSE)*P88,"") ->  | H88: =IFERROR(VLOOKUP(A88,STAGIONALITA!$A$3:$M$105,8,FALSE)*P88,"") ->  | I88: =IFERROR(VLOOKUP(A88,STAGIONALITA!$A$3:$M$105,9,FALSE)*P88,"") ->  | J88: =IFERROR(VLOOKUP(A88,STAGIONALITA!$A$3:$M$105,10,FALSE)*P88,"") ->  | K88: =IFERROR(VLOOKUP(A88,STAGIONALITA!$A$3:$M$105,11,FALSE)*P88,"") ->  | L88: =IFERROR(VLOOKUP(A88,STAGIONALITA!$A$3:$M$105,12,FALSE)*P88,"") ->  | M88: =IFERROR(VLOOKUP(A88,STAGIONALITA!$A$3:$M$105,13,FALSE)*P88,"") -> 
B89: =IFERROR(VLOOKUP(A89,STAGIONALITA!$A$3:$M$105,2,FALSE)*P89,"") ->  | C89: =IFERROR(VLOOKUP(A89,STAGIONALITA!$A$3:$M$105,3,FALSE)*P89,"") ->  | D89: =IFERROR(VLOOKUP(A89,STAGIONALITA!$A$3:$M$105,4,FALSE)*P89,"") ->  | E89: =IFERROR(VLOOKUP(A89,STAGIONALITA!$A$3:$M$105,5,FALSE)*P89,"") ->  | F89: =IFERROR(VLOOKUP(A89,STAGIONALITA!$A$3:$M$105,6,FALSE)*P89,"") ->  | G89: =IFERROR(VLOOKUP(A89,STAGIONALITA!$A$3:$M$105,7,FALSE)*P89,"") ->  | H89: =IFERROR(VLOOKUP(A89,STAGIONALITA!$A$3:$M$105,8,FALSE)*P89,"") ->  | I89: =IFERROR(VLOOKUP(A89,STAGIONALITA!$A$3:$M$105,9,FALSE)*P89,"") ->  | J89: =IFERROR(VLOOKUP(A89,STAGIONALITA!$A$3:$M$105,10,FALSE)*P89,"") ->  | K89: =IFERROR(VLOOKUP(A89,STAGIONALITA!$A$3:$M$105,11,FALSE)*P89,"") ->  | L89: =IFERROR(VLOOKUP(A89,STAGIONALITA!$A$3:$M$105,12,FALSE)*P89,"") ->  | M89: =IFERROR(VLOOKUP(A89,STAGIONALITA!$A$3:$M$105,13,FALSE)*P89,"") -> 
B90: =IFERROR(VLOOKUP(A90,STAGIONALITA!$A$3:$M$105,2,FALSE)*P90,"") ->  | C90: =IFERROR(VLOOKUP(A90,STAGIONALITA!$A$3:$M$105,3,FALSE)*P90,"") ->  | D90: =IFERROR(VLOOKUP(A90,STAGIONALITA!$A$3:$M$105,4,FALSE)*P90,"") ->  | E90: =IFERROR(VLOOKUP(A90,STAGIONALITA!$A$3:$M$105,5,FALSE)*P90,"") ->  | F90: =IFERROR(VLOOKUP(A90,STAGIONALITA!$A$3:$M$105,6,FALSE)*P90,"") ->  | G90: =IFERROR(VLOOKUP(A90,STAGIONALITA!$A$3:$M$105,7,FALSE)*P90,"") ->  | H90: =IFERROR(VLOOKUP(A90,STAGIONALITA!$A$3:$M$105,8,FALSE)*P90,"") ->  | I90: =IFERROR(VLOOKUP(A90,STAGIONALITA!$A$3:$M$105,9,FALSE)*P90,"") ->  | J90: =IFERROR(VLOOKUP(A90,STAGIONALITA!$A$3:$M$105,10,FALSE)*P90,"") ->  | K90: =IFERROR(VLOOKUP(A90,STAGIONALITA!$A$3:$M$105,11,FALSE)*P90,"") ->  | L90: =IFERROR(VLOOKUP(A90,STAGIONALITA!$A$3:$M$105,12,FALSE)*P90,"") ->  | M90: =IFERROR(VLOOKUP(A90,STAGIONALITA!$A$3:$M$105,13,FALSE)*P90,"") -> 
B91: =IFERROR(VLOOKUP(A91,STAGIONALITA!$A$3:$M$105,2,FALSE)*P91,"") ->  | C91: =IFERROR(VLOOKUP(A91,STAGIONALITA!$A$3:$M$105,3,FALSE)*P91,"") ->  | D91: =IFERROR(VLOOKUP(A91,STAGIONALITA!$A$3:$M$105,4,FALSE)*P91,"") ->  | E91: =IFERROR(VLOOKUP(A91,STAGIONALITA!$A$3:$M$105,5,FALSE)*P91,"") ->  | F91: =IFERROR(VLOOKUP(A91,STAGIONALITA!$A$3:$M$105,6,FALSE)*P91,"") ->  | G91: =IFERROR(VLOOKUP(A91,STAGIONALITA!$A$3:$M$105,7,FALSE)*P91,"") ->  | H91: =IFERROR(VLOOKUP(A91,STAGIONALITA!$A$3:$M$105,8,FALSE)*P91,"") ->  | I91: =IFERROR(VLOOKUP(A91,STAGIONALITA!$A$3:$M$105,9,FALSE)*P91,"") ->  | J91: =IFERROR(VLOOKUP(A91,STAGIONALITA!$A$3:$M$105,10,FALSE)*P91,"") ->  | K91: =IFERROR(VLOOKUP(A91,STAGIONALITA!$A$3:$M$105,11,FALSE)*P91,"") ->  | L91: =IFERROR(VLOOKUP(A91,STAGIONALITA!$A$3:$M$105,12,FALSE)*P91,"") ->  | M91: =IFERROR(VLOOKUP(A91,STAGIONALITA!$A$3:$M$105,13,FALSE)*P91,"") -> 
B92: =IFERROR(VLOOKUP(A92,STAGIONALITA!$A$3:$M$105,2,FALSE)*P92,"") ->  | C92: =IFERROR(VLOOKUP(A92,STAGIONALITA!$A$3:$M$105,3,FALSE)*P92,"") ->  | D92: =IFERROR(VLOOKUP(A92,STAGIONALITA!$A$3:$M$105,4,FALSE)*P92,"") ->  | E92: =IFERROR(VLOOKUP(A92,STAGIONALITA!$A$3:$M$105,5,FALSE)*P92,"") ->  | F92: =IFERROR(VLOOKUP(A92,STAGIONALITA!$A$3:$M$105,6,FALSE)*P92,"") ->  | G92: =IFERROR(VLOOKUP(A92,STAGIONALITA!$A$3:$M$105,7,FALSE)*P92,"") ->  | H92: =IFERROR(VLOOKUP(A92,STAGIONALITA!$A$3:$M$105,8,FALSE)*P92,"") ->  | I92: =IFERROR(VLOOKUP(A92,STAGIONALITA!$A$3:$M$105,9,FALSE)*P92,"") ->  | J92: =IFERROR(VLOOKUP(A92,STAGIONALITA!$A$3:$M$105,10,FALSE)*P92,"") ->  | K92: =IFERROR(VLOOKUP(A92,STAGIONALITA!$A$3:$M$105,11,FALSE)*P92,"") ->  | L92: =IFERROR(VLOOKUP(A92,STAGIONALITA!$A$3:$M$105,12,FALSE)*P92,"") ->  | M92: =IFERROR(VLOOKUP(A92,STAGIONALITA!$A$3:$M$105,13,FALSE)*P92,"") -> 
B93: =IFERROR(VLOOKUP(A93,STAGIONALITA!$A$3:$M$105,2,FALSE)*P93,"") ->  | C93: =IFERROR(VLOOKUP(A93,STAGIONALITA!$A$3:$M$105,3,FALSE)*P93,"") ->  | D93: =IFERROR(VLOOKUP(A93,STAGIONALITA!$A$3:$M$105,4,FALSE)*P93,"") ->  | E93: =IFERROR(VLOOKUP(A93,STAGIONALITA!$A$3:$M$105,5,FALSE)*P93,"") ->  | F93: =IFERROR(VLOOKUP(A93,STAGIONALITA!$A$3:$M$105,6,FALSE)*P93,"") ->  | G93: =IFERROR(VLOOKUP(A93,STAGIONALITA!$A$3:$M$105,7,FALSE)*P93,"") ->  | H93: =IFERROR(VLOOKUP(A93,STAGIONALITA!$A$3:$M$105,8,FALSE)*P93,"") ->  | I93: =IFERROR(VLOOKUP(A93,STAGIONALITA!$A$3:$M$105,9,FALSE)*P93,"") ->  | J93: =IFERROR(VLOOKUP(A93,STAGIONALITA!$A$3:$M$105,10,FALSE)*P93,"") ->  | K93: =IFERROR(VLOOKUP(A93,STAGIONALITA!$A$3:$M$105,11,FALSE)*P93,"") ->  | L93: =IFERROR(VLOOKUP(A93,STAGIONALITA!$A$3:$M$105,12,FALSE)*P93,"") ->  | M93: =IFERROR(VLOOKUP(A93,STAGIONALITA!$A$3:$M$105,13,FALSE)*P93,"") -> 
B94: =IFERROR(VLOOKUP(A94,STAGIONALITA!$A$3:$M$105,2,FALSE)*P94,"") ->  | C94: =IFERROR(VLOOKUP(A94,STAGIONALITA!$A$3:$M$105,3,FALSE)*P94,"") ->  | D94: =IFERROR(VLOOKUP(A94,STAGIONALITA!$A$3:$M$105,4,FALSE)*P94,"") ->  | E94: =IFERROR(VLOOKUP(A94,STAGIONALITA!$A$3:$M$105,5,FALSE)*P94,"") ->  | F94: =IFERROR(VLOOKUP(A94,STAGIONALITA!$A$3:$M$105,6,FALSE)*P94,"") ->  | G94: =IFERROR(VLOOKUP(A94,STAGIONALITA!$A$3:$M$105,7,FALSE)*P94,"") ->  | H94: =IFERROR(VLOOKUP(A94,STAGIONALITA!$A$3:$M$105,8,FALSE)*P94,"") ->  | I94: =IFERROR(VLOOKUP(A94,STAGIONALITA!$A$3:$M$105,9,FALSE)*P94,"") ->  | J94: =IFERROR(VLOOKUP(A94,STAGIONALITA!$A$3:$M$105,10,FALSE)*P94,"") ->  | K94: =IFERROR(VLOOKUP(A94,STAGIONALITA!$A$3:$M$105,11,FALSE)*P94,"") ->  | L94: =IFERROR(VLOOKUP(A94,STAGIONALITA!$A$3:$M$105,12,FALSE)*P94,"") ->  | M94: =IFERROR(VLOOKUP(A94,STAGIONALITA!$A$3:$M$105,13,FALSE)*P94,"") -> 
B95: =IFERROR(VLOOKUP(A95,STAGIONALITA!$A$3:$M$105,2,FALSE)*P95,"") ->  | C95: =IFERROR(VLOOKUP(A95,STAGIONALITA!$A$3:$M$105,3,FALSE)*P95,"") ->  | D95: =IFERROR(VLOOKUP(A95,STAGIONALITA!$A$3:$M$105,4,FALSE)*P95,"") ->  | E95: =IFERROR(VLOOKUP(A95,STAGIONALITA!$A$3:$M$105,5,FALSE)*P95,"") ->  | F95: =IFERROR(VLOOKUP(A95,STAGIONALITA!$A$3:$M$105,6,FALSE)*P95,"") ->  | G95: =IFERROR(VLOOKUP(A95,STAGIONALITA!$A$3:$M$105,7,FALSE)*P95,"") ->  | H95: =IFERROR(VLOOKUP(A95,STAGIONALITA!$A$3:$M$105,8,FALSE)*P95,"") ->  | I95: =IFERROR(VLOOKUP(A95,STAGIONALITA!$A$3:$M$105,9,FALSE)*P95,"") ->  | J95: =IFERROR(VLOOKUP(A95,STAGIONALITA!$A$3:$M$105,10,FALSE)*P95,"") ->  | K95: =IFERROR(VLOOKUP(A95,STAGIONALITA!$A$3:$M$105,11,FALSE)*P95,"") ->  | L95: =IFERROR(VLOOKUP(A95,STAGIONALITA!$A$3:$M$105,12,FALSE)*P95,"") ->  | M95: =IFERROR(VLOOKUP(A95,STAGIONALITA!$A$3:$M$105,13,FALSE)*P95,"") -> 
B96: =IFERROR(VLOOKUP(A96,STAGIONALITA!$A$3:$M$105,2,FALSE)*P96,"") ->  | C96: =IFERROR(VLOOKUP(A96,STAGIONALITA!$A$3:$M$105,3,FALSE)*P96,"") ->  | D96: =IFERROR(VLOOKUP(A96,STAGIONALITA!$A$3:$M$105,4,FALSE)*P96,"") ->  | E96: =IFERROR(VLOOKUP(A96,STAGIONALITA!$A$3:$M$105,5,FALSE)*P96,"") ->  | F96: =IFERROR(VLOOKUP(A96,STAGIONALITA!$A$3:$M$105,6,FALSE)*P96,"") ->  | G96: =IFERROR(VLOOKUP(A96,STAGIONALITA!$A$3:$M$105,7,FALSE)*P96,"") ->  | H96: =IFERROR(VLOOKUP(A96,STAGIONALITA!$A$3:$M$105,8,FALSE)*P96,"") ->  | I96: =IFERROR(VLOOKUP(A96,STAGIONALITA!$A$3:$M$105,9,FALSE)*P96,"") ->  | J96: =IFERROR(VLOOKUP(A96,STAGIONALITA!$A$3:$M$105,10,FALSE)*P96,"") ->  | K96: =IFERROR(VLOOKUP(A96,STAGIONALITA!$A$3:$M$105,11,FALSE)*P96,"") ->  | L96: =IFERROR(VLOOKUP(A96,STAGIONALITA!$A$3:$M$105,12,FALSE)*P96,"") ->  | M96: =IFERROR(VLOOKUP(A96,STAGIONALITA!$A$3:$M$105,13,FALSE)*P96,"") -> 
B97: =IFERROR(VLOOKUP(A97,STAGIONALITA!$A$3:$M$105,2,FALSE)*P97,"") ->  | C97: =IFERROR(VLOOKUP(A97,STAGIONALITA!$A$3:$M$105,3,FALSE)*P97,"") ->  | D97: =IFERROR(VLOOKUP(A97,STAGIONALITA!$A$3:$M$105,4,FALSE)*P97,"") ->  | E97: =IFERROR(VLOOKUP(A97,STAGIONALITA!$A$3:$M$105,5,FALSE)*P97,"") ->  | F97: =IFERROR(VLOOKUP(A97,STAGIONALITA!$A$3:$M$105,6,FALSE)*P97,"") ->  | G97: =IFERROR(VLOOKUP(A97,STAGIONALITA!$A$3:$M$105,7,FALSE)*P97,"") ->  | H97: =IFERROR(VLOOKUP(A97,STAGIONALITA!$A$3:$M$105,8,FALSE)*P97,"") ->  | I97: =IFERROR(VLOOKUP(A97,STAGIONALITA!$A$3:$M$105,9,FALSE)*P97,"") ->  | J97: =IFERROR(VLOOKUP(A97,STAGIONALITA!$A$3:$M$105,10,FALSE)*P97,"") ->  | K97: =IFERROR(VLOOKUP(A97,STAGIONALITA!$A$3:$M$105,11,FALSE)*P97,"") ->  | L97: =IFERROR(VLOOKUP(A97,STAGIONALITA!$A$3:$M$105,12,FALSE)*P97,"") ->  | M97: =IFERROR(VLOOKUP(A97,STAGIONALITA!$A$3:$M$105,13,FALSE)*P97,"") -> 
B98: =IFERROR(VLOOKUP(A98,STAGIONALITA!$A$3:$M$105,2,FALSE)*P98,"") ->  | C98: =IFERROR(VLOOKUP(A98,STAGIONALITA!$A$3:$M$105,3,FALSE)*P98,"") ->  | D98: =IFERROR(VLOOKUP(A98,STAGIONALITA!$A$3:$M$105,4,FALSE)*P98,"") ->  | E98: =IFERROR(VLOOKUP(A98,STAGIONALITA!$A$3:$M$105,5,FALSE)*P98,"") ->  | F98: =IFERROR(VLOOKUP(A98,STAGIONALITA!$A$3:$M$105,6,FALSE)*P98,"") ->  | G98: =IFERROR(VLOOKUP(A98,STAGIONALITA!$A$3:$M$105,7,FALSE)*P98,"") ->  | H98: =IFERROR(VLOOKUP(A98,STAGIONALITA!$A$3:$M$105,8,FALSE)*P98,"") ->  | I98: =IFERROR(VLOOKUP(A98,STAGIONALITA!$A$3:$M$105,9,FALSE)*P98,"") ->  | J98: =IFERROR(VLOOKUP(A98,STAGIONALITA!$A$3:$M$105,10,FALSE)*P98,"") ->  | K98: =IFERROR(VLOOKUP(A98,STAGIONALITA!$A$3:$M$105,11,FALSE)*P98,"") ->  | L98: =IFERROR(VLOOKUP(A98,STAGIONALITA!$A$3:$M$105,12,FALSE)*P98,"") ->  | M98: =IFERROR(VLOOKUP(A98,STAGIONALITA!$A$3:$M$105,13,FALSE)*P98,"") -> 
B99: =IFERROR(VLOOKUP(A99,STAGIONALITA!$A$3:$M$105,2,FALSE)*P99,"") ->  | C99: =IFERROR(VLOOKUP(A99,STAGIONALITA!$A$3:$M$105,3,FALSE)*P99,"") ->  | D99: =IFERROR(VLOOKUP(A99,STAGIONALITA!$A$3:$M$105,4,FALSE)*P99,"") ->  | E99: =IFERROR(VLOOKUP(A99,STAGIONALITA!$A$3:$M$105,5,FALSE)*P99,"") ->  | F99: =IFERROR(VLOOKUP(A99,STAGIONALITA!$A$3:$M$105,6,FALSE)*P99,"") ->  | G99: =IFERROR(VLOOKUP(A99,STAGIONALITA!$A$3:$M$105,7,FALSE)*P99,"") ->  | H99: =IFERROR(VLOOKUP(A99,STAGIONALITA!$A$3:$M$105,8,FALSE)*P99,"") ->  | I99: =IFERROR(VLOOKUP(A99,STAGIONALITA!$A$3:$M$105,9,FALSE)*P99,"") ->  | J99: =IFERROR(VLOOKUP(A99,STAGIONALITA!$A$3:$M$105,10,FALSE)*P99,"") ->  | K99: =IFERROR(VLOOKUP(A99,STAGIONALITA!$A$3:$M$105,11,FALSE)*P99,"") ->  | L99: =IFERROR(VLOOKUP(A99,STAGIONALITA!$A$3:$M$105,12,FALSE)*P99,"") ->  | M99: =IFERROR(VLOOKUP(A99,STAGIONALITA!$A$3:$M$105,13,FALSE)*P99,"") -> 
A100: =IF(O100=0,"",O100) ->  | B100: =IFERROR(VLOOKUP(A100,STAGIONALITA!$A$3:$M$105,2,FALSE)*P100,"") ->  | C100: =IFERROR(VLOOKUP(A100,STAGIONALITA!$A$3:$M$105,3,FALSE)*P100,"") ->  | D100: =IFERROR(VLOOKUP(A100,STAGIONALITA!$A$3:$M$105,4,FALSE)*P100,"") ->  | E100: =IFERROR(VLOOKUP(A100,STAGIONALITA!$A$3:$M$105,5,FALSE)*P100,"") ->  | F100: =IFERROR(VLOOKUP(A100,STAGIONALITA!$A$3:$M$105,6,FALSE)*P100,"") ->  | G100: =IFERROR(VLOOKUP(A100,STAGIONALITA!$A$3:$M$105,7,FALSE)*P100,"") ->  | H100: =IFERROR(VLOOKUP(A100,STAGIONALITA!$A$3:$M$105,8,FALSE)*P100,"") ->  | I100: =IFERROR(VLOOKUP(A100,STAGIONALITA!$A$3:$M$105,9,FALSE)*P100,"") ->  | J100: =IFERROR(VLOOKUP(A100,STAGIONALITA!$A$3:$M$105,10,FALSE)*P100,"") ->  | K100: =IFERROR(VLOOKUP(A100,STAGIONALITA!$A$3:$M$105,11,FALSE)*P100,"") ->  | L100: =IFERROR(VLOOKUP(A100,STAGIONALITA!$A$3:$M$105,12,FALSE)*P100,"") ->  | M100: =IFERROR(VLOOKUP(A100,STAGIONALITA!$A$3:$M$105,13,FALSE)*P100,"") -> 
B101: =IFERROR(VLOOKUP(A101,STAGIONALITA!$A$3:$M$105,2,FALSE)*P101,"") ->  | C101: =IFERROR(VLOOKUP(A101,STAGIONALITA!$A$3:$M$105,3,FALSE)*P101,"") ->  | D101: =IFERROR(VLOOKUP(A101,STAGIONALITA!$A$3:$M$105,4,FALSE)*P101,"") ->  | E101: =IFERROR(VLOOKUP(A101,STAGIONALITA!$A$3:$M$105,5,FALSE)*P101,"") ->  | F101: =IFERROR(VLOOKUP(A101,STAGIONALITA!$A$3:$M$105,6,FALSE)*P101,"") ->  | G101: =IFERROR(VLOOKUP(A101,STAGIONALITA!$A$3:$M$105,7,FALSE)*P101,"") ->  | H101: =IFERROR(VLOOKUP(A101,STAGIONALITA!$A$3:$M$105,8,FALSE)*P101,"") ->  | I101: =IFERROR(VLOOKUP(A101,STAGIONALITA!$A$3:$M$105,9,FALSE)*P101,"") ->  | J101: =IFERROR(VLOOKUP(A101,STAGIONALITA!$A$3:$M$105,10,FALSE)*P101,"") ->  | K101: =IFERROR(VLOOKUP(A101,STAGIONALITA!$A$3:$M$105,11,FALSE)*P101,"") ->  | L101: =IFERROR(VLOOKUP(A101,STAGIONALITA!$A$3:$M$105,12,FALSE)*P101,"") ->  | M101: =IFERROR(VLOOKUP(A101,STAGIONALITA!$A$3:$M$105,13,FALSE)*P101,"") -> 
B102: =IFERROR(VLOOKUP(A102,STAGIONALITA!$A$3:$M$105,2,FALSE)*P102,"") ->  | C102: =IFERROR(VLOOKUP(A102,STAGIONALITA!$A$3:$M$105,3,FALSE)*P102,"") ->  | D102: =IFERROR(VLOOKUP(A102,STAGIONALITA!$A$3:$M$105,4,FALSE)*P102,"") ->  | E102: =IFERROR(VLOOKUP(A102,STAGIONALITA!$A$3:$M$105,5,FALSE)*P102,"") ->  | F102: =IFERROR(VLOOKUP(A102,STAGIONALITA!$A$3:$M$105,6,FALSE)*P102,"") ->  | G102: =IFERROR(VLOOKUP(A102,STAGIONALITA!$A$3:$M$105,7,FALSE)*P102,"") ->  | H102: =IFERROR(VLOOKUP(A102,STAGIONALITA!$A$3:$M$105,8,FALSE)*P102,"") ->  | I102: =IFERROR(VLOOKUP(A102,STAGIONALITA!$A$3:$M$105,9,FALSE)*P102,"") ->  | J102: =IFERROR(VLOOKUP(A102,STAGIONALITA!$A$3:$M$105,10,FALSE)*P102,"") ->  | K102: =IFERROR(VLOOKUP(A102,STAGIONALITA!$A$3:$M$105,11,FALSE)*P102,"") ->  | L102: =IFERROR(VLOOKUP(A102,STAGIONALITA!$A$3:$M$105,12,FALSE)*P102,"") ->  | M102: =IFERROR(VLOOKUP(A102,STAGIONALITA!$A$3:$M$105,13,FALSE)*P102,"") -> 
B103: =IFERROR(VLOOKUP(A103,STAGIONALITA!$A$3:$M$105,2,FALSE)*P103,"") ->  | C103: =IFERROR(VLOOKUP(A103,STAGIONALITA!$A$3:$M$105,3,FALSE)*P103,"") ->  | D103: =IFERROR(VLOOKUP(A103,STAGIONALITA!$A$3:$M$105,4,FALSE)*P103,"") ->  | E103: =IFERROR(VLOOKUP(A103,STAGIONALITA!$A$3:$M$105,5,FALSE)*P103,"") ->  | F103: =IFERROR(VLOOKUP(A103,STAGIONALITA!$A$3:$M$105,6,FALSE)*P103,"") ->  | G103: =IFERROR(VLOOKUP(A103,STAGIONALITA!$A$3:$M$105,7,FALSE)*P103,"") ->  | H103: =IFERROR(VLOOKUP(A103,STAGIONALITA!$A$3:$M$105,8,FALSE)*P103,"") ->  | I103: =IFERROR(VLOOKUP(A103,STAGIONALITA!$A$3:$M$105,9,FALSE)*P103,"") ->  | J103: =IFERROR(VLOOKUP(A103,STAGIONALITA!$A$3:$M$105,10,FALSE)*P103,"") ->  | K103: =IFERROR(VLOOKUP(A103,STAGIONALITA!$A$3:$M$105,11,FALSE)*P103,"") ->  | L103: =IFERROR(VLOOKUP(A103,STAGIONALITA!$A$3:$M$105,12,FALSE)*P103,"") ->  | M103: =IFERROR(VLOOKUP(A103,STAGIONALITA!$A$3:$M$105,13,FALSE)*P103,"") -> 
B104: =IFERROR(VLOOKUP(A104,STAGIONALITA!$A$3:$M$105,2,FALSE)*P104,"") ->  | C104: =IFERROR(VLOOKUP(A104,STAGIONALITA!$A$3:$M$105,3,FALSE)*P104,"") ->  | D104: =IFERROR(VLOOKUP(A104,STAGIONALITA!$A$3:$M$105,4,FALSE)*P104,"") ->  | E104: =IFERROR(VLOOKUP(A104,STAGIONALITA!$A$3:$M$105,5,FALSE)*P104,"") ->  | F104: =IFERROR(VLOOKUP(A104,STAGIONALITA!$A$3:$M$105,6,FALSE)*P104,"") ->  | G104: =IFERROR(VLOOKUP(A104,STAGIONALITA!$A$3:$M$105,7,FALSE)*P104,"") ->  | H104: =IFERROR(VLOOKUP(A104,STAGIONALITA!$A$3:$M$105,8,FALSE)*P104,"") ->  | I104: =IFERROR(VLOOKUP(A104,STAGIONALITA!$A$3:$M$105,9,FALSE)*P104,"") ->  | J104: =IFERROR(VLOOKUP(A104,STAGIONALITA!$A$3:$M$105,10,FALSE)*P104,"") ->  | K104: =IFERROR(VLOOKUP(A104,STAGIONALITA!$A$3:$M$105,11,FALSE)*P104,"") ->  | L104: =IFERROR(VLOOKUP(A104,STAGIONALITA!$A$3:$M$105,12,FALSE)*P104,"") ->  | M104: =IFERROR(VLOOKUP(A104,STAGIONALITA!$A$3:$M$105,13,FALSE)*P104,"") -> 
B105: =IFERROR(VLOOKUP(A105,STAGIONALITA!$A$3:$M$105,2,FALSE)*P105,"") ->  | C105: =IFERROR(VLOOKUP(A105,STAGIONALITA!$A$3:$M$105,3,FALSE)*P105,"") ->  | D105: =IFERROR(VLOOKUP(A105,STAGIONALITA!$A$3:$M$105,4,FALSE)*P105,"") ->  | E105: =IFERROR(VLOOKUP(A105,STAGIONALITA!$A$3:$M$105,5,FALSE)*P105,"") ->  | F105: =IFERROR(VLOOKUP(A105,STAGIONALITA!$A$3:$M$105,6,FALSE)*P105,"") ->  | G105: =IFERROR(VLOOKUP(A105,STAGIONALITA!$A$3:$M$105,7,FALSE)*P105,"") ->  | H105: =IFERROR(VLOOKUP(A105,STAGIONALITA!$A$3:$M$105,8,FALSE)*P105,"") ->  | I105: =IFERROR(VLOOKUP(A105,STAGIONALITA!$A$3:$M$105,9,FALSE)*P105,"") ->  | J105: =IFERROR(VLOOKUP(A105,STAGIONALITA!$A$3:$M$105,10,FALSE)*P105,"") ->  | K105: =IFERROR(VLOOKUP(A105,STAGIONALITA!$A$3:$M$105,11,FALSE)*P105,"") ->  | L105: =IFERROR(VLOOKUP(A105,STAGIONALITA!$A$3:$M$105,12,FALSE)*P105,"") ->  | M105: =IFERROR(VLOOKUP(A105,STAGIONALITA!$A$3:$M$105,13,FALSE)*P105,"") -> 
B106: =IFERROR(VLOOKUP(A106,STAGIONALITA!$A$3:$M$105,2,FALSE)*P106,"") ->  | C106: =IFERROR(VLOOKUP(A106,STAGIONALITA!$A$3:$M$105,3,FALSE)*P106,"") ->  | D106: =IFERROR(VLOOKUP(A106,STAGIONALITA!$A$3:$M$105,4,FALSE)*P106,"") ->  | E106: =IFERROR(VLOOKUP(A106,STAGIONALITA!$A$3:$M$105,5,FALSE)*P106,"") ->  | F106: =IFERROR(VLOOKUP(A106,STAGIONALITA!$A$3:$M$105,6,FALSE)*P106,"") ->  | G106: =IFERROR(VLOOKUP(A106,STAGIONALITA!$A$3:$M$105,7,FALSE)*P106,"") ->  | H106: =IFERROR(VLOOKUP(A106,STAGIONALITA!$A$3:$M$105,8,FALSE)*P106,"") ->  | I106: =IFERROR(VLOOKUP(A106,STAGIONALITA!$A$3:$M$105,9,FALSE)*P106,"") ->  | J106: =IFERROR(VLOOKUP(A106,STAGIONALITA!$A$3:$M$105,10,FALSE)*P106,"") ->  | K106: =IFERROR(VLOOKUP(A106,STAGIONALITA!$A$3:$M$105,11,FALSE)*P106,"") ->  | L106: =IFERROR(VLOOKUP(A106,STAGIONALITA!$A$3:$M$105,12,FALSE)*P106,"") ->  | M106: =IFERROR(VLOOKUP(A106,STAGIONALITA!$A$3:$M$105,13,FALSE)*P106,"") -> 
B107: =IFERROR(VLOOKUP(A107,STAGIONALITA!$A$3:$M$105,2,FALSE)*P107,"") ->  | C107: =IFERROR(VLOOKUP(A107,STAGIONALITA!$A$3:$M$105,3,FALSE)*P107,"") ->  | D107: =IFERROR(VLOOKUP(A107,STAGIONALITA!$A$3:$M$105,4,FALSE)*P107,"") ->  | E107: =IFERROR(VLOOKUP(A107,STAGIONALITA!$A$3:$M$105,5,FALSE)*P107,"") ->  | F107: =IFERROR(VLOOKUP(A107,STAGIONALITA!$A$3:$M$105,6,FALSE)*P107,"") ->  | G107: =IFERROR(VLOOKUP(A107,STAGIONALITA!$A$3:$M$105,7,FALSE)*P107,"") ->  | H107: =IFERROR(VLOOKUP(A107,STAGIONALITA!$A$3:$M$105,8,FALSE)*P107,"") ->  | I107: =IFERROR(VLOOKUP(A107,STAGIONALITA!$A$3:$M$105,9,FALSE)*P107,"") ->  | J107: =IFERROR(VLOOKUP(A107,STAGIONALITA!$A$3:$M$105,10,FALSE)*P107,"") ->  | K107: =IFERROR(VLOOKUP(A107,STAGIONALITA!$A$3:$M$105,11,FALSE)*P107,"") ->  | L107: =IFERROR(VLOOKUP(A107,STAGIONALITA!$A$3:$M$105,12,FALSE)*P107,"") ->  | M107: =IFERROR(VLOOKUP(A107,STAGIONALITA!$A$3:$M$105,13,FALSE)*P107,"") -> 
B108: =IFERROR(VLOOKUP(A108,STAGIONALITA!$A$3:$M$105,2,FALSE)*P108,"") ->  | C108: =IFERROR(VLOOKUP(A108,STAGIONALITA!$A$3:$M$105,3,FALSE)*P108,"") ->  | D108: =IFERROR(VLOOKUP(A108,STAGIONALITA!$A$3:$M$105,4,FALSE)*P108,"") ->  | E108: =IFERROR(VLOOKUP(A108,STAGIONALITA!$A$3:$M$105,5,FALSE)*P108,"") ->  | F108: =IFERROR(VLOOKUP(A108,STAGIONALITA!$A$3:$M$105,6,FALSE)*P108,"") ->  | G108: =IFERROR(VLOOKUP(A108,STAGIONALITA!$A$3:$M$105,7,FALSE)*P108,"") ->  | H108: =IFERROR(VLOOKUP(A108,STAGIONALITA!$A$3:$M$105,8,FALSE)*P108,"") ->  | I108: =IFERROR(VLOOKUP(A108,STAGIONALITA!$A$3:$M$105,9,FALSE)*P108,"") ->  | J108: =IFERROR(VLOOKUP(A108,STAGIONALITA!$A$3:$M$105,10,FALSE)*P108,"") ->  | K108: =IFERROR(VLOOKUP(A108,STAGIONALITA!$A$3:$M$105,11,FALSE)*P108,"") ->  | L108: =IFERROR(VLOOKUP(A108,STAGIONALITA!$A$3:$M$105,12,FALSE)*P108,"") ->  | M108: =IFERROR(VLOOKUP(A108,STAGIONALITA!$A$3:$M$105,13,FALSE)*P108,"") -> 
B109: =IFERROR(VLOOKUP(A109,STAGIONALITA!$A$3:$M$105,2,FALSE)*P109,"") ->  | C109: =IFERROR(VLOOKUP(A109,STAGIONALITA!$A$3:$M$105,3,FALSE)*P109,"") ->  | D109: =IFERROR(VLOOKUP(A109,STAGIONALITA!$A$3:$M$105,4,FALSE)*P109,"") ->  | E109: =IFERROR(VLOOKUP(A109,STAGIONALITA!$A$3:$M$105,5,FALSE)*P109,"") ->  | F109: =IFERROR(VLOOKUP(A109,STAGIONALITA!$A$3:$M$105,6,FALSE)*P109,"") ->  | G109: =IFERROR(VLOOKUP(A109,STAGIONALITA!$A$3:$M$105,7,FALSE)*P109,"") ->  | H109: =IFERROR(VLOOKUP(A109,STAGIONALITA!$A$3:$M$105,8,FALSE)*P109,"") ->  | I109: =IFERROR(VLOOKUP(A109,STAGIONALITA!$A$3:$M$105,9,FALSE)*P109,"") ->  | J109: =IFERROR(VLOOKUP(A109,STAGIONALITA!$A$3:$M$105,10,FALSE)*P109,"") ->  | K109: =IFERROR(VLOOKUP(A109,STAGIONALITA!$A$3:$M$105,11,FALSE)*P109,"") ->  | L109: =IFERROR(VLOOKUP(A109,STAGIONALITA!$A$3:$M$105,12,FALSE)*P109,"") ->  | M109: =IFERROR(VLOOKUP(A109,STAGIONALITA!$A$3:$M$105,13,FALSE)*P109,"") -> 
B110: =IFERROR(VLOOKUP(A110,STAGIONALITA!$A$3:$M$105,2,FALSE)*P110,"") ->  | C110: =IFERROR(VLOOKUP(A110,STAGIONALITA!$A$3:$M$105,3,FALSE)*P110,"") ->  | D110: =IFERROR(VLOOKUP(A110,STAGIONALITA!$A$3:$M$105,4,FALSE)*P110,"") ->  | E110: =IFERROR(VLOOKUP(A110,STAGIONALITA!$A$3:$M$105,5,FALSE)*P110,"") ->  | F110: =IFERROR(VLOOKUP(A110,STAGIONALITA!$A$3:$M$105,6,FALSE)*P110,"") ->  | G110: =IFERROR(VLOOKUP(A110,STAGIONALITA!$A$3:$M$105,7,FALSE)*P110,"") ->  | H110: =IFERROR(VLOOKUP(A110,STAGIONALITA!$A$3:$M$105,8,FALSE)*P110,"") ->  | I110: =IFERROR(VLOOKUP(A110,STAGIONALITA!$A$3:$M$105,9,FALSE)*P110,"") ->  | J110: =IFERROR(VLOOKUP(A110,STAGIONALITA!$A$3:$M$105,10,FALSE)*P110,"") ->  | K110: =IFERROR(VLOOKUP(A110,STAGIONALITA!$A$3:$M$105,11,FALSE)*P110,"") ->  | L110: =IFERROR(VLOOKUP(A110,STAGIONALITA!$A$3:$M$105,12,FALSE)*P110,"") ->  | M110: =IFERROR(VLOOKUP(A110,STAGIONALITA!$A$3:$M$105,13,FALSE)*P110,"") -> 
B111: =IFERROR(VLOOKUP(A111,STAGIONALITA!$A$3:$M$105,2,FALSE)*P111,"") ->  | C111: =IFERROR(VLOOKUP(A111,STAGIONALITA!$A$3:$M$105,3,FALSE)*P111,"") ->  | D111: =IFERROR(VLOOKUP(A111,STAGIONALITA!$A$3:$M$105,4,FALSE)*P111,"") ->  | E111: =IFERROR(VLOOKUP(A111,STAGIONALITA!$A$3:$M$105,5,FALSE)*P111,"") ->  | F111: =IFERROR(VLOOKUP(A111,STAGIONALITA!$A$3:$M$105,6,FALSE)*P111,"") ->  | G111: =IFERROR(VLOOKUP(A111,STAGIONALITA!$A$3:$M$105,7,FALSE)*P111,"") ->  | H111: =IFERROR(VLOOKUP(A111,STAGIONALITA!$A$3:$M$105,8,FALSE)*P111,"") ->  | I111: =IFERROR(VLOOKUP(A111,STAGIONALITA!$A$3:$M$105,9,FALSE)*P111,"") ->  | J111: =IFERROR(VLOOKUP(A111,STAGIONALITA!$A$3:$M$105,10,FALSE)*P111,"") ->  | K111: =IFERROR(VLOOKUP(A111,STAGIONALITA!$A$3:$M$105,11,FALSE)*P111,"") ->  | L111: =IFERROR(VLOOKUP(A111,STAGIONALITA!$A$3:$M$105,12,FALSE)*P111,"") ->  | M111: =IFERROR(VLOOKUP(A111,STAGIONALITA!$A$3:$M$105,13,FALSE)*P111,"") -> 
B112: =IFERROR(VLOOKUP(A112,STAGIONALITA!$A$3:$M$105,2,FALSE)*P112,"") ->  | C112: =IFERROR(VLOOKUP(A112,STAGIONALITA!$A$3:$M$105,3,FALSE)*P112,"") ->  | D112: =IFERROR(VLOOKUP(A112,STAGIONALITA!$A$3:$M$105,4,FALSE)*P112,"") ->  | E112: =IFERROR(VLOOKUP(A112,STAGIONALITA!$A$3:$M$105,5,FALSE)*P112,"") ->  | F112: =IFERROR(VLOOKUP(A112,STAGIONALITA!$A$3:$M$105,6,FALSE)*P112,"") ->  | G112: =IFERROR(VLOOKUP(A112,STAGIONALITA!$A$3:$M$105,7,FALSE)*P112,"") ->  | H112: =IFERROR(VLOOKUP(A112,STAGIONALITA!$A$3:$M$105,8,FALSE)*P112,"") ->  | I112: =IFERROR(VLOOKUP(A112,STAGIONALITA!$A$3:$M$105,9,FALSE)*P112,"") ->  | J112: =IFERROR(VLOOKUP(A112,STAGIONALITA!$A$3:$M$105,10,FALSE)*P112,"") ->  | K112: =IFERROR(VLOOKUP(A112,STAGIONALITA!$A$3:$M$105,11,FALSE)*P112,"") ->  | L112: =IFERROR(VLOOKUP(A112,STAGIONALITA!$A$3:$M$105,12,FALSE)*P112,"") ->  | M112: =IFERROR(VLOOKUP(A112,STAGIONALITA!$A$3:$M$105,13,FALSE)*P112,"") -> 
B113: =IFERROR(VLOOKUP(A113,STAGIONALITA!$A$3:$M$105,2,FALSE)*P113,"") ->  | C113: =IFERROR(VLOOKUP(A113,STAGIONALITA!$A$3:$M$105,3,FALSE)*P113,"") ->  | D113: =IFERROR(VLOOKUP(A113,STAGIONALITA!$A$3:$M$105,4,FALSE)*P113,"") ->  | E113: =IFERROR(VLOOKUP(A113,STAGIONALITA!$A$3:$M$105,5,FALSE)*P113,"") ->  | F113: =IFERROR(VLOOKUP(A113,STAGIONALITA!$A$3:$M$105,6,FALSE)*P113,"") ->  | G113: =IFERROR(VLOOKUP(A113,STAGIONALITA!$A$3:$M$105,7,FALSE)*P113,"") ->  | H113: =IFERROR(VLOOKUP(A113,STAGIONALITA!$A$3:$M$105,8,FALSE)*P113,"") ->  | I113: =IFERROR(VLOOKUP(A113,STAGIONALITA!$A$3:$M$105,9,FALSE)*P113,"") ->  | J113: =IFERROR(VLOOKUP(A113,STAGIONALITA!$A$3:$M$105,10,FALSE)*P113,"") ->  | K113: =IFERROR(VLOOKUP(A113,STAGIONALITA!$A$3:$M$105,11,FALSE)*P113,"") ->  | L113: =IFERROR(VLOOKUP(A113,STAGIONALITA!$A$3:$M$105,12,FALSE)*P113,"") ->  | M113: =IFERROR(VLOOKUP(A113,STAGIONALITA!$A$3:$M$105,13,FALSE)*P113,"") -> 

Sheet STAGIONALITA
A1: STAGIONALITA' 2021 GRUPPO DELTA
A2: Fornitori | B2: GEN 21 | C2: FEB 21 | D2: MAR 21 | E2: APR 21 | F2: MAG 21 | G2: GIU 21 | H2: LUG 21 | I2: AGO 21 | J2: SET 21 | K2: OTT 21 | L2: NOV 21 | M2: DIC 21 | P2: Socio | Q2: GEN 21 | R2: FEB 21 | S2: MAR 21 | T2: APR 21 | U2: MAG 21 | V2: GIU 21 | W2: LUG 21 | X2: AGO 21 | Y2: SET 21 | Z2: OTT 21 | AA2: NOV 21 | AB2: DIC 21 | AE2: GEN 21 | AF2: FEB 21 | AG2: MAR 21 | AH2: APR 21 | AI2: MAG 21 | AJ2: GIU 21 | AK2: LUG 21 | AL2: AGO 21 | AM2: SET 21 | AN2: OTT 21 | AO2: NOV 21 | AP2: DIC 21
A3: Albatros | B3: 0.006582473895 | C3: 0.005671219366 | D3: 0.2138982397 | E3: 0.05442869701 | F3: 0.1696970347 | G3: 0.007525890349 | H3: 0.1385428504 | I3: 0.05957460494 | J3: 0.09932674371 | K3: 0.0109993782 | L3: 0.1124702502 | M3: 0.1212826176 | P3: CALLIPO Srl | Q3: 0.05023261877 | R3: 0.09926122863 | S3: 0.06029554769 | T3: 0.1106188185 | U3: 0.06979038031 | V3: 0.09538625065 | W3: 0.1004875533 | X3: 0.02342472778 | Y3: 0.08936497337 | Z3: 0.09390515963 | AA3: 0.1259938592 | AB3: 0.08123888222 | AD3: DELTA | AE3: 0.05691964938 | AF3: 0.09867268163 | AG3: 0.09638550002 | AH3: 0.09148599676 | AI3: 0.08260968324 | AJ3: 0.0939396319 | AK3: 0.08749367695 | AL3: 0.02999469754 | AM3: 0.08608224029 | AN3: 0.1063367596 | AO3: 0.1016884552 | AP3: 0.06839102746
A4: Arbi Arredobagno | B4: 0.005100171884 | C4: 0.06940178647 | D4: 0.09236664882 | E4: 0.05376313787 | F4: 0.07892586435 | G4: 0.1184028854 | H4: 0.06993716363 | I4: 0.07481191355 | J4: 0.08613936713 | K4: 0.04099861929 | L4: 0.2084307814 | M4: 0.1017216602 | P4: CASAÉ F.lli LARUFFA srl | Q4: 0.06846732326 | R4: 0.1015594214 | S4: 0.07925918275 | T4: 0.05838235869 | U4: 0.04794468325 | V4: 0.06869900461 | W4: 0.1751474035 | X4: 0.03648013922 | Y4: 0.06484177362 | Z4: 0.1205726461 | AA4: 0.07444936394 | AB4: 0.1041966997 | AD4: =ACQUISTI!A5 -> VIRLINZI SPA | AE4: =VLOOKUP($AD$4,$P$2:$AB$23,2,FALSE) -> 0.03821861722 | AF4: =VLOOKUP($AD$4,$P$2:$AB$23,3,FALSE) -> 0.09296336017 | AG4: =VLOOKUP($AD$4,$P$2:$AB$23,4,FALSE) -> 0.09748289875 | AH4: =VLOOKUP($AD$4,$P$2:$AB$23,5,FALSE) -> 0.1256710752 | AI4: =VLOOKUP($AD$4,$P$2:$AB$23,6,FALSE) -> 0.1000783318 | AJ4: =VLOOKUP($AD$4,$P$2:$AB$23,7,FALSE) -> 0.1097621605 | AK4: =VLOOKUP($AD$4,$P$2:$AB$23,8,FALSE) -> 0.0836061422 | AL4: =VLOOKUP($AD$4,$P$2:$AB$23,9,FALSE) -> 0.03095264552 | AM4: =VLOOKUP($AD$4,$P$2:$AB$23,10,FALSE) -> 0.08390993862 | AN4: =VLOOKUP($AD$4,$P$2:$AB$23,11,FALSE) -> 0.07111612187 | AO4: =VLOOKUP($AD$4,$P$2:$AB$23,12,FALSE) -> 0.09340846727 | AP4: =VLOOKUP($AD$4,$P$2:$AB$23,13,FALSE) -> 0.07283024097
A5: Arblu | B5: 0.04182637457 | C5: 0.06987616743 | D5: 0.1136707678 | E5: 0.1029330369 | F5: 0.07574855299 | G5: 0.1049147632 | H5: 0.1176450051 | I5: 0.02332169958 | J5: 0.1015607665 | K5: 0.07096922042 | L5: 0.08332034142 | M5: 0.09421330409 | P5: COICO +3 snc | Q5: 0.04927515004 | R5: 0.09241472198 | S5: 0.088153259 | T5: 0.1223484802 | U5: 0.07953834363 | V5: 0.06098026409 | W5: 0.1140890572 | X5: 0.01838268811 | Y5: 0.07653624888 | Z5: 0.1390822455 | AA5: 0.1226091635 | AB5: 0.03659037787
A6: Ariston | B6: 0.08014351868 | C6: 0.1221844306 | D6: 0.09694702204 | E6: 0.09841197759 | F6: 0.09350379707 | G6: 0.1049548407 | H6: 0.08775993385 | I6: 0.0141492384 | J6: 0.08232210294 | K6: 0.1020744519 | L6: 0.06116577926 | M6: 0.05638290705 | P6: COLONNA SAVERIO srl | Q6: 0.04031171886 | R6: 0.09148769059 | S6: 0.08999733141 | T6: 0.0848533574 | U6: 0.053408275 | V6: 0.1039265733 | W6: 0.06701873918 | X6: 0.03443013312 | Y6: 0.05821573947 | Z6: 0.1181346229 | AA6: 0.1263880004 | AB6: 0.1318278184
A7: Arredamenti Montegrappa | B7: 0.1103357095 | C7: 0.03295759674 | D7: 0.1329170782 | E7: 0.03716558225 | F7: 0.05639394476 | G7: 0.1936992976 | H7: 0.04213375595 | I7: 0.02973097888 | J7: 0.1894268788 | K7: 0.07697850284 | L7: 0.02429752291 | M7: 0.07396315163 | P7: DELIZIA ALESSANDRO srl | Q7: 0.0470004903 | R7: 0.08531278276 | S7: 0.1230429957 | T7: 0.05494853181 | U7: 0.1108882784 | V7: 0.07012004918 | W7: 0.06216099775 | X7: 0.005456262185 | Y7: 0.1160519337 | Z7: 0.1820428588 | AA7: 0.04030010647 | AB7: 0.1026747129
A8: Atusa | B8: 0.05637102347 | C8: 0.06831343377 | D8: 0.08194690243 | E8: 0.05809740401 | F8: 0.06813993623 | G8: 0.117812569 | H8: 0.07708026685 | I8: 0.04832894221 | J8: 0 | K8: 0.1358761558 | L8: 0.1234171775 | M8: 0.1646161887 | P8: F.LLI CARERE Srl | Q8: 0.05592701997 | R8: 0.08048764237 | S8: 0.06162502234 | T8: 0.04559725983 | U8: 0.1092238496 | V8: 0.09754447589 | W8: 0.09990761833 | X8: 0.03701756123 | Y8: 0.1009778635 | Z8: 0.1227115588 | AA8: 0.1071981724 | AB8: 0.08178195576
A9: Bernasconi | B9: 0.135486241 | C9: 0.05648410868 | D9: 0.06751345969 | E9: 0.06484408818 | F9: 0.069769753 | G9: 0.196934773 | H9: 0.1159781894 | I9: 0.02002577033 | J9: 0.1058081211 | K9: 0.06615105753 | L9: 0.05143386825 | M9: 0.04957056986 | P9: F.LLI CRUSCO srl | Q9: 0.05553515119 | R9: 0.1243594821 | S9: 0.1414176471 | T9: 0.1501514283 | U9: 0.05188138467 | V9: 0.1216590292 | W9: 0.0582534194 | X9: 0.03095301203 | Y9: 0.0461809641 | Z9: 0.08640689692 | AA9: 0.07440499172 | AB9: 0.05879659323
A10: Beza | B10: 0 | C10: 0 | D10: 0 | E10: 0 | F10: 0 | G10: 0 | H10: 0 | I10: 0 | J10: 0 | K10: 0 | L10: 0 | M10: 1 | P10: F.LLI ZANGRILLO srl | Q10: 0.0477431398 | R10: 0.08134734374 | S10: 0.07029738381 | T10: 0.09704848386 | U10: 0.1098075931 | V10: 0.1192294342 | W10: 0.08546989982 | X10: 0.05001900469 | Y10: 0.09476053463 | Z10: 0.09312332398 | AA10: 0.07990464797 | AB10: 0.07124921036
A11: Bmeters | B11: 0.02610242599 | C11: 0.2090633482 | D11: 0.1521970513 | E11: 0.009326455047 | F11: 0.1134017162 | G11: 0.01788872142 | H11: 0.1168370354 | I11: 0.02576674773 | J11: 0.1722385963 | K11: 0.01768752625 | L11: 0.1233700544 | M11: 0.01612032177 | P11: GIUSEPPE MIELE Srl | Q11: 0.04595454452 | R11: 0.09990769333 | S11: 0.1107780607 | T11: 0.1895277952 | U11: 0.184203052 | V11: 0.05952831547 | W11: 0.07852921737 | X11: 0.02400117685 | Y11: 0.05490582536 | Z11: 0.05966377675 | AA11: 0.05390332288 | AB11: 0.03909721945
A12: Bosch | B12: 0.07276153238 | C12: 0.04981907736 | D12: 0.09487311343 | E12: 0.1085321314 | F12: 0.07178066296 | G12: 0.05610763677 | H12: 0.07491980467 | I12: 0.01327191225 | J12: 0.0995620837 | K12: 0.2257638444 | L12: 0.08055121955 | M12: 0.05205698116 | P12: IDROPLAST SRL | Q12: 0.03951414584 | R12: 0.08122434815 | S12: 0.07429067368 | T12: 0.06759605024 | U12: 0.0942638988 | V12: 0.08515042209 | W12: 0.07673608091 | X12: 0.04608460117 | Y12: 0.1044142089 | Z12: 0.1297068466 | AA12: 0.112184996 | AB12: 0.08883372757
A13: Bossini | B13: 0.103298099 | C13: 0.1090835924 | D13: 0.107154173 | E13: 0.03884530852 | F13: 0.1159272477 | G13: 0.03866451185 | H13: 0.1156636395 | I13: 0.05390228905 | J13: 0.0614096585 | K13: 0.1154447161 | L13: 0.1184270896 | M13: 0.02217967485 | P13: IDROSANITARIA FORNITURE SRL | Q13: 0.07441761242 | R13: 0.1185895875 | S13: 0.08106192215 | T13: 0.07401835415 | U13: 0.09340085476 | V13: 0.1002201758 | W13: 0.09064448109 | X13: 0.03407316178 | Y13: 0.06835077838 | Z13: 0.1230847458 | AA13: 0.1021574663 | AB13: 0.03998085989
A14: BT-Flex | B14: 0 | C14: 0 | D14: 0 | E14: 0 | F14: 0 | G14: 0.5089369325 | H14: 0 | I14: 0.1208315455 | J14: 0.07242981629 | K14: 0.2978017056 | L14: 0 | M14: 0 | P14: IDROSANITARIA ROMAGNOLA SRL | Q14: 0.03463295228 | R14: 0.08859080962 | S14: 0.1341865534 | T14: 0.08985805549 | U14: 0.08514780617 | V14: 0.09331424794 | W14: 0.08250370945 | X14: 0.01987353644 | Y14: 0.09530110859 | Z14: 0.09120101777 | AA14: 0.1315609084 | AB14: 0.05382929438
A15: Bwt/Cillichemie | B15: 0.04933651896 | C15: 0.06435394472 | D15: 0.09950170362 | E15: 0.171345677 | F15: 0.08092080004 | G15: 0.06763974827 | H15: 0.1202402854 | I15: 0.02827192496 | J15: 0.1092085643 | K15: 0.04475907132 | L15: 0.1353351647 | M15: 0.02908659674 | P15: ITER DI RUGGERI Srl | Q15: 0.05004244393 | R15: 0.08015487443 | S15: 0.07805695547 | T15: 0.07376541405 | U15: 0.08302709903 | V15: 0.06987436694 | W15: 0.1073837728 | X15: 0.03475925875 | Y15: 0.08642572085 | Z15: 0.1104762186 | AA15: 0.1227053284 | AB15: 0.1033285467
A16: Caleffi | B16: 0.06770008034 | C16: 0.08809064902 | D16: 0.07661676843 | E16: 0.07676831239 | F16: 0.07081432623 | G16: 0.09114287456 | H16: 0.09321193999 | I16: 0.03934505917 | J16: 0.07677791599 | K16: 0.1135217445 | L16: 0.09982364282 | M16: 0.1061866866 | P16: LA FENICE SRL | Q16: 0.06705321188 | R16: 0.1142497847 | S16: 0.1136405088 | T16: 0.07428398228 | U16: 0.09341156649 | V16: 0.09327172778 | W16: 0.07404553519 | X16: 0.03199973578 | Y16: 0.08847453131 | Z16: 0.09905144374 | AA16: 0.09637738469 | AB16: 0.05414058739
A17: Camon | B17: 0 | C17: 0 | D17: 0 | E17: 0 | F17: 0 | G17: 0.4924252227 | H17: 0 | I17: 0 | J17: 0 | K17: 0.3336617338 | L17: 0 | M17: 0.1739130435 | P17: NIGRELLI E NIGRELLI SRL | Q17: 0.04128049275 | R17: 0.06623858774 | S17: 0.0913536391 | T17: 0.07764121171 | U17: 0.0836417849 | V17: 0.08017458278 | W17: 0.1002152786 | X17: 0.03217500355 | Y17: 0.09158002201 | Z17: 0.112746904 | AA17: 0.1296671264 | AB17: 0.09328536651
A18: Carlo Nobili | B18: 0.03403715675 | C18: 0.2402683911 | D18: 0.04253650389 | E18: 0.03750803649 | F18: 0.1019612348 | G18: 0.0676545381 | H18: 0.1076635522 | I18: 0.04025425133 | J18: 0.1160590602 | K18: 0.03065686012 | L18: 0.1307224776 | M18: 0.05067793727 | P18: RAFFAELE SpA | Q18: 0.07422170595 | R18: 0.1332451634 | S18: 0.1047126228 | T18: 0.08166653106 | U18: 0.07014977978 | V18: 0.1109462912 | W18: 0.08835713245 | X18: 0.02064426472 | Y18: 0.07566697568 | Z18: 0.09802960432 | AA18: 0.09421695776 | AB18: 0.04814297086
A19: Carrier | B19: 0 | C19: 0 | D19: 0 | E19: 0 | F19: 0.3070295277 | G19: 0.04340671283 | H19: 0.003236873971 | I19: 0.2074859503 | J19: 0.08668922905 | K19: 0.1410640544 | L19: 0.1340857578 | M19: 0.077001894 | P19: REGINE GIUSEPPA & C. snc | Q19: 0.03725243075 | R19: 0.101096341 | S19: 0.07200717449 | T19: 0.08910603736 | U19: 0.07995810086 | V19: 0.08437411769 | W19: 0.06166155261 | X19: 0.03774145828 | Y19: 0.14093502 | Z19: 0.07149820358 | AA19: 0.1364993406 | AB19: 0.08787022273
A20: Cordivari | B20: 0.0475053856 | C20: 0.06620869753 | D20: 0.08567446119 | E20: 0.08796447648 | F20: 0.08317164181 | G20: 0.08675078605 | H20: 0.09983849264 | I20: 0.04575586945 | J20: 0.07968456465 | K20: 0.1004302527 | L20: 0.1336746896 | M20: 0.08334068225 | P20: REGINE Srl | Q20: 0.09042079117 | R20: 0.06342221505 | S20: 0.0871269379 | T20: 0.0581952612 | U20: 0.06033793304 | V20: 0.152994151 | W20: 0.1352401777 | X20: 0.03186889246 | Y20: 0.1559832274 | Z20: 0.01901652509 | AA20: 0.05525678297 | AB20: 0.09013710505
A21: Cuprumfoma | B21: 0.1578545181 | C21: 0.1981138467 | D21: 0.2543340817 | E21: 0.07718871633 | F21: 0 | G21: 0.07424023245 | H21: 0.2382686048 | I21: 0 | J21: 0 | K21: 0 | L21: 0 | M21: 0 | P21: TERMOIDRAULICA LAFENICE SRL | Q21: 0.03860681561 | R21: 0.0865156935 | S21: 0.08716732906 | T21: 0.100472572 | U21: 0.07026683088 | V21: 0.06727035229 | W21: 0.08747125983 | X21: 0.03790227947 | Y21: 0.1273727307 | Z21: 0.1111777206 | AA21: 0.112799698 | AB21: 0.07297671808
A22: Dab Pumps | B22: 0.06209012467 | C22: 0.107318707 | D22: 0.08487728873 | E22: 0.1066509019 | F22: 0.04488877784 | G22: 0.1514567279 | H22: 0.07016487084 | I22: 0.04321769128 | J22: 0.03245245491 | K22: 0.08395091942 | L22: 0.08307713645 | M22: 0.129854399 | P22: VEMIT PUNTO CLIMA Srl | Q22: 0.06681363651 | R22: 0.1031750118 | S22: 0.06523147328 | T22: 0.1140315049 | U22: 0.07579349306 | V22: 0.09714692447 | W22: 0.1046983441 | X22: 0.0219546464 | Y22: 0.0933385903 | Z22: 0.122706402 | AA22: 0.08800295722 | AB22: 0.04710701592
A23: Ebara | B23: 0 | C23: 0.1818590768 | D23: 0.1134099933 | E23: 0.08544619085 | F23: 0.05495669659 | G23: 0.1266617818 | H23: 0.1378813544 | I23: 0.02879100068 | J23: 0.06233494038 | K23: 0.0803248792 | L23: 0.08579176202 | M23: 0.04254232395 | P23: VIRLINZI SPA | Q23: 0.03821861722 | R23: 0.09296336017 | S23: 0.09748289875 | T23: 0.1256710752 | U23: 0.1000783318 | V23: 0.1097621605 | W23: 0.0836061422 | X23: 0.03095264552 | Y23: 0.08390993862 | Z23: 0.07111612187 | AA23: 0.09340846727 | AB23: 0.07283024097
A24: Effebi | B24: 0 | C24: 0.2189055528 | D24: 0.08995592127 | E24: 0.02086672237 | F24: 0.04774006849 | G24: 0.1989987121 | H24: 0.1292574042 | I24: 0.01425338007 | J24: 0.05426091349 | K24: 0.09351642363 | L24: 0.06323508228 | M24: 0.06900981918
A25: Enolgas | B25: 0.0619567921 | C25: 0.04848861329 | D25: 0.1468363682 | E25: 0.07259984605 | F25: 0.07901534713 | G25: 0.07017105214 | H25: 0.08155534768 | I25: 0.04310872833 | J25: 0.1401056796 | K25: 0.1026548189 | L25: 0.09028891214 | M25: 0.06321849439
A26: Ercos | B26: 0.06456024497 | C26: 0.08285600052 | D26: 0.117799045 | E26: 0.1358038497 | F26: 0.09361979546 | G26: 0.07199014129 | H26: 0.1105248804 | I26: 0 | J26: 0.1299446787 | K26: 0.07863968731 | L26: 0.08082281631 | M26: 0.03343886032
A27: Euroacque | B27: 0 | C27: 0.2054813858 | D27: 0.0542404404 | E27: 0.08274547294 | F27: 0.08738261894 | G27: 0.03416196583 | H27: 0.08084645746 | I27: 0.04793223905 | J27: 0.09586121687 | K27: 0.1556742178 | L27: 0.08489872477 | M27: 0.07077526011
A28: Eurocornici | B28: 0 | C28: 0.1657223894 | D28: 0.09613388305 | E28: -1.598725089e-05 | F28: 0.03039176395 | G28: 0.1994485852 | H28: 0.1900302777 | I28: 0.04527262441 | J28: 0.0968155213 | K28: 0.06502014939 | L28: 0.06504740038 | M28: 0.04613339253
A29: Farg | B29: 0.01024930612 | C29: 0.09570870423 | D29: 0.07448617112 | E29: 0.09443178241 | F29: 0.1353232861 | G29: 0.1308583363 | H29: 0.07950973045 | I29: 0 | J29: 0.1526886937 | K29: 0.1136732429 | L29: 0.0295203516 | M29: 0.08355039509
A30: Ferrari | B30: 0.1020151274 | C30: 0.07728175565 | D30: 0.0938805758 | E30: 0.0793499407 | F30: 0.0524923533 | G30: 0.08741817566 | H30: 0.1240236145 | I30: 0.0225869348 | J30: 0.08775887305 | K30: 0.1169525161 | L30: 0.07244919106 | M30: 0.08379094201
A31: Ferroli | B31: 0.09027168964 | C31: 0.06322876654 | D31: 0.01387360953 | E31: 0.01838018031 | F31: 0.1106844118 | G31: 0.1064229498 | H31: 0 | I31: 0.07788536291 | J31: 0.06685486229 | K31: 0.1408160554 | L31: 0.1955931949 | M31: 0.1159889169
A32: Fima Carlo Frattini | B32: 0.08033524366 | C32: 0.1118468981 | D32: 0.05467678533 | E32: 0.05816924627 | F32: 0.01832724096 | G32: 0.1679488653 | H32: 0.0708402042 | I32: 0.04066126265 | J32: 0.09124348968 | K32: 0.1543598848 | L32: 0.122101442 | M32: 0.029489437
A33: Fimi | B33: 0.04318538269 | C33: 0.07305749211 | D33: 0.1093257278 | E33: 0.07292164732 | F33: 0.06241673639 | G33: 0.09305682619 | H33: 0.1121353001 | I33: 0.04278428486 | J33: 0.1204093947 | K33: 0.1227359363 | L33: 0.05487945578 | M33: 0.09309181578
A34: First Corporation | B34: 0 | C34: 0.1683333438 | D34: 0.1064636299 | E34: 0.1350706174 | F34: 0.1785735441 | G34: 0.0527122176 | H34: 0.06656969505 | I34: 0.03865481273 | J34: 0.0783086574 | K34: 0.07552488733 | L34: 0.03346744833 | M34: 0.06632114635
A35: Fluidmaster | B35: 0.1098977425 | C35: 0.06261267565 | D35: 0.08338067139 | E35: 0.09710399057 | F35: 0.02415510502 | G35: 0.2069597088 | H35: 0.01963567618 | I35: 0.009359584275 | J35: 0.09877255683 | K35: 0.1957750618 | L35: 0.05852764312 | M35: 0.03381958385
A36: Galassia | B36: 0.0610254791 | C36: 0.1600110029 | D36: 0.09114401223 | E36: 0.06924085722 | F36: 0.1169001234 | G36: 0.08305842197 | H36: 0.095986843 | I36: 0.02081061239 | J36: 0.07672012506 | K36: 0.08576459581 | L36: 0.09639751505 | M36: 0.04294041187
A37: Galletti | B37: 0 | C37: 0.1604669085 | D37: 0.02130701772 | E37: 0.3647004481 | F37: 0.01657234164 | G37: 0.01308206407 | H37: 0.06745512913 | I37: 0.00828164468 | J37: 0.062932892 | K37: 0.06641597651 | L37: 0.1332956612 | M37: 0.08548991639
A38: GBD | B38: 0.05002101468 | C38: 0.08417219575 | D38: 0.08295564621 | E38: 0.1186854186 | F38: 0.03792003514 | G38: 0.1327752926 | H38: 0.05158334286 | I38: 0.03787423896 | J38: 0.07755480444 | K38: 0.1171502488 | L38: 0.1284634387 | M38: 0.0808443233
A39: Geberit | B39: 0.06957331868 | C39: 0.1045292742 | D39: 0.1081311069 | E39: 0.07772513597 | F39: 0.07712464331 | G39: 0.09678936839 | H39: 0.08684301175 | I39: 0.04242528304 | J39: 0.07090372642 | K39: 0.1036752667 | L39: 0.111092206 | M39: 0.05118765865
A40: General d'aspirazione | B40: 0.01372712037 | C40: 0.07054437537 | D40: 0.04565402132 | E40: 0.2028943373 | F40: 0.06278036344 | G40: 0.02901440986 | H40: 0.1197021998 | I40: 0.01482818407 | J40: 0.05325425495 | K40: 0.07553994217 | L40: 0.1852424576 | M40: 0.1268183337
A41: General Fittings | B41: 0 | C41: 0.312694465 | D41: 0.05292193294 | E41: 0.07341006219 | F41: 0.1072534762 | G41: 0.07946025282 | H41: 0 | I41: 0.08513264062 | J41: 0.1298704317 | K41: 0.08473858091 | L41: 0.03189446062 | M41: 0.04262369704
A42: Giacomini | B42: 0.09229624506 | C42: 0.07050592306 | D42: 0.1435148684 | E42: 0.06895986 | F42: 0.07225212782 | G42: 0.09939236921 | H42: 0.09746049896 | I42: 0.02816741251 | J42: 0.05923986851 | K42: 0.1063215951 | L42: 0.09186938031 | M42: 0.07001985104
A43: Giuseppe Tirinnanzi | B43: 0.09752921766 | C43: 0.06115375741 | D43: 0.1290917038 | E43: 0.06261886419 | F43: 0.06766498109 | G43: 0.09286057001 | H43: 0.1133043063 | I43: 0.0527828823 | J43: 0.08962710191 | K43: 0.07828094138 | L43: 0.1002597756 | M43: 0.05482589835
A44: Global | B44: 0.1277982223 | C44: 0.08595216897 | D44: 0.1139585919 | E44: 0.08951167269 | F44: 0.04371371598 | G44: 0.09782091851 | H44: 0.01730723566 | I44: 0.01212693715 | J44: 0.07666472683 | K44: 0.05809119658 | L44: 0.2159887213 | M44: 0.0610658921
A45: Grantour | B45: 0.09631258661 | C45: 0.1379466169 | D45: 0.1649996987 | E45: 0.1539434838 | F45: 0.08429234199 | G45: 0.08173163825 | H45: 0.07603783816 | I45: 0.06880761583 | J45: 0.04817135627 | K45: 0.0367837561 | L45: 0.03455443755 | M45: 0.01641862987
A46: Griffon - Bostik | B46: 0 | C46: 0 | D46: 0 | E46: 0.6234057982 | F46: 0.0422618776 | G46: 0.02396056775 | H46: 0 | I46: 0 | J46: 0.2284164727 | K46: 0 | L46: 0 | M46: 0.08195528375
A47: Grohe | B47: 0.05059177308 | C47: 0.1043983476 | D47: 0.05377349429 | E47: 0.05182175793 | F47: 0.02931213293 | G47: 0.1005189333 | H47: 0.04449297288 | I47: 0.02024813696 | J47: 0.07750188693 | K47: 0.2514308874 | L47: 0.0747501191 | M47: 0.1411595575
A48: Gruppo Salteco | B48: 0.07282602348 | C48: 0.09098872861 | D48: 0.1029609297 | E48: 0.07933773287 | F48: 0.08567423933 | G48: 0.1196636103 | H48: 0.07224201367 | I48: 0.04572796823 | J48: 0.1175903755 | K48: 0.1032821351 | L48: 0.05699935759 | M48: 0.05270688548
A49: Haier | B49: 0 | C49: 0.08855829203 | D49: 0.1380705098 | E49: 0.1555339344 | F49: 0.2440493367 | G49: 0.03209106912 | H49: 0.1872539316 | I49: 0.07760260331 | J49: 0.02026471214 | K49: -0.005950885001 | L49: 0.04757234876 | M49: 0.01495414725
A50: Ibp Banninger | B50: 0.09508425099 | C50: 0.06961318888 | D50: 0.09810957323 | E50: 0.1265756622 | F50: 0.08442606313 | G50: 0.08596620319 | H50: 0.1035509489 | I50: 0.03131406678 | J50: 0.09961179336 | K50: 0.08027377448 | L50: 0.07595148686 | M50: 0.04952298792
A51: Ideal Standard | B51: 0 | C51: 0.2240585745 | D51: 0.01125534788 | E51: 0.07285028844 | F51: 0.08581449762 | G51: 0.07527183234 | H51: 0.09222663216 | I51: 0.03070426058 | J51: 0.132642028 | K51: 0.102367883 | L51: 0.0781365492 | M51: 0.09467210624
A52: Immergas | B52: 0.0428275254 | C52: 0.07993986397 | D52: 0.1030290322 | E52: 0.06253384463 | F52: 0.05689887985 | G52: 0.09499958341 | H52: 0.04998152559 | I52: 0.01199689428 | J52: 0.1069580906 | K52: 0.1237846948 | L52: 0.1797025726 | M52: 0.08734749264
A53: Isoclima | B53: 0 | C53: 0 | D53: 0.0735828425 | E53: 0.04191012182 | F53: 0.08294933822 | G53: 0.07049126497 | H53: 0.1075878228 | I53: 0.04032815256 | J53: 0.1782924713 | K53: 0.06260932561 | L53: 0.1238561776 | M53: 0.2183924826
A54: Italkero | B54: 0 | C54: 0.2500984837 | D54: 0.25831241 | E54: 0 | F54: 0.02122824318 | G54: 0.01248573794 | H54: 0.004169499226 | I54: 0.03184236477 | J54: 0.2505273028 | K54: 0.07940383946 | L54: 0.08948597872 | M54: 0.002446140246
A55: Itap | B55: 0.06440933563 | C55: 0.07056745451 | D55: 0.1552393081 | E55: 0.04965751277 | F55: 0.1418048045 | G55: 0.0747981004 | H55: 0.04376737789 | I55: 0 | J55: 0.09232619495 | K55: 0.133554173 | L55: 0.09129239959 | M55: 0.08258333869
A56: Kinedo | B56: 0 | C56: 0 | D56: 0 | E56: 0 | F56: 0.4567167691 | G56: 0.1407925446 | H56: 0.06203090661 | I56: -0.0001064197419 | J56: 0.1554012663 | K56: 0.04151085849 | L56: 0.098322167 | M56: 0.0453319077
A57: LG | B57: 0 | C57: 0.1951590577 | D57: 0.03628905556 | E57: 0.06567754705 | F57: 0.02394158756 | G57: 0.06489151114 | H57: 0.1622672529 | I57: 0.09713073296 | J57: 0.1019823523 | K57: 0.06682665466 | L57: 0.08188587406 | M57: 0.103948374
A58: L'isolante K-Flex | B58: 0.03240900725 | C58: 0.06755411242 | D58: 0.1070621062 | E58: 0.08502915926 | F58: 0.06800180087 | G58: 0.121620247 | H58: 0.1004376808 | I58: 0.03467327109 | J58: 0.09869541713 | K58: 0.1717690224 | L58: 0.06429112839 | M58: 0.04845704718
A59: Megius | B59: 0 | C59: 0.1110889064 | D59: 0.04677615303 | E59: 0.03395478707 | F59: 0.1013256431 | G59: 0.1052641726 | H59: 0.07580591251 | I59: 0.01770645268 | J59: 0.1336207418 | K59: 0.1217368116 | L59: 0.1495357288 | M59: 0.1031846904
A60: Mut Meccanica Tovo | B60: 0.1476254934 | C60: 0.026293624 | D60: 0.1139793131 | E60: 0.1290836807 | F60: 0.07850905124 | G60: 0.009152705877 | H60: 0.0457429051 | I60: 0 | J60: 0.016712867 | K60: 0.1277845455 | L60: 0.1693642643 | M60: 0.1357515498
A61: Negrari | B61: 0.08248332188 | C61: 0.09431368255 | D61: 0.07186266991 | E61: 0.07752468334 | F61: 0.01661667407 | G61: 0.1733453526 | H61: 0.1018980481 | I61: 0.03091382439 | J61: 0.1959117064 | K61: 0.0742402075 | L61: 0.03143045651 | M61: 0.04945937281
A62: Neoperl | B62: 0.07871819542 | C62: 0.09699601542 | D62: 0.0670751203 | E62: 0.106479561 | F62: 0.105236203 | G62: 0.08911721211 | H62: 0.07947141237 | I62: 0.04474547851 | J62: 0.08946586491 | K62: 0.1084236444 | L62: 0.08192009877 | M62: 0.05235119382
A63: Novellini | B63: 0.06218632338 | C63: 0.07375811755 | D63: 0.07050084488 | E63: 0.1067607889 | F63: 0.08361724266 | G63: 0.1193706625 | H63: 0.1142179873 | I63: 0.03189256992 | J63: 0.06762384749 | K63: 0.09546102662 | L63: 0.1171992035 | M63: 0.05741138526
A64: Olimpia Splendid | B64: 0.03899415507 | C64: 0.05808897859 | D64: 0.09406797743 | E64: 0.06051999202 | F64: 0.08350443704 | G64: 0.04154409579 | H64: 0.1095250254 | I64: 0.004228914019 | J64: 0.1631997034 | K64: 0.1178114583 | L64: 0.1645114013 | M64: 0.06400386164
A65: Omp Tea | B65: 0.08204611422 | C65: 0.0821027945 | D65: 0.1262569247 | E65: 0.06603879282 | F65: 0.09516799359 | G65: 0.09849848806 | H65: 0.09460204966 | I65: 0.04173567281 | J65: 0.09101008605 | K65: 0.1206233152 | L65: 0.06658178058 | M65: 0.03533598784
A66: Paini | B66: 0.01580087794 | C66: 0.4945584044 | D66: 0.1195706787 | E66: 0.02936085729 | F66: 0.04256822273 | G66: 0.03715379897 | H66: 0.04932866744 | I66: 0 | J66: 0.04806857056 | K66: 0.05370911914 | L66: 0.07217666071 | M66: 0.03770414218
A67: Panasonic | B67: 0.04036159684 | C67: 0.08049894378 | D67: 0.06601434959 | E67: 0.09242446785 | F67: 0.1174997687 | G67: 0.1524351038 | H67: 0.1651497513 | I67: 0.02810425877 | J67: 0.06580450239 | K67: 0.06235263347 | L67: 0.02736357639 | M67: 0.1019910472
A68: Planus | B68: 0 | C68: 0 | D68: 0.5 | E68: 0 | F68: 0 | G68: 0 | H68: 0 | I68: 0 | J68: 0 | K68: 0 | L68: 0 | M68: 0.5
A69: Polieco | B69: 0.02545668811 | C69: 0.1010215709 | D69: 0.08573809445 | E69: 0.08874640109 | F69: 0.1234002418 | G69: 0.137861209 | H69: 0.1330330077 | I69: 0.01734969069 | J69: 0.08254640324 | K69: 0.03111224151 | L69: 0.1170327653 | M69: 0.05670168627
A70: Raccorderie Metalliche | B70: 0.07498345988 | C70: 0.06092866996 | D70: 0.119723913 | E70: 0.09378281617 | F70: 0.08796945483 | G70: 0.1241083993 | H70: 0.1151224541 | I70: 0.03430628425 | J70: 0.05978071603 | K70: 0.1008187049 | L70: 0.0702516683 | M70: 0.05822345938
A71: Rainbox | B71: 0.07677847329 | C71: 0.0656421007 | D71: 0.08042990433 | E71: 0.1154777371 | F71: 0.1477550096 | G71: 0.08000669265 | H71: 0.1866166686 | I71: 0.04994882091 | J71: 0.06842742412 | K71: 0.05486988701 | L71: 0.0529113027 | M71: 0.0211359789
A72: Rems | B72: 0.06132829531 | C72: 0.08955246713 | D72: 0.08816802943 | E72: 0.0870283542 | F72: 0.1031520816 | G72: 0.06430368903 | H72: 0.08073336954 | I72: 0.01219223032 | J72: 0.07544803004 | K72: 0.1285691339 | L72: 0.1379542447 | M72: 0.07157007473
A73: River | B73: 0.09511757836 | C73: 0.04715012036 | D73: 0.09696973689 | E73: 0.04679152517 | F73: 0.1311418817 | G73: 0.07117476256 | H73: 0.1071532637 | I73: 0.03040442517 | J73: 0.1655767974 | K73: 0.08148725603 | L73: 0.09681020115 | M73: 0.0302224515
A74: Rizzo Aquae | B74: 0 | C74: 0.06190413547 | D74: 0.07251368339 | E74: 0.151686755 | F74: 0.04625006733 | G74: 0.1084882598 | H74: 0.03417636554 | I74: 0.01243002929 | J74: 0.1306660217 | K74: 0.106014684 | L74: 0.05943832841 | M74: 0.2164316701
A75: RM Manfredi | B75: 0.09949038791 | C75: 0.08979053838 | D75: 0.07197148301 | E75: 0.1080559801 | F75: 0.04536733753 | G75: 0.2016382157 | H75: 0.1058493609 | I75: 0.03027519274 | J75: 0.1076299176 | K75: 0.0271429131 | L75: 0.05342889746 | M75: 0.05935977557
A76: Royo | B76: 0 | C76: 0 | D76: 0 | E76: 0 | F76: 0.4746140853 | G76: 0.06218894238 | H76: 0.1368502979 | I76: 0.05442398075 | J76: 0.07339228562 | K76: 0.07566547136 | L76: 0.03491824058 | M76: 0.08794669605
A77: Rubinetterie Bresciane | B77: 0.05526834881 | C77: 0.07275031661 | D77: 0.1407805817 | E77: 0.08380305009 | F77: 0.07286421295 | G77: 0.1114529119 | H77: 0.08835903774 | I77: 0.02151103566 | J77: 0.08245196133 | K77: 0.09318559459 | L77: 0.1097537626 | M77: 0.067819186
A78: Sabiana | B78: 0 | C78: 0 | D78: 0 | E78: 0.3325221034 | F78: 0.05114270506 | G78: 0.08287308951 | H78: 0.1015837112 | I78: 0.03206045416 | J78: 0.1629263961 | K78: 0.1169295467 | L78: 0.06416369817 | M78: 0.05579829569
A79: Samsung | B79: 0.01714613566 | C79: 0.1743991767 | D79: 0.1575677515 | E79: 0.1213703246 | F79: 0.09983481841 | G79: 0.110297426 | H79: 0.04557811822 | I79: 0.02630843565 | J79: 0.01282864329 | K79: 0.1185204388 | L79: 0.06329042795 | M79: 0.05285830316
A80: Silmet | B80: 0 | C80: 0.2086060255 | D80: 0.08149003175 | E80: 0.1499642862 | F80: 0.004723281882 | G80: 0.05984740976 | H80: 0.04615900231 | I80: 0 | J80: 0.1995811615 | K80: 0.1200944587 | L80: 0.1295343424 | M80: 0
A81: System Group (Rototec) | B81: 0.06568228189 | C81: 0 | D81: 0.1110455727 | E81: 0.1195802228 | F81: 0.1213952006 | G81: 0.2087467743 | H81: 0.1192246495 | I81: 0.04418873152 | J81: 0.07872886697 | K81: 0.0235097049 | L81: 0.09207271752 | M81: 0.01582527722
A82: System Group (Sa.Mi. Plastic) | B82: 0.1020069444 | C82: 0.1300742208 | D82: 0.06836856411 | E82: 0.1074063821 | F82: 0.07323709385 | G82: 0.05821464569 | H82: 0.06145678873 | I82: 0.01838322516 | J82: 0.1412281386 | K82: 0.08039253933 | L82: 0.09813614903 | M82: 0.06109530828
A83: System Group (Sab) | B83: 0.0238278989 | C83: 0.2694867837 | D83: 0.04980223809 | E83: 0.2864533089 | F83: 0.03200366583 | G83: 0.06153530774 | H83: 0.08893256801 | I83: 0.02060823847 | J83: 0.05163515339 | K83: 0.0568203743 | L83: 0.0276746093 | M83: 0.03121985337
A84: TECNOCONTROL | B84: 0.0171511104 | C84: 0.2716999765 | D84: 0.08136679546 | E84: 0.03203081215 | F84: 0.05232337946 | G84: 0.07718690977 | H84: 0.06340785364 | I84: 0 | J84: 0.159807424 | K84: 0.1120811782 | L84: 0.06085054378 | M84: 0.07209401657
A85: Tecnosystemi | B85: 0.05950778305 | C85: 0.06942872833 | D85: 0.1126149952 | E85: 0.0699525232 | F85: 0.1469134771 | G85: 0.05537516549 | H85: 0.09627329207 | I85: 0.05362333029 | J85: 0.1038529286 | K85: 0.08749670126 | L85: 0.1050317573 | M85: 0.03992931814
A86: Tenaris Dalmine | B86: 0.03321691831 | C86: 0.04633361235 | D86: 0.09830719754 | E86: 0.1577885671 | F86: 0.1104488256 | G86: 0.07814656368 | H86: 0.09126402973 | I86: 0.001958806831 | J86: 0.08513295846 | K86: 0.09146388828 | L86: 0.1649114955 | M86: 0.04102713665
A87: Thermomat Saniline | B87: 0.06999120342 | C87: 0.08669692275 | D87: 0.1441938673 | E87: 0.1448399879 | F87: 0.07863987731 | G87: 0.04274515604 | H87: 0.1045469761 | I87: 0.01335056321 | J87: 0.1237281934 | K87: 0.06314855323 | L87: 0.0556597825 | M87: 0.07245891685
A88: Tiemme Raccorderie | B88: 0.0666111127 | C88: 0.1124799893 | D88: 0.07677224552 | E88: 0.07219169105 | F88: 0.1064159417 | G88: 0.03700689464 | H88: 0.08709234023 | I88: 0.02543089608 | J88: 0.1082839346 | K88: 0.1204917256 | L88: 0.1104422525 | M88: 0.07678097602
A89: Unidelta | B89: 0 | C89: 0.2006776526 | D89: 0.09830994252 | E89: 0.1213102786 | F89: 0.08852666619 | G89: 0.1046641197 | H89: 0.0939315871 | I89: 0.0259806627 | J89: 0.05663197871 | K89: 0.09395716571 | L89: 0.09690803612 | M89: 0.01910191011
A90: Va-Albertoni | B90: 0.079097176 | C90: 0.1055994013 | D90: 0.0762983228 | E90: 0.1506466135 | F90: 0.1050521756 | G90: 0.06528949358 | H90: 0.09149047134 | I90: 0.0966603874 | J90: 0.0668685454 | K90: 0.08971956745 | L90: 0.02142127686 | M90: 0.05185656881
A91: Valsir | B91: 0.1017844489 | C91: 0.08690584841 | D91: 0.1306495409 | E91: 0.07340575985 | F91: 0.08568021657 | G91: 0.09179245847 | H91: 0.09549304485 | I91: 0.01238513746 | J91: 0.08849609739 | K91: 0.1057993093 | L91: 0.06573547372 | M91: 0.06187266417
A92: Varem | B92: 0.07869520086 | C92: 0.04224788557 | D92: 0.182857471 | E92: 0.09946439394 | F92: 0.08492320329 | G92: 0.07563668086 | H92: 0.041101384 | I92: 0.06234387919 | J92: 0.08988623424 | K92: 0.07794296648 | L92: 0.09536645728 | M92: 0.06953424333
A93: Vortice | B93: 0.1650180584 | C93: 0.1008618732 | D93: -0.003704967005 | E93: 0.2241330288 | F93: 0.01331833022 | G93: 0.04468966992 | H93: 0.1494043252 | I93: 0 | J93: 0.07622800775 | K93: 0.03815269856 | L93: 0.1346618465 | M93: 0.0572371284
A94: Wavin | B94: 0.0594695455 | C94: 0.1056134413 | D94: 0.09846236436 | E94: 0.173546865 | F94: 0.09052170217 | G94: 0.06951629059 | H94: 0.04126630835 | I94: 0.04554408742 | J94: 0.07723980378 | K94: 0.08567977264 | L94: 0.08932656505 | M94: 0.06381325389
A95: Wilo | B95: 0.04857742647 | C95: 0.1174745011 | D95: 0.0329236074 | E95: 0.1459197994 | F95: 0.1827138392 | G95: 0.07803853264 | H95: 0.02529173004 | I95: 0.006090948582 | J95: 0.01971843088 | K95: 0.03337352547 | L95: 0.2764449293 | M95: 0.03343272949
A96: Xylem | B96: 0 | C96: 0 | D96: 0 | E96: 0 | F96: 0 | G96: 0.4556213949 | H96: 0.08805568762 | I96: 0.06149854253 | J96: 0.1353396261 | K96: 0.0562454091 | L96: 0.1269345597 | M96: 0.07630477997

Sheet PREMI
B1: STIMA PREMI AD OGGI
A4: SOCIO | B4: FORNITORE | C4: Fatt. Progr.2022 | D4: Incondizionato | E4: Premio a Target | F4: Totale premi
A5: VIRLINZI SPA | C5: 3972038.44 | F5: =SUM(F6:F102) -> 118461.6905
B6: Albatros | C6: 2640 | D6: =IFERROR(VLOOKUP(B6,'[1]FATT+ORD+P.O.'!$A$3:$I$96,6,FALSE),"") -> 0 | E6: =IFERROR(VLOOKUP(B6,'[1]FATT+ORD+P.O.'!$A$3:$I$96,7,FALSE),"") -> 0 | F6: =IFERROR(C6*(D6+E6),"") -> 0
B7: Ariston | C7: 204698.19 | D7: =IFERROR(VLOOKUP(B7,'[1]FATT+ORD+P.O.'!$A$3:$I$96,6,TRUE),"") -> 0 | E7: =IFERROR(VLOOKUP(B7,'[1]FATT+ORD+P.O.'!$A$3:$I$96,7,TRUE),"") -> 0 | F7: =IFERROR(C7*(D7+E7),"") -> 0
B8: Atusa | C8: 1378.04 | D8: =IFERROR(VLOOKUP(B8,'[1]FATT+ORD+P.O.'!$A$3:$I$96,6,FALSE),"") -> 0.1 | E8: =IFERROR(VLOOKUP(B8,'[1]FATT+ORD+P.O.'!$A$3:$I$96,7,FALSE),"") -> 0 | F8: 137.804
B9: Bmeters | C9: 9983.87 | D9: =IFERROR(VLOOKUP(B9,'[1]FATT+ORD+P.O.'!$A$3:$I$96,6,FALSE),"") -> 0 | E9: =IFERROR(VLOOKUP(B9,'[1]FATT+ORD+P.O.'!$A$3:$I$96,7,FALSE),"") -> 0.02 | F9: 199.6774
B10: Bosch | C10: 142477.16 | D10: =IFERROR(VLOOKUP(B10,'[1]FATT+ORD+P.O.'!$A$3:$I$96,6,FALSE),"") -> 0 | E10: =IFERROR(VLOOKUP(B10,'[1]FATT+ORD+P.O.'!$A$3:$I$96,7,FALSE),"") -> 0 | F10: 0
B11: Caleffi | C11: 29491.72 | D11: =IFERROR(VLOOKUP(B11,'[1]FATT+ORD+P.O.'!$A$3:$I$96,6,FALSE),"") -> 0 | E11: =IFERROR(VLOOKUP(B11,'[1]FATT+ORD+P.O.'!$A$3:$I$96,7,FALSE),"") -> 0.01 | F11: 294.9172
B12: Carrier | C12: 15347 | D12: =IFERROR(VLOOKUP(B12,'[1]FATT+ORD+P.O.'!$A$3:$I$96,6,FALSE),"") -> 0.015 | E12: =IFERROR(VLOOKUP(B12,'[1]FATT+ORD+P.O.'!$A$3:$I$96,7,FALSE),"") -> 0 | F12: 230.205
B13: Cordivari | C13: 98239.24 | D13: =IFERROR(VLOOKUP(B13,'[1]FATT+ORD+P.O.'!$A$3:$I$96,6,FALSE),"") -> 0.02 | E13: =IFERROR(VLOOKUP(B13,'[1]FATT+ORD+P.O.'!$A$3:$I$96,7,FALSE),"") -> 0.03 | F13: 4911.962
B14: Ebara | C14: 36868.4 | D14: =IFERROR(VLOOKUP(B14,'[1]FATT+ORD+P.O.'!$A$3:$I$96,6,FALSE),"") -> 0 | E14: =IFERROR(VLOOKUP(B14,'[1]FATT+ORD+P.O.'!$A$3:$I$96,7,FALSE),"") -> 0.07 | F14: 2580.788
B15: Enolgas | C15: 9556.37 | D15: =IFERROR(VLOOKUP(B15,'[1]FATT+ORD+P.O.'!$A$3:$I$96,6,FALSE),"") -> 0 | E15: =IFERROR(VLOOKUP(B15,'[1]FATT+ORD+P.O.'!$A$3:$I$96,7,FALSE),"") -> 0 | F15: 0
B16: Ercos | C16: 9663 | D16: =IFERROR(VLOOKUP(B16,'[1]FATT+ORD+P.O.'!$A$3:$I$96,6,FALSE),"") -> 0 | E16: =IFERROR(VLOOKUP(B16,'[1]FATT+ORD+P.O.'!$A$3:$I$96,7,FALSE),"") -> 0 | F16: 0
B17: Farg | C17: 14470.33 | D17: =IFERROR(VLOOKUP(B17,'[1]FATT+ORD+P.O.'!$A$3:$I$96,6,FALSE),"") -> 0 | E17: =IFERROR(VLOOKUP(B17,'[1]FATT+ORD+P.O.'!$A$3:$I$96,7,FALSE),"") -> 0.01 | F17: 144.7033
B18: Ferrari | C18: 38598 | D18: =IFERROR(VLOOKUP(B18,'[1]FATT+ORD+P.O.'!$A$3:$I$96,6,FALSE),"") -> 0 | E18: =IFERROR(VLOOKUP(B18,'[1]FATT+ORD+P.O.'!$A$3:$I$96,7,FALSE),"") -> 0 | F18: 0
B19: Fima Carlo Frattini | C19: 3373 | D19: =IFERROR(VLOOKUP(B19,'[1]FATT+ORD+P.O.'!$A$3:$I$96,6,FALSE),"") -> 0 | E19: =IFERROR(VLOOKUP(B19,'[1]FATT+ORD+P.O.'!$A$3:$I$96,7,FALSE),"") -> 0 | F19: 0
B20: Fimi | C20: 6222.74 | D20: =IFERROR(VLOOKUP(B20,'[1]FATT+ORD+P.O.'!$A$3:$I$96,6,FALSE),"") -> 0 | E20: =IFERROR(VLOOKUP(B20,'[1]FATT+ORD+P.O.'!$A$3:$I$96,7,FALSE),"") -> 0.1 | F20: 622.274
B21: Fluidmaster | C21: 17561 | D21: =IFERROR(VLOOKUP(B21,'[1]FATT+ORD+P.O.'!$A$3:$I$96,6,FALSE),"") -> 0.04 | E21: =IFERROR(VLOOKUP(B21,'[1]FATT+ORD+P.O.'!$A$3:$I$96,7,FALSE),"") -> 0 | F21: 702.44
B22: Geberit | C22: 27421.55 | D22: =IFERROR(VLOOKUP(B22,'[1]FATT+ORD+P.O.'!$A$3:$I$96,6,FALSE),"") -> 0 | E22: =IFERROR(VLOOKUP(B22,'[1]FATT+ORD+P.O.'!$A$3:$I$96,7,FALSE),"") -> 0.0075 | F22: 205.661625
B23: Giacomini | C23: 28897.35 | D23: =IFERROR(VLOOKUP(B23,'[1]FATT+ORD+P.O.'!$A$3:$I$96,6,FALSE),"") -> 0 | E23: =IFERROR(VLOOKUP(B23,'[1]FATT+ORD+P.O.'!$A$3:$I$96,7,FALSE),"") -> 0.045 | F23: 1300.38075
B24: Global | C24: 62829 | D24: =IFERROR(VLOOKUP(B24,'[1]FATT+ORD+P.O.'!$A$3:$I$96,6,FALSE),"") -> 0.06 | E24: =IFERROR(VLOOKUP(B24,'[1]FATT+ORD+P.O.'!$A$3:$I$96,7,FALSE),"") -> 0 | F24: 3769.74
B25: Griffon - Bostik | C25: 668.96 | D25: =IFERROR(VLOOKUP(B25,'[1]FATT+ORD+P.O.'!$A$3:$I$96,6,FALSE),"") -> 0 | E25: =IFERROR(VLOOKUP(B25,'[1]FATT+ORD+P.O.'!$A$3:$I$96,7,FALSE),"") -> 0 | F25: 0
B26: Grohe | C26: 8058.64 | D26: =IFERROR(VLOOKUP(B26,'[1]FATT+ORD+P.O.'!$A$3:$I$96,6,FALSE),"") -> 0 | E26: =IFERROR(VLOOKUP(B26,'[1]FATT+ORD+P.O.'!$A$3:$I$96,7,FALSE),"") -> 0 | F26: 0
B27: Haier | C27: 145178.23 | D27: =IFERROR(VLOOKUP(B27,'[1]FATT+ORD+P.O.'!$A$3:$I$96,6,FALSE),"") -> 0 | E27: =IFERROR(VLOOKUP(B27,'[1]FATT+ORD+P.O.'!$A$3:$I$96,7,FALSE),"") -> 0.05 | F27: 7258.9115
B28: Ibp Banninger | C28: 46597 | D28: =IFERROR(VLOOKUP(B28,'[1]FATT+ORD+P.O.'!$A$3:$I$96,6,FALSE),"") -> 0 | E28: =IFERROR(VLOOKUP(B28,'[1]FATT+ORD+P.O.'!$A$3:$I$96,7,FALSE),"") -> 0.12 | F28: 5591.64
B29: Isoclima | C29: 277736.08 | D29: =IFERROR(VLOOKUP(B29,'[1]FATT+ORD+P.O.'!$A$3:$I$96,6,TRUE),"") -> 0 | E29: =IFERROR(VLOOKUP(B29,'[1]FATT+ORD+P.O.'!$A$3:$I$96,7,TRUE),"") -> 0.02 | F29: 5554.7216
B30: Itap | C30: 35659.47 | D30: =IFERROR(VLOOKUP(B30,'[1]FATT+ORD+P.O.'!$A$3:$I$96,6,FALSE),"") -> 0 | E30: =IFERROR(VLOOKUP(B30,'[1]FATT+ORD+P.O.'!$A$3:$I$96,7,FALSE),"") -> 0.05 | F30: 1782.9735
B31: L'isolante K-Flex | C31: 41762.04 | D31: =IFERROR(VLOOKUP(B31,'[1]FATT+ORD+P.O.'!$A$3:$I$96,6,FALSE),"") -> 0.18 | E31: =IFERROR(VLOOKUP(B31,'[1]FATT+ORD+P.O.'!$A$3:$I$96,7,FALSE),"") -> 0.06 | F31: 10022.8896
B32: Neoperl | C32: 1796.91 | D32: =IFERROR(VLOOKUP(B32,'[1]FATT+ORD+P.O.'!$A$3:$I$96,6,FALSE),"") -> 0 | E32: =IFERROR(VLOOKUP(B32,'[1]FATT+ORD+P.O.'!$A$3:$I$96,7,FALSE),"") -> 0.05 | F32: 89.8455
B33: Novellini | C33: 7972.64 | D33: =IFERROR(VLOOKUP(B33,'[1]FATT+ORD+P.O.'!$A$3:$I$96,6,FALSE),"") -> 0.05 | E33: =IFERROR(VLOOKUP(B33,'[1]FATT+ORD+P.O.'!$A$3:$I$96,7,FALSE),"") -> 0.03 | F33: 637.8112
B34: Omp Tea | C34: 8116.7 | D34: =IFERROR(VLOOKUP(B34,'[1]FATT+ORD+P.O.'!$A$3:$I$96,6,FALSE),"") -> 0.1 | E34: =IFERROR(VLOOKUP(B34,'[1]FATT+ORD+P.O.'!$A$3:$I$96,7,FALSE),"") -> 0 | F34: 811.67
B35: Paini | C35: 8123.2 | D35: =IFERROR(VLOOKUP(B35,'[1]FATT+ORD+P.O.'!$A$3:$I$96,6,FALSE),"") -> 0 | E35: =IFERROR(VLOOKUP(B35,'[1]FATT+ORD+P.O.'!$A$3:$I$96,7,FALSE),"") -> 0.03 | F35: 243.696
B36: Polieco | C36: 404686.45 | D36: =IFERROR(VLOOKUP(B36,'[1]FATT+ORD+P.O.'!$A$3:$I$96,6,FALSE),"") -> 0 | E36: =IFERROR(VLOOKUP(B36,'[1]FATT+ORD+P.O.'!$A$3:$I$96,7,FALSE),"") -> 0.01 | F36: 4046.8645
B37: Raccorderie Metalliche | C37: 199251.82 | D37: =IFERROR(VLOOKUP(B37,'[1]FATT+ORD+P.O.'!$A$3:$I$96,6,FALSE),"") -> 0 | E37: =IFERROR(VLOOKUP(B37,'[1]FATT+ORD+P.O.'!$A$3:$I$96,7,FALSE),"") -> 0.13 | F37: 25902.7366
B38: Rems | C38: 15012 | D38: =IFERROR(VLOOKUP(B38,'[1]FATT+ORD+P.O.'!$A$3:$I$96,6,FALSE),"") -> 0 | E38: =IFERROR(VLOOKUP(B38,'[1]FATT+ORD+P.O.'!$A$3:$I$96,7,FALSE),"") -> 0 | F38: 0
B39: Rubinetterie Bresciane | C39: 32345.31 | D39: =IFERROR(VLOOKUP(B39,'[1]FATT+ORD+P.O.'!$A$3:$I$96,6,FALSE),"") -> 0.17 | E39: =IFERROR(VLOOKUP(B39,'[1]FATT+ORD+P.O.'!$A$3:$I$96,7,FALSE),"") -> 0 | F39: 5498.7027
B40: Samsung | C40: 93774.49 | D40: =IFERROR(VLOOKUP(B40,'[1]FATT+ORD+P.O.'!$A$3:$I$96,6,FALSE),"") -> 0 | E40: =IFERROR(VLOOKUP(B40,'[1]FATT+ORD+P.O.'!$A$3:$I$96,7,FALSE),"") -> 0.03 | F40: 2813.2347
B41: System Group (Sa.Mi. Plastic) | C41: 40533.87 | D41: =IFERROR(VLOOKUP(B41,'[1]FATT+ORD+P.O.'!$A$3:$I$96,6,TRUE),"") -> 0 | E41: =IFERROR(VLOOKUP(B41,'[1]FATT+ORD+P.O.'!$A$3:$I$96,7,TRUE),"") -> 0.05 | F41: 2026.6935
B42: System Group Sicilia | C42: 180542 | D42: =IFERROR(VLOOKUP(B42,'[1]FATT+ORD+P.O.'!$A$3:$I$96,6,TRUE),"") -> 0 | E42: =IFERROR(VLOOKUP(B42,'[1]FATT+ORD+P.O.'!$A$3:$I$96,7,TRUE),"") -> 0.05 | F42: 9027.1
B43: Tenaris Dalmine | C43: 701116.29 | D43: =IFERROR(VLOOKUP(B43,'[1]FATT+ORD+P.O.'!$A$3:$I$96,6,FALSE),"") -> 0 | E43: =IFERROR(VLOOKUP(B43,'[1]FATT+ORD+P.O.'!$A$3:$I$96,7,FALSE),"") -> 0 | F43: 0
B44: Thermomat Saniline | C44: 16496 | D44: =IFERROR(VLOOKUP(B44,'[1]FATT+ORD+P.O.'!$A$3:$I$96,6,FALSE),"") -> 0 | E44: =IFERROR(VLOOKUP(B44,'[1]FATT+ORD+P.O.'!$A$3:$I$96,7,FALSE),"") -> 0 | F44: 0
B45: Tiemme Raccorderie | C45: 64212.22 | D45: =IFERROR(VLOOKUP(B45,'[1]FATT+ORD+P.O.'!$A$3:$I$96,6,FALSE),"") -> 0.01 | E45: =IFERROR(VLOOKUP(B45,'[1]FATT+ORD+P.O.'!$A$3:$I$96,7,FALSE),"") -> 0.03 | F45: 2568.4888
B46: Unidelta | C46: 513325.87 | D46: =IFERROR(VLOOKUP(B46,'[1]FATT+ORD+P.O.'!$A$3:$I$96,6,FALSE),"") -> 0.02 | E46: =IFERROR(VLOOKUP(B46,'[1]FATT+ORD+P.O.'!$A$3:$I$96,7,FALSE),"") -> 0 | F46: 10266.5174
B47: Va-Albertoni | C47: 2101.91 | D47: =IFERROR(VLOOKUP(B47,'[1]FATT+ORD+P.O.'!$A$3:$I$96,6,FALSE),"") -> 0.1 | E47: =IFERROR(VLOOKUP(B47,'[1]FATT+ORD+P.O.'!$A$3:$I$96,7,FALSE),"") -> 0 | F47: 210.191
B48: Valsir | C48: 19118 | D48: =IFERROR(VLOOKUP(B48,'[1]FATT+ORD+P.O.'!$A$3:$I$96,6,FALSE),"") -> 0 | E48: =IFERROR(VLOOKUP(B48,'[1]FATT+ORD+P.O.'!$A$3:$I$96,7,FALSE),"") -> 0.09 | F48: 1720.62
B49: Varem | C49: 15739.34 | D49: =IFERROR(VLOOKUP(B49,'[1]FATT+ORD+P.O.'!$A$3:$I$96,6,FALSE),"") -> 0 | E49: =IFERROR(VLOOKUP(B49,'[1]FATT+ORD+P.O.'!$A$3:$I$96,7,FALSE),"") -> 0.04 | F49: 629.5736
B50: Wavin | C50: 266250.22 | D50: =IFERROR(VLOOKUP(B50,'[1]FATT+ORD+P.O.'!$A$3:$I$96,6,FALSE),"") -> 0 | E50: =IFERROR(VLOOKUP(B50,'[1]FATT+ORD+P.O.'!$A$3:$I$96,7,FALSE),"") -> 0.025 | F50: 6656.2555
B51: Xylem | C51: 66146.82 | D51: =IFERROR(VLOOKUP(B51,'[1]FATT+ORD+P.O.'!$A$3:$I$96,6,FALSE),"") -> 0 | E51: =IFERROR(VLOOKUP(B51,'[1]FATT+ORD+P.O.'!$A$3:$I$96,7,FALSE),"") -> 0 | F51: 0
A52: Totale complessivo | C52: 3972038.44 | D52: =IFERROR(VLOOKUP(B52,'[1]FATT+ORD+P.O.'!$A$3:$I$96,6,FALSE),"") ->  | E52: =IFERROR(VLOOKUP(B52,'[1]FATT+ORD+P.O.'!$A$3:$I$96,7,FALSE),"") -> 
D53: =IFERROR(VLOOKUP(B53,'[1]FATT+ORD+P.O.'!$A$3:$I$96,6,FALSE),"") ->  | E53: =IFERROR(VLOOKUP(B53,'[1]FATT+ORD+P.O.'!$A$3:$I$96,7,FALSE),"") -> 
D54: =IFERROR(VLOOKUP(B54,'[1]FATT+ORD+P.O.'!$A$3:$I$96,6,FALSE),"") ->  | E54: =IFERROR(VLOOKUP(B54,'[1]FATT+ORD+P.O.'!$A$3:$I$96,7,FALSE),"") -> 
D55: =IFERROR(VLOOKUP(B55,'[1]FATT+ORD+P.O.'!$A$3:$I$96,6,FALSE),"") ->  | E55: =IFERROR(VLOOKUP(B55,'[1]FATT+ORD+P.O.'!$A$3:$I$96,7,FALSE),"") -> 
D56: =IFERROR(VLOOKUP(B56,'[1]FATT+ORD+P.O.'!$A$3:$I$96,6,FALSE),"") ->  | E56: =IFERROR(VLOOKUP(B56,'[1]FATT+ORD+P.O.'!$A$3:$I$96,7,FALSE),"") -> 
D57: =IFERROR(VLOOKUP(B57,'[1]FATT+ORD+P.O.'!$A$3:$I$96,6,FALSE),"") ->  | E57: =IFERROR(VLOOKUP(B57,'[1]FATT+ORD+P.O.'!$A$3:$I$96,7,FALSE),"") -> 
D58: =IFERROR(VLOOKUP(B58,'[1]FATT+ORD+P.O.'!$A$3:$I$96,6,FALSE),"") ->  | E58: =IFERROR(VLOOKUP(B58,'[1]FATT+ORD+P.O.'!$A$3:$I$96,7,FALSE),"") -> 
D59: =IFERROR(VLOOKUP(B59,'[1]FATT+ORD+P.O.'!$A$3:$I$96,6,FALSE),"") ->  | E59: =IFERROR(VLOOKUP(B59,'[1]FATT+ORD+P.O.'!$A$3:$I$96,7,FALSE),"") -> 
D60: =IFERROR(VLOOKUP(B60,'[1]FATT+ORD+P.O.'!$A$3:$I$96,6,FALSE),"") ->  | E60: =IFERROR(VLOOKUP(B60,'[1]FATT+ORD+P.O.'!$A$3:$I$96,7,FALSE),"") -> 
D61: =IFERROR(VLOOKUP(B61,'[1]FATT+ORD+P.O.'!$A$3:$I$96,6,FALSE),"") ->  | E61: =IFERROR(VLOOKUP(B61,'[1]FATT+ORD+P.O.'!$A$3:$I$96,7,FALSE),"") -> 
D62: =IFERROR(VLOOKUP(B62,'[1]FATT+ORD+P.O.'!$A$3:$I$96,6,FALSE),"") ->  | E62: =IFERROR(VLOOKUP(B62,'[1]FATT+ORD+P.O.'!$A$3:$I$96,7,FALSE),"") -> 
D63: =IFERROR(VLOOKUP(B63,'[1]FATT+ORD+P.O.'!$A$3:$I$96,6,FALSE),"") ->  | E63: =IFERROR(VLOOKUP(B63,'[1]FATT+ORD+P.O.'!$A$3:$I$96,7,FALSE),"") -> 
D64: =IFERROR(VLOOKUP(B64,'[1]FATT+ORD+P.O.'!$A$3:$I$96,6,FALSE),"") ->  | E64: =IFERROR(VLOOKUP(B64,'[1]FATT+ORD+P.O.'!$A$3:$I$96,7,FALSE),"") -> 
D65: =IFERROR(VLOOKUP(B65,'[1]FATT+ORD+P.O.'!$A$3:$I$96,6,FALSE),"") ->  | E65: =IFERROR(VLOOKUP(B65,'[1]FATT+ORD+P.O.'!$A$3:$I$96,7,FALSE),"") -> 
D66: =IFERROR(VLOOKUP(B66,'[1]FATT+ORD+P.O.'!$A$3:$I$96,6,FALSE),"") ->  | E66: =IFERROR(VLOOKUP(B66,'[1]FATT+ORD+P.O.'!$A$3:$I$96,7,FALSE),"") -> 
D67: =IFERROR(VLOOKUP(B67,'[1]FATT+ORD+P.O.'!$A$3:$I$96,6,FALSE),"") ->  | E67: =IFERROR(VLOOKUP(B67,'[1]FATT+ORD+P.O.'!$A$3:$I$96,7,FALSE),"") -> 
D68: =IFERROR(VLOOKUP(B68,'[1]FATT+ORD+P.O.'!$A$3:$I$96,6,FALSE),"") ->  | E68: =IFERROR(VLOOKUP(B68,'[1]FATT+ORD+P.O.'!$A$3:$I$96,7,FALSE),"") -> 
D69: =IFERROR(VLOOKUP(B69,'[1]FATT+ORD+P.O.'!$A$3:$I$96,6,FALSE),"") ->  | E69: =IFERROR(VLOOKUP(B69,'[1]FATT+ORD+P.O.'!$A$3:$I$96,7,FALSE),"") -> 
D70: =IFERROR(VLOOKUP(B70,'[1]FATT+ORD+P.O.'!$A$3:$I$96,6,FALSE),"") ->  | E70: =IFERROR(VLOOKUP(B70,'[1]FATT+ORD+P.O.'!$A$3:$I$96,7,FALSE),"") -> 
D71: =IFERROR(VLOOKUP(B71,'[1]FATT+ORD+P.O.'!$A$3:$I$96,6,FALSE),"") ->  | E71: =IFERROR(VLOOKUP(B71,'[1]FATT+ORD+P.O.'!$A$3:$I$96,7,FALSE),"") ->  | F71: =IFERROR(C71*(D71+E71),"") -> 
D72: =IFERROR(VLOOKUP(B72,'[1]FATT+ORD+P.O.'!$A$3:$I$96,6,FALSE),"") ->  | E72: =IFERROR(VLOOKUP(B72,'[1]FATT+ORD+P.O.'!$A$3:$I$96,7,FALSE),"") -> 
D73: =IFERROR(VLOOKUP(B73,'[1]FATT+ORD+P.O.'!$A$3:$I$96,6,FALSE),"") ->  | E73: =IFERROR(VLOOKUP(B73,'[1]FATT+ORD+P.O.'!$A$3:$I$96,7,FALSE),"") -> 
D74: =IFERROR(VLOOKUP(B74,'[1]FATT+ORD+P.O.'!$A$3:$I$96,6,FALSE),"") ->  | E74: =IFERROR(VLOOKUP(B74,'[1]FATT+ORD+P.O.'!$A$3:$I$96,7,FALSE),"") -> 
D75: =IFERROR(VLOOKUP(B75,'[1]FATT+ORD+P.O.'!$A$3:$I$96,6,FALSE),"") ->  | E75: =IFERROR(VLOOKUP(B75,'[1]FATT+ORD+P.O.'!$A$3:$I$96,7,FALSE),"") -> 
D76: =IFERROR(VLOOKUP(B76,'[1]FATT+ORD+P.O.'!$A$3:$I$96,6,FALSE),"") ->  | E76: =IFERROR(VLOOKUP(B76,'[1]FATT+ORD+P.O.'!$A$3:$I$96,7,FALSE),"") -> 
D77: =IFERROR(VLOOKUP(B77,'[1]FATT+ORD+P.O.'!$A$3:$I$96,6,FALSE),"") ->  | E77: =IFERROR(VLOOKUP(B77,'[1]FATT+ORD+P.O.'!$A$3:$I$96,7,FALSE),"") -> 
D78: =IFERROR(VLOOKUP(B78,'[1]FATT+ORD+P.O.'!$A$3:$I$96,6,FALSE),"") ->  | E78: =IFERROR(VLOOKUP(B78,'[1]FATT+ORD+P.O.'!$A$3:$I$96,7,FALSE),"") -> 
D79: =IFERROR(VLOOKUP(B79,'[1]FATT+ORD+P.O.'!$A$3:$I$96,6,FALSE),"") ->  | E79: =IFERROR(VLOOKUP(B79,'[1]FATT+ORD+P.O.'!$A$3:$I$96,7,FALSE),"") -> 
D80: =IFERROR(VLOOKUP(B80,'[1]FATT+ORD+P.O.'!$A$3:$I$96,6,FALSE),"") ->  | E80: =IFERROR(VLOOKUP(B80,'[1]FATT+ORD+P.O.'!$A$3:$I$96,7,FALSE),"") -> 
D81: =IFERROR(VLOOKUP(B81,'[1]FATT+ORD+P.O.'!$A$3:$I$96,6,FALSE),"") ->  | E81: =IFERROR(VLOOKUP(B81,'[1]FATT+ORD+P.O.'!$A$3:$I$96,7,FALSE),"") -> 
D82: =IFERROR(VLOOKUP(B82,'[1]FATT+ORD+P.O.'!$A$3:$I$96,6,FALSE),"") ->  | E82: =IFERROR(VLOOKUP(B82,'[1]FATT+ORD+P.O.'!$A$3:$I$96,7,FALSE),"") -> 
D83: =IFERROR(VLOOKUP(B83,'[1]FATT+ORD+P.O.'!$A$3:$I$96,6,FALSE),"") ->  | E83: =IFERROR(VLOOKUP(B83,'[1]FATT+ORD+P.O.'!$A$3:$I$96,7,FALSE),"") -> 
D84: =IFERROR(VLOOKUP(B84,'[1]FATT+ORD+P.O.'!$A$3:$I$96,6,FALSE),"") ->  | E84: =IFERROR(VLOOKUP(B84,'[1]FATT+ORD+P.O.'!$A$3:$I$96,7,FALSE),"") -> 
D85: =IFERROR(VLOOKUP(B85,'[1]FATT+ORD+P.O.'!$A$3:$I$96,6,FALSE),"") ->  | E85: =IFERROR(VLOOKUP(B85,'[1]FATT+ORD+P.O.'!$A$3:$I$96,7,FALSE),"") -> 
D86: =IFERROR(VLOOKUP(B86,'[1]FATT+ORD+P.O.'!$A$3:$I$96,6,FALSE),"") ->  | E86: =IFERROR(VLOOKUP(B86,'[1]FATT+ORD+P.O.'!$A$3:$I$96,7,FALSE),"") -> 
D87: =IFERROR(VLOOKUP(B87,'[1]FATT+ORD+P.O.'!$A$3:$I$96,6,FALSE),"") ->  | E87: =IFERROR(VLOOKUP(B87,'[1]FATT+ORD+P.O.'!$A$3:$I$96,7,FALSE),"") -> 
D88: =IFERROR(VLOOKUP(B88,'[1]FATT+ORD+P.O.'!$A$3:$I$96,6,FALSE),"") ->  | E88: =IFERROR(VLOOKUP(B88,'[1]FATT+ORD+P.O.'!$A$3:$I$96,7,FALSE),"") -> 
D89: =IFERROR(VLOOKUP(B89,'[1]FATT+ORD+P.O.'!$A$3:$I$96,6,FALSE),"") ->  | E89: =IFERROR(VLOOKUP(B89,'[1]FATT+ORD+P.O.'!$A$3:$I$96,7,FALSE),"") -> 
D90: =IFERROR(VLOOKUP(B90,'[1]FATT+ORD+P.O.'!$A$3:$I$96,6,FALSE),"") ->  | E90: =IFERROR(VLOOKUP(B90,'[1]FATT+ORD+P.O.'!$A$3:$I$96,7,FALSE),"") -> 
D91: =IFERROR(VLOOKUP(B91,'[1]FATT+ORD+P.O.'!$A$3:$I$96,6,FALSE),"") ->  | E91: =IFERROR(VLOOKUP(B91,'[1]FATT+ORD+P.O.'!$A$3:$I$96,7,FALSE),"") -> 
D92: =IFERROR(VLOOKUP(B92,'[1]FATT+ORD+P.O.'!$A$3:$I$96,6,FALSE),"") ->  | E92: =IFERROR(VLOOKUP(B92,'[1]FATT+ORD+P.O.'!$A$3:$I$96,7,FALSE),"") -> 
D93: =IFERROR(VLOOKUP(B93,'[1]FATT+ORD+P.O.'!$A$3:$I$96,6,FALSE),"") ->  | E93: =IFERROR(VLOOKUP(B93,'[1]FATT+ORD+P.O.'!$A$3:$I$96,7,FALSE),"") -> 
D94: =IFERROR(VLOOKUP(B94,'[1]FATT+ORD+P.O.'!$A$3:$I$96,6,FALSE),"") ->  | E94: =IFERROR(VLOOKUP(B94,'[1]FATT+ORD+P.O.'!$A$3:$I$96,7,FALSE),"") -> 
D95: =IFERROR(VLOOKUP(B95,'[1]FATT+ORD+P.O.'!$A$3:$I$96,6,FALSE),"") ->  | E95: =IFERROR(VLOOKUP(B95,'[1]FATT+ORD+P.O.'!$A$3:$I$96,7,FALSE),"") -> 
D96: =IFERROR(VLOOKUP(B96,'[1]FATT+ORD+P.O.'!$A$3:$I$96,6,FALSE),"") ->  | E96: =IFERROR(VLOOKUP(B96,'[1]FATT+ORD+P.O.'!$A$3:$I$96,7,FALSE),"") -> 
D97: =IFERROR(VLOOKUP(B97,'[1]FATT+ORD+P.O.'!$A$3:$I$96,6,FALSE),"") ->  | E97: =IFERROR(VLOOKUP(B97,'[1]FATT+ORD+P.O.'!$A$3:$I$96,7,FALSE),"") -> 
D98: =IFERROR(VLOOKUP(B98,'[1]FATT+ORD+P.O.'!$A$3:$I$96,6,FALSE),"") ->  | E98: =IFERROR(VLOOKUP(B98,'[1]FATT+ORD+P.O.'!$A$3:$I$96,7,FALSE),"") -> 
D99: =IFERROR(VLOOKUP(B99,'[1]FATT+ORD+P.O.'!$A$3:$I$96,6,FALSE),"") ->  | E99: =IFERROR(VLOOKUP(B99,'[1]FATT+ORD+P.O.'!$A$3:$I$96,7,FALSE),"") -> 
D100: =IFERROR(VLOOKUP(B100,'[1]FATT+ORD+P.O.'!$A$3:$I$96,6,FALSE),"") ->  | E100: =IFERROR(VLOOKUP(B100,'[1]FATT+ORD+P.O.'!$A$3:$I$96,7,FALSE),"") -> 
D101: =IFERROR(VLOOKUP(B101,'[1]FATT+ORD+P.O.'!$A$3:$I$96,6,FALSE),"") ->  | E101: =IFERROR(VLOOKUP(B101,'[1]FATT+ORD+P.O.'!$A$3:$I$96,7,FALSE),"") -> 
F102: =IFERROR(C102*(#REF!+D102+E102),"") -> 
